Workbook

Sheet Cover
A1: Cover
A3: Workbook title: | B3: Cost sharing & total costs reconciliation
A4: Version: | B4: 4e
A5: Filename: | B5: Cost-sharing-&-total-costs-Reconcilation-Mar-2023 v4c
A6: Date: | B6: 2023-07-01
A7: Author: | B7: Ofwat
A8: Author contact information: | B8: pr24queries@ofwat.gov.uk
A11: Summary of workbook: | B11: The cost sharing reconciliation model calculates any adjustment for underperformance or outperformance against forecast totex at the PR19 final determinations.
B12: Separate adjustments are made for wage growth, net totex and business rates and abstraction charges.
B13: The price base of the model is 2017-18 FYA CPIH with time value of money adjustments to 2024-25 present values using
B14: the FD wholesale WACC deflated for long-term CPIH.
A16: Known limitations: | B16: This model is subject to consultation and consequently may be subject to further changes.
A18: Instructions: | B18: na
A20: Amendments: | B20: Below are details of changes to the model from the version 4a published Mar 23. The changes fix issues that have been identified and implements a change to include a bonus adjustment in the reconciliation calculations.
B22: Category | C22: Sheet(s) in current model | D22: Description of change(s) made | E22: Model link(s)
B23: Policy Implementation | C23: InpActive, Cost sharing calculations, Bioresources, Thames Tideway Tunnel | D23: The model has been amended to adjust the reconciliation adjustments for performance related pay recovery adjustments where they are not appropriate. A new input has been added which is removed from the final adjustments for each control. For applicable controls this adjustment is also removed from baseline allowances and actual totex spends when calculation cost sharing adjustments. | E23: =InpActive!$E$44 -> Performance related pay recovery mechanism adjustment - WR - Nominal (Neg)
E24: ='Cost sharing calculations'!$E$96 -> Actual net totex for cost sharing reconciliation - WR - Real
E25: ='Cost sharing calculations'!$E$101 -> Total Performance related pay recovery mechanism adjustment - WR - real
E26: ='Cost sharing calculations'!$E$106 -> Actual net totex for cost sharing reconciliation - WR - Real
E27: ='Cost sharing calculations'!$E$127 -> Net totex available for cost sharing after adjustments profiled - WR - Real
E28: ='Cost sharing calculations'!$E$180 -> Total adjustment for cost sharing after ex ante allowance & wage adjustment - WR - Real
B29: Refinement | C29: Abstraction & Rates | D29: Model previously linked to business rates row, this has been amended to link to the abstraction charges line | E29: ='Abstraction & Rates'!$F$48 -> 11.22251102
B30: Refinement | C30: Abstraction & Rates | D30: Calculation has been amended to remove fixed reference linking to the business rate lines | E30: ='Abstraction & Rates'!$F$70 -> 0
E31: ='Abstraction & Rates'!$F$74 -> 0.3159648452
B32: Refinement | C32: Cost sharing calculations | D32: Calculation has been amended to calculate customer share instead of the company share | E32: ='Cost sharing calculations'!$F$353 -> 0
E33: ='Cost sharing calculations'!$F$526 -> 0
B34: Refinement | C34: Cost sharing calculations, Bioresources | D34: Updated formulas to link to actuals instead of allowances | E34: ='Cost sharing calculations'!$E$498 -> Actuals for CMA excluded items - WWN - nominal
E35: =Bioresources!$E$67 -> Actuals for CMA excluded items - BIO - nominal
B36: Refinement | C36: Cost sharing calculations, Bioresources | D36: Updated formulas to link to allowances instead of actuals | E36: ='Cost sharing calculations'!$E$502 -> Allowance for CMA excluded items - WWN - real
E37: =Bioresources!$E$71 -> Allowance for CMA excluded items - BIO - real
B38: Refinement | C38: Bioresources | D38: Original formula referred to blank row, this has amended to look at rows above. | E38: =Bioresources!$F$91 -> -1.416418302
E39: =Bioresources!$F$95 -> -0.5238807417
B40: Refinement | C40: Cost sharing calculations, Bioresources | D40: Line originally referred to total variance for the AMP, this has been updated to look up to the annual basis. | E40: =Bioresources!$E$75 -> Variance to allowances for CMA excluded items - BIO
E41: ='Cost sharing calculations'!$E$506 -> Variance to allowances for CMA excluded items - WWN
A43: References: | B43: Totex allowances made in the final determinations
B44: PAYG rates from the final determinations
B45: OBR Forecast wage growth from the final determinations
B46: WACC from the final determinations
B47: Cost sharing rates and ex ante allowances from Final determinations
B48: ASHE Gross Hourly Wage index
B49: Actual CPIH index published by the ONS
A51: Error Checks: | B51: Total error check status
B52: =Check!$F$8 -> 0
A55: END OF SHEET

Sheet Documentation-->

Sheet Style Guide
A1: =RIGHT(CELL("filename", $A$1), LEN(CELL("filename", $A$1)) - SEARCH("]", CELL("filename", $A$1))) -> Style Guide
A3: SHEET TABS
H5: Light Yellow | J5: Input sheets
H7: No colour (default Excel tab colour) | J7: Calculation and documentation sheets
H9: Pale Blue | J9: Key output sheets
H11: Turquoise | J11: Quality control sheets
H13: Yellow | J13: To be completed, temporary, restructured, or deleted
A16: COLOUR
B18: Font colour only
H19: Blue font | J19: Imported from another sheet
H21: Red font | J21: Exported to another sheet (except from Input sheets)
H23: Black font | J23: Within sheet link or calculation
B25: Font + shade combinations
H26: Black font + Light Yellow shade | J26: Inputs
H28: Black font + Light Yellow shade with grey stripe | J28: Inputs that are not expected to be changed
H30: Black font + Light Grey shade on entire row | J30: Within-worksheet counter-flow
H32: Blue font + Light Grey shade on entire row | J32: Between-worksheet counter-flow
H34: Empty Cell with Light Grey shade | J34: Empty cells being deliberately referenced
B36: Other
H37: Black font + Pale Blue shade on entire row | J37: Section separator
H39: Light Turquoise shade | J39: Stored/dead/hard coded outputs
H41: Tan shade | J41: Pre-model time line actuals
H43: Yellow shade | J43: Work in progress / temporary
H45: Lime shade | J45: Values or logic to be reviewed
B47: Error checks
H48: Green shade | J48: OK
H50: Red shade | J50: Error
A52: End of sheet

Sheet ToC
A1: =RIGHT(CELL("filename", $A$1), LEN(CELL("filename", $A$1)) - SEARCH("]", CELL("filename", $A$1))) -> ToC
B3: ASSUMPTIONS | D3: INPUTS | F3: CALCULATIONS | H3: OUTPUTS | J3: Quality Control
B5: =Cover!A1 -> Cover | D5: =InpActive!A1 -> InpActive | F5: =Index!A1 -> Index | H5: =Outputs!A1 -> Outputs | J5: =Check!A1 -> Check
B6: Model documentation sheet | D6: Inputs sheet | F6: All the indexation related calculations are done in this sheet. | H6: Main output sheet showing total cost sharing adjustments | J6: Contains all the model integrity checks and alerts
B8: ='Style Guide'!A1 -> Style Guide | F8: =Time!A1 -> Time
B9: Explanation of different formatting types | F9: The model timeline and flag calculations are done in this sheet.
B11: =A1 -> ToC | F11: ='Cost sharing calculations'!A1 -> Cost sharing calculations
B12: Table of contents | F12: Calculates the cost sharing adjustments to be made at PR24
F14: Abstraction & Rates
F15: Calculates the sharing adjustments for business rates and abstraction charges to be made at PR24
F17: =Bioresources!$A$1 -> Bioresources
F18: Calculates the totex reconciliation adjustments for bioresources to be made at PR24
F20: Thames Tideway Tunnel
F21: Calculates the sharing adjustments for Thames Tideway Tunnel to be made PR24
F23: Green recovery
F24: Calculates the cost sharing adjustments for green recovery to be made at PR24
A26: End of sheet

Sheet InpActive
A1: =RIGHT(CELL("filename", $A$1), LEN(CELL("filename", $A$1)) - SEARCH("]", CELL("filename", $A$1))) -> InpActive
E2: =Time!E$22 -> Model Period BEG | J2: =Time!J$22 -> 2019-04-01 | K2: =Time!K$22 -> 2020-04-01 | L2: =Time!L$22 -> 2021-04-01 | M2: =Time!M$22 -> 2022-04-01 | N2: =Time!N$22 -> 2023-04-01 | O2: =Time!O$22 -> 2024-04-01 | P2: =Time!P$22 -> 2025-04-01
E3: =Time!E$23 -> Model Period END | F3: =Check!F$8 -> 0 | G3: Error chks | J3: =Time!J$23 -> 2020-03-31 | K3: =Time!K$23 -> 2021-03-31 | L3: =Time!L$23 -> 2022-03-31 | M3: =Time!M$23 -> 2023-03-31 | N3: =Time!N$23 -> 2024-03-31 | O3: =Time!O$23 -> 2025-03-31 | P3: =Time!P$23 -> 2026-03-31
E4: =Time!E$59 -> Pre Forecast vs Forecast | J4: =Time!J$59 -> Pre Fcst | K4: =Time!K$59 -> Forecast | L4: =Time!L$59 -> Forecast | M4: =Time!M$59 -> Forecast | N4: =Time!N$59 -> Forecast | O4: =Time!O$59 -> Forecast | P4: =Time!P$59 -> Post-Fcst
E5: =Time!E$101 -> Financial Year Ending | J5: =Time!J$101 -> 2020 | K5: =Time!K$101 -> 2021 | L5: =Time!L$101 -> 2022 | M5: =Time!M$101 -> 2023 | N5: =Time!N$101 -> 2024 | O5: =Time!O$101 -> 2025 | P5: =Time!P$101 -> 2026
E6: =Time!E$11 -> Model column counter | F6: Constant | G6: Unit | H6: Total | J6: =Time!J$11 -> 1 | K6: =Time!K$11 -> 2 | L6: =Time!L$11 -> 3 | M6: =Time!M$11 -> 4 | N6: =Time!N$11 -> 5 | O6: =Time!O$11 -> 6 | P6: =Time!P$11 -> 7
A8: TIME
E10: First date of time ruler | F10: 2019-04-01 | G10: date
E12: Last Pre Forecast Date | F12: 2020-03-31 | G12: date
E14: Acquisition date (midnight) | F14: 2020-03-31 | G14: date
E15: Length of forecast period | F15: 5 | G15: years
E16: Last forecast date | F16: =DATE(YEAR(F14)+F15,MONTH(F14),DAY(F14)) -> 2025-03-31 | G16: date
E19: Operation Start Date (midnight) | F19: 2021-03-31 | G19: date
E20: Operation Finish Date (midnight) | F20: 2025-03-31 | G20: date
E21: First Modelling Column Financial Year Number | F21: 2020 | G21: year
E22: Financial Year End Month Number | F22: 3 | G22: month #
A25: TOTEX INPUTS
B27: Water Resources
C28: Wage adjustment
D29: 2017/18 CPIH | E29: Base Costs - WR - Real | F29: 60.8 | G29: £m | W29: PR19-final-determinations-Wessex-Water-final-determination.pdf (ofwat.gov.uk)
D30: 2017/18 CPIH | E30: Metering (excluding new connections) for meters requested by optants, customers and businesses - WR - Real | G30: £m
E32: Opex split profile - Base costs - WR | G32: % | K32: 0.1443457837 | L32: 0.1498328443 | M32: 0.1663601238 | N32: 0.1499139361 | O32: 0.1511681452
E33: Capex Split Profile - Base costs - WR | G33: % | K33: 0.04627501657 | L33: 0.06884442968 | M33: 0.05514971161 | N33: 0.03416186722 | O33: 0.03394814172
E35: Opex split profile - Cost sharing - WR | G35: % | K35: 0.1153862807 | L35: 0.1176454824 | M35: 0.1300671968 | N35: 0.1177064301 | O35: 0.1186490793
E36: Capex split profile - Cost sharing - WR | G36: % | K36: 0.1541936957 | L36: 0.0832972197 | M36: 0.07591050322 | N36: 0.04860254653 | O36: 0.03854156545
E38: Business Rates forecast profile - WR | G38: % | K38: 0.2 | L38: 0.2 | M38: 0.2 | N38: 0.2 | O38: 0.2
E39: Abstraction Charges forecast profile - WR | G39: % | K39: 0.2 | L39: 0.2 | M39: 0.2 | N39: 0.2 | O39: 0.2
C41: Net totex for cost sharing reconciliation
D42: nominal | E42: Net totex for cost sharing reconciliation - WR - Nominal | G42: £m | K42: 9.284 | L42: 10.571 | M42: 13.416 | N42: 18.68068817 | O42: 15.86532615
D43: 2017/18 CPIH | E43: Net totex available for cost sharing - WR - Real | F43: 66.4 | G43: £m
D44: nominal | E44: Performance related pay recovery mechanism adjustment - WR - Nominal (Neg) | G44: £m | K44: 0 | L44: 0 | M44: 0 | N44: 0 | O44: 0
D46: 2017/18 CPIH | E46: Total final WINEP reconciliation - WR - real | G46: £m | K46: 0 | L46: 0 | M46: 0 | N46: 0 | O46: 0
C48: Business Rates and Abstraction
D49: 2017/18 CPIH | E49: Business rates - Forecast - WR - Real | F49: 3.281014591 | G49: £m
D50: 2017/18 CPIH | E50: Abstraction charges - Forecast - WR - Real | F50: 11.22251102 | G50: £m
D52: nominal | E52: Business rates - Actual - WR - Nominal | G52: £m | K52: 0.9676407112 | L52: 0.961387745 | M52: 0.974 | N52: 0.7047567365 | O52: 0.6956154688
D53: nominal | E53: Abstraction charges - Actual - WR - Nominal | G53: £m | K53: 2.479462638 | L53: 2.583545016 | M53: 2.732 | N53: 2.873910798 | O53: 2.873910785
E55: Weighted average PAYG rate - WR | F55: 0.641 | G55: %
D57: 2017/18 CPIH | E57: Ex ante allowance above Ofwat forecast - Water Resources - Real | F57: 0 | G57: £m
C59: Bad Debt
D60: 2017/18 CPIH | E60: Business retail bad debt liability due to covid liquidity measures - WR - real | F60: 0 | G60: £m
D61: 2017/18 CPIH | E61: Total Wholesaler Liability - WR - real | F61: 0 | G61: £m
C63: CMA exclusions
D64: nominal | E64: Actuals for CMA excluded items - WR - nominal | G64: £m | K64: 0 | L64: 0 | M64: 0 | N64: 0 | O64: 0
D65: 2017/18 CPIH | E65: Allowance for CMA excluded items - WR - real | G65: £m | K65: 0 | L65: 0 | M65: 0 | N65: 0 | O65: 0
E66: CMA excluded items sharing rate - WR - real | F66: 0 | G66: %
B68: Water Network
C69: Wage adjustment
D70: 2017/18 CPIH | E70: Base Costs - WN - Real | F70: 486.2 | G70: £m
D71: 2017/18 CPIH | E71: Metering (excluding new connections) for meters requested by optants, customers and businesses - WN - Real | F71: 10.92401635 | G71: £m
E73: Opex Split Profile - Base costs - WN | G73: % | K73: 0.13 | L73: 0.13 | M73: 0.13 | N73: 0.13 | O73: 0.13
E74: Capex Split Profile - Base costs - WN | G74: % | K74: 0.069 | L74: 0.06 | M74: 0.097 | N74: 0.067 | O74: 0.057
E76: Opex split profile - Cost sharing - WN | G76: % | K76: 0.1202401395 | L76: 0.120895542 | M76: 0.1216782798 | N76: 0.1226969625 | O76: 0.1239703159
E77: Capex split profile - Cost sharing - WN | G77: % | K77: 0.07572333027 | L77: 0.07042206047 | M77: 0.1047894941 | N77: 0.0748750522 | O77: 0.0647088234
E79: Business Rates forecast profile - WN | G79: % | K79: 0.2 | L79: 0.2 | M79: 0.2 | N79: 0.2 | O79: 0.2
E80: Abstraction Charges forecast profile - WN | G80: % | K80: 0.2 | L80: 0.2 | M80: 0.2 | N80: 0.2 | O80: 0.2
C82: Net totex for cost sharing reconciliation
D83: nominal | E83: Net totex for cost sharing reconciliation - WN - Nominal | G83: £m | K83: 119.906 | L83: 118.23 | M83: 131.114 | N83: 141.2916645 | O83: 118.7974979
D84: 2017/18 CPIH | E84: Net totex available for cost sharing - WN - Real | F84: 438.4 | G84: £m
D85: nominal | E85: Performance related pay recovery mechanism adjustment - WN - Nominal (Neg) | G85: £m | K85: 0 | L85: 0 | M85: 0 | N85: 0 | O85: 0
D87: 2017/18 CPIH | E87: Total final WINEP reconciliation - WN - real | G87: £m | K87: 0 | L87: 0 | M87: 0 | N87: 0 | O87: 0
C89: Business Rates and Abstraction
D90: 2017/18 CPIH | E90: Business rates - Forecast - WN - Real | F90: 68.60922797 | G90: £m
D91: 2017/18 CPIH | E91: Abstraction charges - Forecast - WN - Real | F91: 1.476162024 | G91: £m
D93: nominal | E93: Business rates - Actual - WN - Nominal | G93: £m | K93: 15.05175258 | L93: 14.92980756 | M93: 14.994 | N93: 10.84339782 | O93: 10.70275014
D94: nominal | E94: Abstraction charges - Actual - WN - Nominal | G94: £m | K94: 0.1424992303 | L94: 0.1429897438 | M94: 0.152 | N94: 0.1513800214 | O94: 0.1513800207
E96: Weighted average PAYG rate - WN | F96: 0.722 | G96: %
D98: 2017/18 CPIH | E98: Ex ante allowance above Ofwat forecast - Water Network - Real | F98: 0 | G98: £m
C100: Bad Debt
D101: 2017/18 CPIH | E101: Business retail bad debt liability due to covid liquidity measures - WN - real | F101: 0 | G101: £m
D102: 2017/18 CPIH | E102: Total Wholesaler Liability - WN - real | F102: 0 | G102: £m
C104: CMA exclusions
D105: nominal | E105: Actuals for CMA excluded items - WN - nominal | G105: £m | K105: 0 | L105: 0 | M105: 0 | N105: 0 | O105: 0
D106: 2017/18 CPIH | E106: Allowance for CMA excluded items - WN - real | G106: £m | K106: 0 | L106: 0 | M106: 0 | N106: 0 | O106: 0
E107: CMA excluded items sharing rate - WN - real | F107: 0 | G107: %
B109: Wastewater Network
C110: Wage adjustment
D111: 2017/18 CPIH | E111: Base Costs - WWN - Real | F111: 884.6 | G111: £m
D112: 2017/18 CPIH | E112: Metering (excluding new connections) for meters requested by optants, customers and businesses - WWN - Real | G112: £m
D113: 2017/18 CPIH | E113: WINEP / NEP ~ In-the-Round - WWN - Real | F113: 384.1 | G113: £m
E115: Opex Split Profile - Base costs - WWN | G115: % | K115: 0.09 | L115: 0.091 | M115: 0.092 | N115: 0.093 | O115: 0.094
E116: Capex Split Profile - Base costs - WWN | G116: % | K116: 0.1 | L116: 0.108 | M116: 0.109 | N116: 0.114 | O116: 0.108
E118: Opex split profile - Cost sharing - WWN | G118: % | K118: 0.06110944219 | L118: 0.06238219299 | M118: 0.06411047053 | N118: 0.06633513602 | O118: 0.06798017778
E119: Capex split profile - Cost sharing - WWN | G119: % | K119: 0.1533089629 | L119: 0.1390620235 | M119: 0.1352301507 | N119: 0.1303003223 | O119: 0.1201811211
E121: Business Rates forecast profile - WWN | G121: % | K121: 0.2 | L121: 0.2 | M121: 0.2 | N121: 0.2 | O121: 0.2
C123: Net totex for cost sharing reconciliation
D124: nominal | E124: Net totex for cost sharing reconciliation - WWN - nominal | G124: £m | K124: 237.078 | L124: 235.873 | M124: 262.854 | N124: 348.2907708 | O124: 342.09928
D125: 2017/18 CPIH | E125: Net totex available for cost sharing - WWN - Real | F125: 1237.1 | G125: £m
D126: nominal | E126: Performance related pay recovery mechanism adjustment - WWN - Nominal (Neg) | G126: £m | K126: 0 | L126: 0 | M126: 0 | N126: 0 | O126: 0
D128: 2017/18 CPIH | E128: Total final WINEP reconciliation - WWN - real | G128: £m | K128: 0 | L128: 0 | M128: 0 | N128: 0 | O128: 0
C130: Business Rates and Abstraction
D131: 2017/18 CPIH | E131: Business rates - Forecast - WWN - Real | F131: 34.7934936 | G131: £m
D133: nominal | E133: Business rates - Actual - WWN - Nominal | G133: £m | K133: 7.150233251 | L133: 7.147619918 | M133: 7.148 | N133: 9.50633389 | O133: 9.383029012
E135: Weighted average PAYG rate - WWN | F135: 0.403 | G135: %
D137: 2017/18 CPIH | E137: Ex ante allowance above Ofwat forecast - Wastewater Network - Real | F137: 0 | G137: £m
C139: Bad Debt
D140: 2017/18 CPIH | E140: Business retail bad debt liability due to covid liquidity measures - WWN - real | F140: 0 | G140: £m
D141: 2017/18 CPIH | E141: Total Wholesaler Liability - WWN - real | F141: 0 | G141: £m
C143: CMA exclusions
D144: nominal | E144: Actuals for CMA excluded items - WWN - nominal | G144: £m | K144: 0 | L144: 0 | M144: 0 | N144: 0 | O144: 0
D145: 2017/18 CPIH | E145: Allowance for CMA excluded items - WWN - real | G145: £m | K145: 0 | L145: 0 | M145: 0 | N145: 0 | O145: 0
E146: CMA excluded items sharing rate - WWN - real | F146: 0 | G146: %
B148: Bioresources
D149: Business Rates and Abstraction
D150: 2017/18 CPIH | E150: Base Costs - BIO - Real | F150: 114.7 | G150: £m
D151: 2017/18 CPIH | E151: WINEP / NEP ~ In-the-Round - BIO - Real | F151: 0 | G151: £m
E153: Opex Split Profile - Base costs - BIO | G153: % | K153: 0.1455744815 | L153: 0.146256727 | M153: 0.1469492123 | N153: 0.1476520928 | O153: 0.1479780122
E154: Capex Split Profile - Base costs - BIO | G154: % | K154: 0.05259070868 | L154: 0.04583475159 | M154: 0.06355529478 | N154: 0.04437280677 | O154: 0.05923591238
D156: 2017/18 CPIH | E156: Business rates - Forecast - BIO - Real | F156: 8.16301332 | G156: £m
D158: nominal | E158: Business rates - Actual - BIO - Nominal | G158: £m | K158: 1.646032583 | L158: 1.618605869 | M158: 1.614 | N158: 1.987517493 | O158: 1.961737775
E160: Business Rates forecast profile - BIO | G160: % | K160: 0.2 | L160: 0.2 | M160: 0.2 | N160: 0.2 | O160: 0.2
E162: Weighted average PAYG rate - BIO | F162: 0.73 | G162: %
C164: CMA exclusions
D165: nominal | E165: Actuals for CMA excluded items - BIO - nominal | G165: £m | K165: 0 | L165: 0 | M165: 0 | N165: 0 | O165: 0
D166: 2017/18 CPIH | E166: Allowance for CMA excluded items - BIO - real | G166: £m | K166: 0 | L166: 0 | M166: 0 | N166: 0 | O166: 0
E167: CMA excluded items sharing rate - BIO - real | F167: 0 | G167: %
C169: Bonuses
D170: nominal | E170: Performance related pay recovery mechanism adjustment - BIO - Nominal (Neg) | G170: £m | K170: 0 | L170: 0 | M170: 0 | N170: 0 | O170: 0
B173: Thames Tideway
C174: Wage adjustment
D175: 2017/18 CPIH | E175: Base Costs - TTT - Real | F175: 0 | G175: £m
E177: Opex Split Profile - Base costs - TTT | G177: % | K177: 0 | L177: 0 | M177: 0 | N177: 0 | O177: 0
E178: Capex Split Profile - Base costs - TTT | G178: % | K178: 0 | L178: 0 | M178: 0 | N178: 0 | O178: 0
E180: Opex split profile - Cost sharing - TTT | G180: % | K180: 0 | L180: 0 | M180: 0 | N180: 0 | O180: 0
E181: Capex split profile - Cost sharing - TTT | G181: % | K181: 0 | L181: 0 | M181: 0 | N181: 0 | O181: 0
C183: Net totex for cost sharing reconciliation
D184: nominal | E184: Net totex for cost sharing reconciliation - TTT - nominal | G184: £m | K184: 0 | L184: 0 | M184: 0 | N184: 0 | O184: 0
D185: 2017/18 CPIH | E185: Net totex available for cost sharing - TTT - Real | F185: 0 | G185: £m
D186: nominal | E186: Performance related pay recovery mechanism adjustment - TTT - Nominal (Neg) | G186: £m | K186: 0 | L186: 0 | M186: 0 | N186: 0 | O186: 0
D188: 2017/18 CPIH | E188: Total final WINEP reconciliation - TTT - real | G188: £m | K188: 0 | L188: 0 | M188: 0 | N188: 0 | O188: 0
E190: Weighted average PAYG rate - TTT | F190: 0 | G190: %
A193: GREEN RECOVERY
C195: Water Resources
E197: Actual Green Recovery Expenditure - WR - nominal | G197: £m | H197: =SUM(K197:O197) -> 0 | K197: 0 | L197: 0 | M197: 0 | N197: 0 | O197: 0
E198: Total adjusted cost allowance - WR - real | G198: £m | H198: =SUM(K198:O198) -> 0 | K198: 0 | L198: 0 | M198: 0 | N198: 0 | O198: 0
C200: Water Network
E202: Actual Green Recovery Expenditure - WN - nominal | G202: £m | H202: =SUM(K202:O202) -> 0 | K202: 0 | L202: 0 | M202: 0 | N202: 0 | O202: 0
E203: Total adjusted cost allowance - WN - real | G203: £m | H203: =SUM(K203:O203) -> 0 | K203: 0 | L203: 0 | M203: 0 | N203: 0 | O203: 0
C205: Wastewater Network
E207: Actual Green Recovery Expenditure - WWN - nominal | G207: £m | H207: =SUM(K207:O207) -> 0 | K207: 0 | L207: 0 | M207: 0 | N207: 0 | O207: 0
E208: Total adjusted cost allowance - WWN - real | G208: £m | H208: =SUM(K208:O208) -> 0 | K208: 0 | L208: 0 | M208: 0 | N208: 0 | O208: 0
D211: Green Recovery Sharing Rates
E212: Green Recovery Outperformance Rate | F212: 0.1 | G212: %
E213: Green Recovery Underperformance Rate | F213: 0.5 | G213: %
A215: INFLATION
D217: Base Year
E218: Consumer Price Index (with housing) for April | F218: 103.2 | G218: Index
E219: Consumer Price Index (with housing) for May | F219: 103.5 | G219: Index
E220: Consumer Price Index (with housing) for June | F220: 103.5 | G220: Index
E221: Consumer Price Index (with housing) for July | F221: 103.5 | G221: Index
E222: Consumer Price Index (with housing) for August | F222: 104 | G222: Index
E223: Consumer Price Index (with housing) for September | F223: 104.3 | G223: Index
E224: Consumer Price Index (with housing) for October | F224: 104.4 | G224: Index
E225: Consumer Price Index (with housing) for November | F225: 104.7 | G225: Index
E226: Consumer Price Index (with housing) for December | F226: 105 | G226: Index
E227: Consumer Price Index (with housing) for January | F227: 104.5 | G227: Index
E228: Consumer Price Index (with housing) for February | F228: 104.9 | G228: Index
E229: Consumer Price Index (with housing) for March | F229: 105.1 | G229: Index
D231: Period
E232: Consumer Price Index (with housing) for April | G232: Index | J232: 107.6 | K232: 108.6 | L232: 110.4 | M232: 119 | N232: 128.3 | O232: 132.1917667 | P232: 134.835602
E233: Consumer Price Index (with housing) for May | G233: Index | J233: 107.9 | K233: 108.6 | L233: 111 | M233: 119.7 | N233: 129.1 | O233: 132.6287333 | P233: 135.281308
E234: Consumer Price Index (with housing) for June | G234: Index | J234: 107.9 | K234: 108.8 | L234: 111.4 | M234: 120.5 | N234: 129.417 | O234: 132.781842 | P234: 135.4374788
E235: Consumer Price Index (with housing) for July | G235: Index | J235: 108 | K235: 109.2 | L235: 111.4 | M235: 121.2 | N235: 128.9568 | O235: 132.825504 | P235: 135.4820141
E236: Consumer Price Index (with housing) for August | G236: Index | J236: 108.3 | K236: 108.8 | L236: 112.1 | M236: 121.8 | N236: 129.717 | O236: 133.392315 | P236: 136.0601613
E237: Consumer Price Index (with housing) for September | G237: Index | J237: 108.4 | K237: 109.2 | L237: 112.4 | M237: 122.3 | N237: 130.0456667 | O237: 133.6002482 | P237: 136.2722532
E238: Consumer Price Index (with housing) for October | G238: Index | J238: 108.3 | K238: 109.2 | L238: 113.4 | M238: 124.3 | N238: 130.3492667 | O238: 133.8686969 | P238: 136.5460708
E239: Consumer Price Index (with housing) for November | G239: Index | J239: 108.5 | K239: 109.1 | L239: 114.1 | M239: 124.8 | N239: 130.7072 | O239: 134.1927253 | P239: 136.8765798
E240: Consumer Price Index (with housing) for December | G240: Index | J240: 108.5 | K240: 109.4 | L240: 114.7 | M240: 125.3 | N240: 130.9385 | O240: 134.342901 | P240: 137.029759
E241: Consumer Price Index (with housing) for January | G241: Index | J241: 108.3 | K241: 109.3 | L241: 114.6 | M241: 124.8 | N241: 130.5408 | O241: 133.151616 | P241: 135.8146483
E242: Consumer Price Index (with housing) for February | G242: Index | J242: 108.6 | K242: 109.4 | L242: 115.4 | M242: 126 | N242: 131.124 | O242: 133.74648 | P242: 136.4214096
E243: Consumer Price Index (with housing) for March | G243: Index | J243: 108.6 | K243: 109.7 | L243: 116.5 | M243: 126.8 | N243: 131.4916 | O243: 134.121432 | P243: 136.8038606
A246: WAGE GROWTH
D248: Wage Growth
E249: OBR Forecast wage growth for PR19 FD | G249: % | J249: 0.01 | K249: 0.011 | L249: 0.011 | M249: 0.012 | N249: 0.013 | O249: 0.013
E250: ASHE Gross Hourly Wage All - Nominal | G250: £ / hour | J250: 17.06 | K250: 17.54 | L250: 18.33 | M250: 19.13307577 | N250: 19.81700114 | O250: 20.00865212
D252: Percentage totex linked to wage growth
E253: Percentage totex linked to wage growth - WR | F253: 0.386 | G253: %
E255: Percentage totex linked to wage growth - WN | F255: 0.386 | G255: %
E257: Percentage totex linked to wage growth - WWN | F257: 0.386 | G257: %
E259: Percentage totex linked to wage growth - BIO | F259: 0.386 | G259: %
E261: Percentage totex linked to wage growth - TTT | F261: 0.386 | G261: %
A264: COST SHARING INPUTS
D266: Totex cost sharing rates
E267: Outperformance Rate - WR | F267: 0.4386353668 | G267: %
E268: Underperformance Rate - WR | F268: 0.5613646332 | G268: %
E270: Outperformance Rate - WN | F270: 0.4386353668 | G270: %
E271: Underperformance Rate - WN | F271: 0.5613646332 | G271: %
E273: Outperformance Rate - WWN | F273: 0.4132858401 | G273: %
E274: Underperformance Rate - WWN | F274: 0.5867141599 | G274: %
E276: Outperformance Rate - TTT | F276: 0 | G276: %
E277: Underperformance Rate - TTT | F277: 0 | G277: %
D279: Abstraction and Business rate cost sharing rates
E280: Cost sharing rates Business rates - Overperformance | F280: 0.25 | G280: %
E281: Cost sharing rates Business rates - Underperformance | F281: 0.25 | G281: %
E282: Cost sharing rates Abstraction - Overperformance | F282: 0.25 | G282: %
E283: Cost sharing rates Abstraction - Underperformance | F283: 0.25 | G283: %
A285: FINANCING INPUTS
B287: Model Tolerance
E288: Financing cost index | G288: Index | K288: 4 | L288: 3 | M288: 2 | N288: 1 | O288: 0
E290: Real WACC CPIH Deflated - WR | F290: 0.0292 | G290: %
... 9 more rows

Sheet Inputs-->

Sheet Calc-->

Sheet Index
A1: =RIGHT(CELL("filename", $A$1), LEN(CELL("filename", $A$1)) - SEARCH("]", CELL("filename", $A$1))) -> Index
E2: =Time!E$22 -> Model Period BEG | J2: =Time!J$22 -> 2019-04-01 | K2: =Time!K$22 -> 2020-04-01 | L2: =Time!L$22 -> 2021-04-01 | M2: =Time!M$22 -> 2022-04-01 | N2: =Time!N$22 -> 2023-04-01 | O2: =Time!O$22 -> 2024-04-01 | P2: =Time!P$22 -> 2025-04-01
E3: =Time!E$23 -> Model Period END | F3: =Check!F$8 -> 0 | G3: Error chks | J3: =Time!J$23 -> 2020-03-31 | K3: =Time!K$23 -> 2021-03-31 | L3: =Time!L$23 -> 2022-03-31 | M3: =Time!M$23 -> 2023-03-31 | N3: =Time!N$23 -> 2024-03-31 | O3: =Time!O$23 -> 2025-03-31 | P3: =Time!P$23 -> 2026-03-31
E4: =Time!E$59 -> Pre Forecast vs Forecast | J4: =Time!J$59 -> Pre Fcst | K4: =Time!K$59 -> Forecast | L4: =Time!L$59 -> Forecast | M4: =Time!M$59 -> Forecast | N4: =Time!N$59 -> Forecast | O4: =Time!O$59 -> Forecast | P4: =Time!P$59 -> Post-Fcst
E5: =Time!E$101 -> Financial Year Ending | J5: =Time!J$101 -> 2020 | K5: =Time!K$101 -> 2021 | L5: =Time!L$101 -> 2022 | M5: =Time!M$101 -> 2023 | N5: =Time!N$101 -> 2024 | O5: =Time!O$101 -> 2025 | P5: =Time!P$101 -> 2026
E6: =Time!E$11 -> Model column counter | F6: Constant | G6: Unit | H6: Total | J6: =Time!J$11 -> 1 | K6: =Time!K$11 -> 2 | L6: =Time!L$11 -> 3 | M6: =Time!M$11 -> 4 | N6: =Time!N$11 -> 5 | O6: =Time!O$11 -> 6 | P6: =Time!P$11 -> 7
A8: CPI(H) INDEXATION
C10: Average CPI(H) - base index
E11: =InpActive!E218 -> Consumer Price Index (with housing) for April | F11: =InpActive!F218 -> 103.2 | G11: =InpActive!G218 -> Index
E12: =InpActive!E219 -> Consumer Price Index (with housing) for May | F12: =InpActive!F219 -> 103.5 | G12: =InpActive!G219 -> Index
E13: =InpActive!E220 -> Consumer Price Index (with housing) for June | F13: =InpActive!F220 -> 103.5 | G13: =InpActive!G220 -> Index
E14: =InpActive!E221 -> Consumer Price Index (with housing) for July | F14: =InpActive!F221 -> 103.5 | G14: =InpActive!G221 -> Index
E15: =InpActive!E222 -> Consumer Price Index (with housing) for August | F15: =InpActive!F222 -> 104 | G15: =InpActive!G222 -> Index
E16: =InpActive!E223 -> Consumer Price Index (with housing) for September | F16: =InpActive!F223 -> 104.3 | G16: =InpActive!G223 -> Index
E17: =InpActive!E224 -> Consumer Price Index (with housing) for October | F17: =InpActive!F224 -> 104.4 | G17: =InpActive!G224 -> Index
E18: =InpActive!E225 -> Consumer Price Index (with housing) for November | F18: =InpActive!F225 -> 104.7 | G18: =InpActive!G225 -> Index
E19: =InpActive!E226 -> Consumer Price Index (with housing) for December | F19: =InpActive!F226 -> 105 | G19: =InpActive!G226 -> Index
E20: =InpActive!E227 -> Consumer Price Index (with housing) for January | F20: =InpActive!F227 -> 104.5 | G20: =InpActive!G227 -> Index
E21: =InpActive!E228 -> Consumer Price Index (with housing) for February | F21: =InpActive!F228 -> 104.9 | G21: =InpActive!G228 -> Index
E22: =InpActive!E229 -> Consumer Price Index (with housing) for March | F22: =InpActive!F229 -> 105.1 | G22: =InpActive!G229 -> Index
E23: CPIH 2017/18 FYA - Base Year | F23: =AVERAGE(F11:F22) -> 104.2166667 | G23: Index
C25: CPI(H): Financial year average - index
E26: =InpActive!E232 -> Consumer Price Index (with housing) for April | F26: =InpActive!F232 -> 0 | G26: =InpActive!G232 -> Index | H26: =InpActive!H232 -> 0 | I26: =InpActive!I232 -> 0 | J26: =InpActive!J232 -> 107.6 | K26: =InpActive!K232 -> 108.6 | L26: =InpActive!L232 -> 110.4 | M26: =InpActive!M232 -> 119 | N26: =InpActive!N232 -> 128.3 | O26: =InpActive!O232 -> 132.1917667 | P26: =InpActive!P232 -> 134.835602
E27: =InpActive!E233 -> Consumer Price Index (with housing) for May | F27: =InpActive!F233 -> 0 | G27: =InpActive!G233 -> Index | H27: =InpActive!H233 -> 0 | I27: =InpActive!I233 -> 0 | J27: =InpActive!J233 -> 107.9 | K27: =InpActive!K233 -> 108.6 | L27: =InpActive!L233 -> 111 | M27: =InpActive!M233 -> 119.7 | N27: =InpActive!N233 -> 129.1 | O27: =InpActive!O233 -> 132.6287333 | P27: =InpActive!P233 -> 135.281308
E28: =InpActive!E234 -> Consumer Price Index (with housing) for June | F28: =InpActive!F234 -> 0 | G28: =InpActive!G234 -> Index | H28: =InpActive!H234 -> 0 | I28: =InpActive!I234 -> 0 | J28: =InpActive!J234 -> 107.9 | K28: =InpActive!K234 -> 108.8 | L28: =InpActive!L234 -> 111.4 | M28: =InpActive!M234 -> 120.5 | N28: =InpActive!N234 -> 129.417 | O28: =InpActive!O234 -> 132.781842 | P28: =InpActive!P234 -> 135.4374788
E29: =InpActive!E235 -> Consumer Price Index (with housing) for July | F29: =InpActive!F235 -> 0 | G29: =InpActive!G235 -> Index | H29: =InpActive!H235 -> 0 | I29: =InpActive!I235 -> 0 | J29: =InpActive!J235 -> 108 | K29: =InpActive!K235 -> 109.2 | L29: =InpActive!L235 -> 111.4 | M29: =InpActive!M235 -> 121.2 | N29: =InpActive!N235 -> 128.9568 | O29: =InpActive!O235 -> 132.825504 | P29: =InpActive!P235 -> 135.4820141
E30: =InpActive!E236 -> Consumer Price Index (with housing) for August | F30: =InpActive!F236 -> 0 | G30: =InpActive!G236 -> Index | H30: =InpActive!H236 -> 0 | I30: =InpActive!I236 -> 0 | J30: =InpActive!J236 -> 108.3 | K30: =InpActive!K236 -> 108.8 | L30: =InpActive!L236 -> 112.1 | M30: =InpActive!M236 -> 121.8 | N30: =InpActive!N236 -> 129.717 | O30: =InpActive!O236 -> 133.392315 | P30: =InpActive!P236 -> 136.0601613
E31: =InpActive!E237 -> Consumer Price Index (with housing) for September | F31: =InpActive!F237 -> 0 | G31: =InpActive!G237 -> Index | H31: =InpActive!H237 -> 0 | I31: =InpActive!I237 -> 0 | J31: =InpActive!J237 -> 108.4 | K31: =InpActive!K237 -> 109.2 | L31: =InpActive!L237 -> 112.4 | M31: =InpActive!M237 -> 122.3 | N31: =InpActive!N237 -> 130.0456667 | O31: =InpActive!O237 -> 133.6002482 | P31: =InpActive!P237 -> 136.2722532
E32: =InpActive!E238 -> Consumer Price Index (with housing) for October | F32: =InpActive!F238 -> 0 | G32: =InpActive!G238 -> Index | H32: =InpActive!H238 -> 0 | I32: =InpActive!I238 -> 0 | J32: =InpActive!J238 -> 108.3 | K32: =InpActive!K238 -> 109.2 | L32: =InpActive!L238 -> 113.4 | M32: =InpActive!M238 -> 124.3 | N32: =InpActive!N238 -> 130.3492667 | O32: =InpActive!O238 -> 133.8686969 | P32: =InpActive!P238 -> 136.5460708
E33: =InpActive!E239 -> Consumer Price Index (with housing) for November | F33: =InpActive!F239 -> 0 | G33: =InpActive!G239 -> Index | H33: =InpActive!H239 -> 0 | I33: =InpActive!I239 -> 0 | J33: =InpActive!J239 -> 108.5 | K33: =InpActive!K239 -> 109.1 | L33: =InpActive!L239 -> 114.1 | M33: =InpActive!M239 -> 124.8 | N33: =InpActive!N239 -> 130.7072 | O33: =InpActive!O239 -> 134.1927253 | P33: =InpActive!P239 -> 136.8765798
E34: =InpActive!E240 -> Consumer Price Index (with housing) for December | F34: =InpActive!F240 -> 0 | G34: =InpActive!G240 -> Index | H34: =InpActive!H240 -> 0 | I34: =InpActive!I240 -> 0 | J34: =InpActive!J240 -> 108.5 | K34: =InpActive!K240 -> 109.4 | L34: =InpActive!L240 -> 114.7 | M34: =InpActive!M240 -> 125.3 | N34: =InpActive!N240 -> 130.9385 | O34: =InpActive!O240 -> 134.342901 | P34: =InpActive!P240 -> 137.029759
E35: =InpActive!E241 -> Consumer Price Index (with housing) for January | F35: =InpActive!F241 -> 0 | G35: =InpActive!G241 -> Index | H35: =InpActive!H241 -> 0 | I35: =InpActive!I241 -> 0 | J35: =InpActive!J241 -> 108.3 | K35: =InpActive!K241 -> 109.3 | L35: =InpActive!L241 -> 114.6 | M35: =InpActive!M241 -> 124.8 | N35: =InpActive!N241 -> 130.5408 | O35: =InpActive!O241 -> 133.151616 | P35: =InpActive!P241 -> 135.8146483
E36: =InpActive!E242 -> Consumer Price Index (with housing) for February | F36: =InpActive!F242 -> 0 | G36: =InpActive!G242 -> Index | H36: =InpActive!H242 -> 0 | I36: =InpActive!I242 -> 0 | J36: =InpActive!J242 -> 108.6 | K36: =InpActive!K242 -> 109.4 | L36: =InpActive!L242 -> 115.4 | M36: =InpActive!M242 -> 126 | N36: =InpActive!N242 -> 131.124 | O36: =InpActive!O242 -> 133.74648 | P36: =InpActive!P242 -> 136.4214096
E37: =InpActive!E243 -> Consumer Price Index (with housing) for March | F37: =InpActive!F243 -> 0 | G37: =InpActive!G243 -> Index | H37: =InpActive!H243 -> 0 | I37: =InpActive!I243 -> 0 | J37: =InpActive!J243 -> 108.6 | K37: =InpActive!K243 -> 109.7 | L37: =InpActive!L243 -> 116.5 | M37: =InpActive!M243 -> 126.8 | N37: =InpActive!N243 -> 131.4916 | O37: =InpActive!O243 -> 134.121432 | P37: =InpActive!P243 -> 136.8038606
E38: CPIH 2017/18 FYA - Period | G38: Index | J38: =AVERAGE(J26:J37) -> 108.2416667 | K38: =AVERAGE(K26:K37) -> 109.1083333 | L38: 113.1166667 | M38: 123.0416667 | N38: 130.0573194 | O38: 133.4036884 | P38: 136.0717621
D40: CPI(H): Fin year average - inflate from base year average
E41: =E$23 -> CPIH 2017/18 FYA - Base Year | F41: =F$23 -> 104.2166667 | G41: Index
E42: =E$38 -> CPIH 2017/18 FYA - Period | F42: =F$38 -> 0 | G42: Index | H42: 0 | I42: 0 | J42: 108.2416667 | K42: 109.1083333 | L42: 113.1166667 | M42: 123.0416667 | N42: 130.0573194 | O42: 133.4036884 | P42: 136.0717621
E43: CPI(H): Fin year average - inflate from base year 2017-18 average - CALC | G43: % | J43: =IF($F41 = 0, 0, J42 / $F41) -> 1.038621462 | K43: =IF($F41 = 0, 0, K42 / $F41) -> 1.04693747 | L43: =IF($F41 = 0, 0, L42 / $F41) -> 1.085399008 | M43: 1.180633296 | N43: 1.24795125 | O43: 1.280060979 | P43: 1.305662199
A45: END OF SHEET

Sheet Time
A1: =RIGHT(CELL("filename", $A$1), LEN(CELL("filename", $A$1)) - SEARCH("]", CELL("filename", $A$1))) -> Time
E2: =Time!E$22 -> Model Period BEG | J2: =Time!J$22 -> 2019-04-01 | K2: =Time!K$22 -> 2020-04-01 | L2: =Time!L$22 -> 2021-04-01 | M2: =Time!M$22 -> 2022-04-01 | N2: =Time!N$22 -> 2023-04-01 | O2: =Time!O$22 -> 2024-04-01 | P2: =Time!P$22 -> 2025-04-01
E3: =Time!E$23 -> Model Period END | F3: =Check!F$8 -> 0 | G3: Error chks | J3: =Time!J$23 -> 2020-03-31 | K3: =Time!K$23 -> 2021-03-31 | L3: =Time!L$23 -> 2022-03-31 | M3: =Time!M$23 -> 2023-03-31 | N3: =Time!N$23 -> 2024-03-31 | O3: =Time!O$23 -> 2025-03-31 | P3: =Time!P$23 -> 2026-03-31
E4: =Time!E$59 -> Pre Forecast vs Forecast | J4: =Time!J$59 -> Pre Fcst | K4: =Time!K$59 -> Forecast | L4: =Time!L$59 -> Forecast | M4: =Time!M$59 -> Forecast | N4: =Time!N$59 -> Forecast | O4: =Time!O$59 -> Forecast | P4: =Time!P$59 -> Post-Fcst
E5: =Time!E$101 -> Financial Year Ending | J5: =Time!J$101 -> 2020 | K5: =Time!K$101 -> 2021 | L5: =Time!L$101 -> 2022 | M5: =Time!M$101 -> 2023 | N5: =Time!N$101 -> 2024 | O5: =Time!O$101 -> 2025 | P5: =Time!P$101 -> 2026
E6: =Time!E$11 -> Model column counter | F6: Constant | G6: Unit | H6: Total | J6: =Time!J$11 -> 1 | K6: =Time!K$11 -> 2 | L6: =Time!L$11 -> 3 | M6: =Time!M$11 -> 4 | N6: =Time!N$11 -> 5 | O6: =Time!O$11 -> 6 | P6: =Time!P$11 -> 7
A8: MODEL PERIOD
B10: Model Column Counter
E11: Model column counter | G11: counter | J11: =I11 + 1 -> 1 | K11: =J11 + 1 -> 2 | L11: =K11 + 1 -> 3 | M11: 4 | N11: 5 | O11: 6 | P11: =O11 + 1 -> 7
E12: Model Column Total | F12: =MAX(J11:P11) -> 7 | G12: column
E14: =E$11 -> Model column counter | F14: 0 | G14: counter | H14: 0 | I14: 0 | J14: 1 | K14: 2 | L14: 3 | M14: 4 | N14: 5 | O14: 6 | P14: 7
E15: First model column flag | G15: flag | H15: =SUM(J15:P15) -> 1 | J15: =IF( J14 = 1, 1, 0) -> 1 | K15: =IF( K14 = 1, 1, 0) -> 0 | L15: 0 | M15: 0 | N15: 0 | O15: 0 | P15: 0
E17: =InpActive!E$10 -> First date of time ruler | F17: =InpActive!F$10 -> 2019-04-01 | G17: =InpActive!G$10 -> date
E18: First model period BEG | F18: =DATE(YEAR(F17), MONTH(F17), 1) -> 2019-04-01 | G18: month
E20: =E$18 -> First model period BEG | F20: =F$18 -> 2019-04-01 | G20: =G$18 -> month
E21: =E$15 -> First model column flag | F21: 0 | G21: flag | H21: 1 | I21: 0 | J21: 1 | K21: 0 | L21: 0 | M21: 0 | N21: 0 | O21: 0 | P21: 0
E22: Model Period BEG | G22: date | J22: =IF( J21 = 1, $F20, I23 + 1) -> 2019-04-01 | K22: =IF( K21 = 1, $F20, J23 + 1) -> 2020-04-01 | L22: 2021-04-01 | M22: 2022-04-01 | N22: 2023-04-01 | O22: 2024-04-01 | P22: =IF( P21 = 1, $F20, O23 + 1) -> 2025-04-01
E23: Model Period END | G23: date | J23: =DATE(YEAR(J22), MONTH(J22) + 12, DAY(1) - 1) -> 2020-03-31 | K23: 2021-03-31 | L23: 2022-03-31 | M23: 2023-03-31 | N23: 2024-03-31 | O23: 2025-03-31 | P23: 2026-03-31
E25: =E$23 -> Model Period END | F25: 00:00:00 | G25: date | H25: 00:00:00 | I25: 00:00:00 | J25: 2020-03-31 | K25: 2021-03-31 | L25: 2022-03-31 | M25: 2023-03-31 | N25: 2024-03-31 | O25: 2025-03-31 | P25: 2026-03-31
D26: less | E26: =E$22 -> Model Period BEG | F26: 00:00:00 | G26: date | H26: 00:00:00 | I26: 00:00:00 | J26: 2019-04-01 | K26: 2020-04-01 | L26: 2021-04-01 | M26: 2022-04-01 | N26: 2023-04-01 | O26: 2024-04-01 | P26: 2025-04-01
E27: Days in Model Period | G27: days | H27: =SUM(J27:P27) -> 2557 | J27: =J25 - J26 + 1 -> 366 | K27: 365 | L27: 365 | M27: 365 | N27: 366 | O27: 365 | P27: 365
A30: PRE FORECAST PERIOD
E32: =InpActive!E$12 -> Last Pre Forecast Date | F32: =InpActive!F$12 -> 2020-03-31 | G32: =InpActive!G$12 -> date
E33: =E$23 -> Model Period END | F33: 00:00:00 | G33: date | H33: 00:00:00 | I33: 00:00:00 | J33: 2020-03-31 | K33: 2021-03-31 | L33: 2022-03-31 | M33: 2023-03-31 | N33: 2024-03-31 | O33: 2025-03-31 | P33: 2026-03-31
E34: Last Pre Forecast Flag | G34: flag | H34: =SUM(J34:P34) -> 1 | J34: =IF(J33 = $F32, 1, 0) -> 1 | K34: 0 | L34: 0 | M34: 0 | N34: 0 | O34: 0 | P34: 0
E35: Pre Forecast Period Flag | G35: flag | H35: =SUM(J35:P35) -> 1 | J35: =IF($F32 >= J33, 1, 0) -> 1 | K35: =IF($F32 >= K33, 1, 0) -> 0 | L35: 0 | M35: 0 | N35: 0 | O35: 0 | P35: 0
E36: Pre Forecast Period Total | F36: =SUM(J35:P35) -> 1 | G36: columns
E38: =InpActive!E$14 -> Acquisition date (midnight) | F38: =InpActive!F$14 -> 2020-03-31 | G38: =InpActive!G$14 -> date
E39: =E$23 -> Model Period END | F39: 00:00:00 | G39: date | H39: 00:00:00 | I39: 00:00:00 | J39: 2020-03-31 | K39: 2021-03-31 | L39: 2022-03-31 | M39: 2023-03-31 | N39: 2024-03-31 | O39: 2025-03-31 | P39: 2026-03-31
E40: Acquisition / initial balance date flag | G40: flag | H40: =SUM(J40:P40) -> 1 | J40: =IF(J39 = $F38, 1, 0) -> 1 | K40: 0 | L40: 0 | M40: 0 | N40: 0 | O40: 0 | P40: 0
A43: FORECAST PERIOD
E45: =E$34 -> Last Pre Forecast Flag | F45: 0 | G45: flag | H45: 1 | I45: 0 | J45: 1 | K45: 0 | L45: 0 | M45: 0 | N45: 0 | O45: 0 | P45: 0
E46: 1st Forecast Period Flag | G46: flag | H46: =SUM(J46:P46) -> 1 | J46: =I45 -> 0 | K46: =J45 -> 1 | L46: 0 | M46: 0 | N46: 0 | O46: 0 | P46: =O45 -> 0
E48: =InpActive!E$16 -> Last forecast date | F48: =InpActive!F$16 -> 2025-03-31 | G48: =InpActive!G$16 -> date
E49: =E$23 -> Model Period END | F49: 00:00:00 | G49: date | H49: 00:00:00 | I49: 00:00:00 | J49: 2020-03-31 | K49: 2021-03-31 | L49: 2022-03-31 | M49: 2023-03-31 | N49: 2024-03-31 | O49: 2025-03-31 | P49: 2026-03-31
E50: Last Forecast Period Flag | G50: flag | H50: =SUM(J50:P50) -> 1 | J50: =IF(AND($F48 > I49, $F48 <= J49), 1, 0) -> 0 | K50: =IF(AND($F48 > J49, $F48 <= K49), 1, 0) -> 0 | L50: 0 | M50: 0 | N50: 0 | O50: 1 | P50: =IF(AND($F48 > O49, $F48 <= P49), 1, 0) -> 0
E52: =E$46 -> 1st Forecast Period Flag | F52: 0 | G52: flag | H52: 1 | I52: 0 | J52: 0 | K52: 1 | L52: 0 | M52: 0 | N52: 0 | O52: 0 | P52: 0
E53: =E$50 -> Last Forecast Period Flag | F53: 0 | G53: flag | H53: 1 | I53: 0 | J53: 0 | K53: 0 | L53: 0 | M53: 0 | N53: 0 | O53: 1 | P53: 0
E54: Forecast Period Flag | G54: flag | H54: =SUM(J54:P54) -> 5 | J54: =J52 - I53 + I54 -> 0 | K54: =K52 - J53 + J54 -> 1 | L54: 1 | M54: 1 | N54: 1 | O54: 1 | P54: =P52 - O53 + O54 -> 0
E55: Forecast Period Total | F55: =SUM(J54:P54) -> 5 | G55: columns
E57: =E$35 -> Pre Forecast Period Flag | F57: 0 | G57: flag | H57: 1 | I57: 0 | J57: 1 | K57: 0 | L57: 0 | M57: 0 | N57: 0 | O57: 0 | P57: 0
E58: =E$54 -> Forecast Period Flag | F58: 0 | G58: flag | H58: 5 | I58: 0 | J58: 0 | K58: 1 | L58: 1 | M58: 1 | N58: 1 | O58: 1 | P58: 0
E59: Pre Forecast vs Forecast | G59: flag | J59: =IF(J57 = 1, "Pre Fcst", IF(J58 = 1, "Forecast", "Post-Fcst")) -> Pre Fcst | K59: Forecast | L59: Forecast | M59: Forecast | N59: Forecast | O59: Forecast | P59: Post-Fcst
A62: POST FORECAST PERIOD
E64: =E$50 -> Last Forecast Period Flag | F64: 0 | G64: flag | H64: 1 | I64: 0 | J64: 0 | K64: 0 | L64: 0 | M64: 0 | N64: 0 | O64: 1 | P64: 0
E65: 1st Post Last Forecast Period Flag | G65: flag | H65: =SUM(J65:P65) -> 1 | J65: =I64 -> 0 | K65: =J64 -> 0 | L65: 0 | M65: 0 | N65: 0 | O65: 0 | P65: =O64 -> 1
E67: =E$65 -> 1st Post Last Forecast Period Flag | F67: 0 | G67: flag | H67: 1 | I67: 0 | J67: 0 | K67: 0 | L67: 0 | M67: 0 | N67: 0 | O67: 0 | P67: 1
E68: Post Forecast Period Flag | G68: flag | H68: =SUM(J68:P68) -> 1 | J68: =I68 + J67 -> 0 | K68: =J68 + K67 -> 0 | L68: 0 | M68: 0 | N68: 0 | O68: 0 | P68: =O68 + P67 -> 1
E69: Post Forecast Period Total | F69: =SUM(J68:P68) -> 1 | G69: columns
A72: MODELLING PERIOD CHECK
E74: =E$12 -> Model Column Total | F74: =F$12 -> 7 | G74: =G$12 -> column
D75: less | E75: =E$36 -> Pre Forecast Period Total | F75: =F$36 -> 1 | G75: =G$36 -> columns
D76: less | E76: =E$55 -> Forecast Period Total | F76: =F$55 -> 5 | G76: =G$55 -> columns
D77: less | E77: =E$69 -> Post Forecast Period Total | F77: =F$69 -> 1 | G77: =G$69 -> columns
E78: Modelling Period Check | F78: =IF(F74 - SUM(F75:F77) <> 0, 1, 0) -> 0 | G78: check
A81: PARTIAL PERIOD FLAG (PPF)
C82: This is an example of a part period flag. It is not currently used.
B83: Operation Partial Period Flag (PPF)
E84: =E$18 -> First model period BEG | F84: =F$18 -> 2019-04-01 | G84: =G$18 -> month
E85: =InpActive!E$20 -> Operation Finish Date (midnight) | F85: =InpActive!F$20 -> 2025-03-31 | G85: =InpActive!G$20 -> date
E86: =E$22 -> Model Period BEG | F86: 00:00:00 | G86: date | H86: 00:00:00 | I86: 00:00:00 | J86: 2019-04-01 | K86: 2020-04-01 | L86: 2021-04-01 | M86: 2022-04-01 | N86: 2023-04-01 | O86: 2024-04-01 | P86: 2025-04-01
E87: =E$23 -> Model Period END | F87: 00:00:00 | G87: date | H87: 00:00:00 | I87: 00:00:00 | J87: 2020-03-31 | K87: 2021-03-31 | L87: 2022-03-31 | M87: 2023-03-31 | N87: 2024-03-31 | O87: 2025-03-31 | P87: 2026-03-31
E88: Days in Operation Period | G88: days | H88: =SUM(J88:P88) -> 2192 | J88: =MAX(0, (MIN($F85, J87) - MAX($F84, J86) + 1)) -> 366 | K88: 365 | L88: 365 | M88: 365 | N88: 366 | O88: 365 | P88: 0
E90: =E$88 -> Days in Operation Period | F90: 0 | G90: days | H90: 2192 | I90: 0 | J90: 366 | K90: 365 | L90: 365 | M90: 365 | N90: 366 | O90: 365 | P90: 0
E91: =E$27 -> Days in Model Period | F91: 0 | G91: days | H91: 2557 | I91: 0 | J91: 366 | K91: 365 | L91: 365 | M91: 365 | N91: 366 | O91: 365 | P91: 365
E92: Operation Period PPF | G92: factor | H92: =SUM(J92:P92) -> 6 | J92: =J90 / J91 -> 1 | K92: 1 | L92: 1 | M92: 1 | N92: 1 | O92: 1 | P92: 0
A95: FINANCIAL YEAR
E97: =InpActive!E21 -> First Modelling Column Financial Year Number | F97: =InpActive!F21 -> 2020 | G97: =InpActive!G21 -> year
E98: =InpActive!E22 -> Financial Year End Month Number | F98: =InpActive!F22 -> 3 | G98: =InpActive!G22 -> month #
E99: =E$23 -> Model Period END | F99: 00:00:00 | G99: date | H99: 00:00:00 | I99: 00:00:00 | J99: 2020-03-31 | K99: 2021-03-31 | L99: 2022-03-31 | M99: 2023-03-31 | N99: 2024-03-31 | O99: 2025-03-31 | P99: 2026-03-31
E100: =E$15 -> First model column flag | F100: 0 | G100: flag | H100: 1 | I100: 0 | J100: 1 | K100: 0 | L100: 0 | M100: 0 | N100: 0 | O100: 0 | P100: 0
E101: Financial Year Ending | G101: year # | J101: =IF(J100 = 1, $F97, IF(J99 > (DATE(I101, $F98 + 1, 1) - 1), I101 + 1, I101)) -> 2020 | K101: =IF(K100 = 1, $F97, IF(K99 > (DATE(J101, $F98 + 1, 1) - 1), J101 + 1, J101)) -> 2021 | L101: 2022 | M101: 2023 | N101: 2024 | O101: 2025 | P101: =IF(P100 = 1, $F97, IF(P99 > (DATE(O101, $F98 + 1, 1) - 1), O101 + 1, O101)) -> 2026
A104: END OF SHEET

Sheet Cost sharing calculations
A1: =RIGHT(CELL("filename", $A$1), LEN(CELL("filename", $A$1)) - SEARCH("]", CELL("filename", $A$1))) -> Cost sharing calculations
E2: =Time!E$22 -> Model Period BEG | J2: =Time!J$22 -> 2019-04-01 | K2: =Time!K$22 -> 2020-04-01 | L2: =Time!L$22 -> 2021-04-01 | M2: =Time!M$22 -> 2022-04-01 | N2: =Time!N$22 -> 2023-04-01 | O2: =Time!O$22 -> 2024-04-01 | P2: =Time!P$22 -> 2025-04-01
E3: =Time!E$23 -> Model Period END | F3: =Check!F$8 -> 0 | G3: Error chks | J3: =Time!J$23 -> 2020-03-31 | K3: =Time!K$23 -> 2021-03-31 | L3: =Time!L$23 -> 2022-03-31 | M3: =Time!M$23 -> 2023-03-31 | N3: =Time!N$23 -> 2024-03-31 | O3: =Time!O$23 -> 2025-03-31 | P3: =Time!P$23 -> 2026-03-31
E4: =Time!E$59 -> Pre Forecast vs Forecast | J4: =Time!J$59 -> Pre Fcst | K4: =Time!K$59 -> Forecast | L4: =Time!L$59 -> Forecast | M4: =Time!M$59 -> Forecast | N4: =Time!N$59 -> Forecast | O4: =Time!O$59 -> Forecast | P4: =Time!P$59 -> Post-Fcst
E5: =Time!E$101 -> Financial Year Ending | J5: =Time!J$101 -> 2020 | K5: =Time!K$101 -> 2021 | L5: =Time!L$101 -> 2022 | M5: =Time!M$101 -> 2023 | N5: =Time!N$101 -> 2024 | O5: =Time!O$101 -> 2025 | P5: =Time!P$101 -> 2026
E6: =Time!E$11 -> Model column counter | F6: Constant | G6: Unit | H6: Total | J6: =Time!J$11 -> 1 | K6: =Time!K$11 -> 2 | L6: =Time!L$11 -> 3 | M6: =Time!M$11 -> 4 | N6: =Time!N$11 -> 5 | O6: =Time!O$11 -> 6 | P6: =Time!P$11 -> 7
A8: WAGE GROWTH ADJUSTER
C10: Cumulative actual real wage growth
E11: =InpActive!E250 -> ASHE Gross Hourly Wage All - Nominal | F11: =InpActive!F250 -> 0 | G11: =InpActive!G250 -> £ / hour | H11: =InpActive!H250 -> 0 | I11: =InpActive!I250 -> 0 | J11: =InpActive!J250 -> 17.06 | K11: =InpActive!K250 -> 17.54 | L11: =InpActive!L250 -> 18.33 | M11: =InpActive!M250 -> 19.13307577 | N11: =InpActive!N250 -> 19.81700114 | O11: =InpActive!O250 -> 20.00865212 | P11: =InpActive!P250 -> 0
E12: =Index!E$43 -> CPI(H): Fin year average - inflate from base year 2017-18 average - CALC | F12: =Index!F$43 -> 0 | G12: =Index!G$43 -> % | H12: =Index!H$43 -> 0 | I12: =Index!I$43 -> 0 | J12: =Index!J$43 -> 1.038621462 | K12: =Index!K$43 -> 1.04693747 | L12: =Index!L$43 -> 1.085399008 | M12: =Index!M$43 -> 1.180633296 | N12: =Index!N$43 -> 1.24795125 | O12: =Index!O$43 -> 1.280060979 | P12: =Index!P$43 -> 1.305662199
E13: ASHE GROSS HOURLY WAGE ALL - Real | G13: £ / hour | J13: =IF( J11 = 0, 0, J11 / J12) -> 16.4256186 | K13: 16.75362713 | L13: 16.88779873 | M13: 16.20577349 | N13: 15.87962762 | O13: 15.63101481 | P13: 0
E15: =E$13 -> ASHE GROSS HOURLY WAGE ALL - Real | F15: 0 | G15: £ / hour | H15: 0 | I15: 0 | J15: 16.4256186 | K15: 16.75362713 | L15: 16.88779873 | M15: 16.20577349 | N15: 15.87962762 | O15: 15.63101481 | P15: 0
E16: ASHE GROSS HOURLY WAGE ALL - Cumulative growth - Real | G16: % | J16: =IF( J15 = 0, 0, J15 / $J$15) -> 1 | K16: =IF( K15 = 0, 0, K15 / $J$15) -> 1.019969326 | L16: 1.028137761 | M16: 0.9866157181 | N16: 0.9667597921 | O16: 0.9516241177 | P16: 0
C18: Real adjustment factor for wage growth
E19: =InpActive!E249 -> OBR Forecast wage growth for PR19 FD | F19: =InpActive!F249 -> 0 | G19: =InpActive!G249 -> % | H19: =InpActive!H249 -> 0 | I19: =InpActive!I249 -> 0 | J19: =InpActive!J249 -> 0.01 | K19: =InpActive!K249 -> 0.011 | L19: =InpActive!L249 -> 0.011 | M19: =InpActive!M249 -> 0.012 | N19: =InpActive!N249 -> 0.013 | O19: =InpActive!O249 -> 0.013 | P19: =InpActive!P249 -> 0
E20: =Time!E45 -> Last Pre Forecast Flag | F20: =Time!F45 -> 0 | G20: =Time!G45 -> flag | H20: =Time!H45 -> 1 | I20: =Time!I45 -> 0 | J20: =Time!J45 -> 1 | K20: =Time!K45 -> 0 | L20: =Time!L45 -> 0 | M20: =Time!M45 -> 0 | N20: =Time!N45 -> 0 | O20: =Time!O45 -> 0 | P20: =Time!P45 -> 0
E21: Forecast wage growth for adjuster | G21: % | J21: =IF(J20 = 1, 1, I21 * (J19 + 1)) -> 1 | K21: =IF(K20 = 1, 1, J21 * (K19 + 1)) -> 1.011 | L21: 1.022121 | M21: 1.034386452 | N21: 1.047833476 | O21: 1.061455311 | P21: 1.061455311
E23: =E$16 -> ASHE GROSS HOURLY WAGE ALL - Cumulative growth - Real | F23: 0 | G23: % | H23: 0 | I23: 0 | J23: 1 | K23: 1.019969326 | L23: 1.028137761 | M23: 0.9866157181 | N23: 0.9667597921 | O23: 0.9516241177 | P23: 0
E24: =E$21 -> Forecast wage growth for adjuster | F24: 0 | G24: % | H24: 0 | I24: 0 | J24: 1 | K24: 1.011 | L24: 1.022121 | M24: 1.034386452 | N24: 1.047833476 | O24: 1.061455311 | P24: 1.061455311
E25: =Time!E$54 -> Forecast Period Flag | F25: =Time!F$54 -> 0 | G25: =Time!G$54 -> flag | H25: =Time!H$54 -> 5 | I25: =Time!I$54 -> 0 | J25: =Time!J$54 -> 0 | K25: =Time!K$54 -> 1 | L25: =Time!L$54 -> 1 | M25: =Time!M$54 -> 1 | N25: =Time!N$54 -> 1 | O25: =Time!O$54 -> 1 | P25: =Time!P$54 -> 0
E26: Real adjustment factor for wages | G26: % | J26: =IF( J25 = 1, J23/J24, 0) -> 0 | K26: 1.008871737 | L26: 1.005886545 | M26: 0.9538173244 | N26: 0.9226273204 | O26: 0.8965277273 | P26: 0
A28: WATER SERVICES COMBINED
C30: Active Sharing Rates -WR/WN
E32: =E$142 -> Total variance to forecast net totex for cost sharing - WR | F32: =F$142 -> -9.545382237 | G32: =G$142 -> £m
E33: =E$308 -> Total variance to forecast net totex for cost sharing - WN | F33: =F$308 -> 117.602673 | G33: =G$308 -> £m
E34: Total variance to forecast net totex for cost sharing - WATER | F34: =SUM(F32:F33) -> 108.0572907 | G34: £m
E36: =E$34 -> Total variance to forecast net totex for cost sharing - WATER | F36: =F$34 -> 108.0572907 | G36: =G$34 -> £m
E37: =InpActive!E$267 -> Outperformance Rate - WR | F37: =InpActive!F$267 -> 0.4386353668 | G37: =InpActive!G$267 -> %
E38: =InpActive!E$268 -> Underperformance Rate - WR | F38: =InpActive!F$268 -> 0.5613646332 | G38: =InpActive!G$268 -> %
E39: ="Active Sharing Rate - "& INDEX(E37:E38,MATCH(F39,F37:F38,0)) -> Active Sharing Rate - Underperformance Rate - WR | F39: =IF(F36<0,F37,F38) -> 0.5613646332 | G39: %
E42: =E$34 -> Total variance to forecast net totex for cost sharing - WATER | F42: =F$34 -> 108.0572907 | G42: =G$34 -> £m
E43: =InpActive!E$270 -> Outperformance Rate - WN | F43: =InpActive!F$270 -> 0.4386353668 | G43: =InpActive!G$270 -> %
E44: =InpActive!E$271 -> Underperformance Rate - WN | F44: =InpActive!F$271 -> 0.5613646332 | G44: =InpActive!G$271 -> %
E45: ="Active Sharing Rate - "& INDEX(E43:E44,MATCH(F45,F43:F44,0)) -> Active Sharing Rate - Underperformance Rate - WN | F45: =IF(F42<0,F43,F44) -> 0.5613646332 | G45: %
A47: WATER RESOURCES
C49: Adjustment For Wage Growth
D51: Totex for wage adjustment
E52: =InpActive!E$29 -> Base Costs - WR - Real | F52: =InpActive!F$29 -> 60.8 | G52: =InpActive!G$29 -> £m
E53: =InpActive!E$30 -> Metering (excluding new connections) for meters requested by optants, customers and businesses - WR - Real | F53: =InpActive!F$30 -> 0 | G53: =InpActive!G$30 -> £m
E54: Totex available for wage indexation adjustment - WR - Real | F54: =SUM(F52:F53) -> 60.8 | G54: £m
D56: Profile for totex for wage adjustment
E57: =InpActive!E$32 -> Opex split profile - Base costs - WR | F57: =InpActive!F$32 -> 0 | G57: =InpActive!G$32 -> % | H57: =InpActive!H$32 -> 0 | I57: =InpActive!I$32 -> 0 | J57: =InpActive!J$32 -> 0 | K57: =InpActive!K$32 -> 0.1443457837 | L57: =InpActive!L$32 -> 0.1498328443 | M57: =InpActive!M$32 -> 0.1663601238 | N57: =InpActive!N$32 -> 0.1499139361 | O57: =InpActive!O$32 -> 0.1511681452 | P57: =InpActive!P$32 -> 0
E58: =InpActive!E$33 -> Capex Split Profile - Base costs - WR | F58: =InpActive!F$33 -> 0 | G58: =InpActive!G$33 -> % | H58: =InpActive!H$33 -> 0 | I58: =InpActive!I$33 -> 0 | J58: =InpActive!J$33 -> 0 | K58: =InpActive!K$33 -> 0.04627501657 | L58: =InpActive!L$33 -> 0.06884442968 | M58: =InpActive!M$33 -> 0.05514971161 | N58: =InpActive!N$33 -> 0.03416186722 | O58: =InpActive!O$33 -> 0.03394814172 | P58: =InpActive!P$33 -> 0
E59: Totex profile - Base costs - WR | G59: % | H59: =SUM(J59:P59) -> 1 | J59: =SUM(J57:J58) -> 0 | K59: 0.1906208003 | L59: 0.218677274 | M59: 0.2215098354 | N59: 0.1840758033 | O59: 0.1851162869 | P59: 0
E60: Totex profile - Base costs - 5 year percentage - WR | F60: =H$59 -> 1 | G60: %
E62: =E$60 -> Totex profile - Base costs - 5 year percentage - WR | F62: =F$60 -> 1 | G62: =G$60 -> %
E63: WR Totex profile 100% check | F63: =IF(OR($F$62 = 1, F62 = 0), 0, 1) -> 0 | G63: Check
E65: =E$54 -> Totex available for wage indexation adjustment - WR - Real | F65: =F$54 -> 60.8 | G65: =G$54 -> £m
E66: =Time!E$54 -> Forecast Period Flag | F66: =Time!F$54 -> 0 | G66: =Time!G$54 -> flag | H66: =Time!H$54 -> 5 | I66: =Time!I$54 -> 0 | J66: =Time!J$54 -> 0 | K66: =Time!K$54 -> 1 | L66: =Time!L$54 -> 1 | M66: =Time!M$54 -> 1 | N66: =Time!N$54 -> 1 | O66: =Time!O$54 -> 1 | P66: =Time!P$54 -> 0
E67: =E$59 -> Totex profile - Base costs - WR | F67: 0 | G67: % | H67: 1 | I67: 0 | J67: 0 | K67: 0.1906208003 | L67: 0.218677274 | M67: 0.2215098354 | N67: 0.1840758033 | O67: 0.1851162869 | P67: 0
E68: Profiled Totex available for wage indexation adjustment - WR - Real | G68: £m | H68: =SUM(J68:P68) -> 60.8 | J68: =IF(J66 = 1, J67 * $F65, 0) -> 0 | K68: 11.58974466 | L68: 13.29557826 | M68: 13.46779799 | N68: 11.19180884 | O68: 11.25507025 | P68: 0
D70: Totex applicable for wage adjustment by year
E71: =InpActive!E$253 -> Percentage totex linked to wage growth - WR | F71: =InpActive!F$253 -> 0.386 | G71: =InpActive!G$253 -> %
E72: =E68 -> Profiled Totex available for wage indexation adjustment - WR - Real | F72: 0 | G72: £m | H72: 60.8 | I72: 0 | J72: 0 | K72: 11.58974466 | L72: 13.29557826 | M72: 13.46779799 | N72: 11.19180884 | O72: 11.25507025 | P72: 0
E73: Profiled Net totex available for wage adj - WR - Real | G73: £m | H73: =SUM(J73:P73) -> 23.4688 | J73: =J72 * $F71 -> 0 | K73: 4.473641437 | L73: 5.132093208 | M73: 5.198570026 | N73: 4.320038214 | O73: 4.344457115 | P73: 0
D75: Adjustment factor for wage linked totex
E76: =Time!E$54 -> Forecast Period Flag | F76: =Time!F$54 -> 0 | G76: =Time!G$54 -> flag | H76: =Time!H$54 -> 5 | I76: =Time!I$54 -> 0 | J76: =Time!J$54 -> 0 | K76: =Time!K$54 -> 1 | L76: =Time!L$54 -> 1 | M76: =Time!M$54 -> 1 | N76: =Time!N$54 -> 1 | O76: =Time!O$54 -> 1 | P76: =Time!P$54 -> 0
E77: =E$73 -> Profiled Net totex available for wage adj - WR - Real | F77: 0 | G77: £m | H77: 23.4688 | I77: 0 | J77: 0 | K77: 4.473641437 | L77: 5.132093208 | M77: 5.198570026 | N77: 4.320038214 | O77: 4.344457115 | P77: 0
E78: =E$26 -> Real adjustment factor for wages | F78: 0 | G78: % | H78: 0 | I78: 0 | J78: 0 | K78: 1.008871737 | L78: 1.005886545 | M78: 0.9538173244 | N78: 0.9226273204 | O78: 0.8965277273 | P78: 0
E79: Profiled adjustment wage related totex - WR - Real | G79: £m | H79: =SUM(J79:P79) -> 22.51483161 | J79: =IF(J76 = 1, J77 * J78, 0) -> 0 | K79: 4.513330406 | L79: 5.162303505 | M79: 4.958486153 | N79: 3.985785281 | O79: 3.894926264 | P79: 0
D81: Variance to forecast wage linked totex
E82: =E$79 -> Profiled adjustment wage related totex - WR - Real | F82: 0 | G82: £m | H82: 22.51483161 | I82: 0 | J82: 0 | K82: 4.513330406 | L82: 5.162303505 | M82: 4.958486153 | N82: 3.985785281 | O82: 3.894926264 | P82: 0
E83: =E$73 -> Profiled Net totex available for wage adj - WR - Real | F83: 0 | G83: £m | H83: 23.4688 | I83: 0 | J83: 0 | K83: 4.473641437 | L83: 5.132093208 | M83: 5.198570026 | N83: 4.320038214 | O83: 4.344457115 | P83: 0
E84: Variance to forecast totex for wage adjustment - WR | G84: £m | H84: =SUM(J84:P84) -> -0.9539683911 | J84: =J82 - J83 -> 0 | K84: =K82 - K83 -> 0.03968896873 | L84: 0.03021029693 | M84: -0.240083873 | N84: -0.3342529324 | O84: -0.4495308513 | P84: 0
D86: Wage totex overfunded/unfunded at PR19
E87: =E$84 -> Variance to forecast totex for wage adjustment - WR | F87: =F$84 -> 0 | G87: £m | H87: -0.9539683911 | I87: 0 | J87: 0 | K87: =K$84 -> 0.03968896873 | L87: 0.03021029693 | M87: -0.240083873 | N87: -0.3342529324 | O87: -0.4495308513 | P87: 0
E88: =E137 -> Time value of money factor - WR | F88: 0 | G88: Factor | H88: 0 | I88: 0 | J88: 1 | K88: 1.122016155 | L88: 1.090182817 | M88: 1.05925264 | N88: 1.0292 | O88: 1 | P88: 1
E89: Variance to forecast totex for wage adjustment - NPV adjusted - WR | G89: £m | H89: =SUM(J89:P89) -> -0.9703870349 | J89: =J87*J88 -> 0 | K89: =K87*K88 -> 0.0445316641 | L89: =L87*L88 -> 0.03293474661 | M89: -0.2543094763 | N89: -0.344013118 | O89: -0.4495308513 | P89: 0
E90: (Under)/Overfunded wage related totex at PR19 - WR | F90: =H89 * -1 -> 0.9703870349 | G90: £m
C92: Cost sharing on net totex available for reconciliation
E94: =InpActive!E$42 -> Net totex for cost sharing reconciliation - WR - Nominal | F94: =InpActive!F$42 -> 0 | G94: =InpActive!G$42 -> £m | H94: =InpActive!H$42 -> 0 | I94: =InpActive!I$42 -> 0 | J94: =InpActive!J$42 -> 0 | K94: =InpActive!K$42 -> 9.284 | L94: =InpActive!L$42 -> 10.571 | M94: =InpActive!M$42 -> 13.416 | N94: =InpActive!N$42 -> 18.68068817 | O94: =InpActive!O$42 -> 15.86532615 | P94: =InpActive!P$42 -> 0
E95: =Index!E$43 -> CPI(H): Fin year average - inflate from base year 2017-18 average - CALC | F95: =Index!F$43 -> 0 | G95: =Index!G$43 -> % | H95: =Index!H$43 -> 0 | I95: =Index!I$43 -> 0 | J95: =Index!J$43 -> 1.038621462 | K95: =Index!K$43 -> 1.04693747 | L95: =Index!L$43 -> 1.085399008 | M95: =Index!M$43 -> 1.180633296 | N95: =Index!N$43 -> 1.24795125 | O95: =Index!O$43 -> 1.280060979 | P95: =Index!P$43 -> 1.305662199
E96: Actual net totex for cost sharing reconciliation - WR - Real | G96: £m | J96: =J94 / J95 -> 0 | K96: =K94 / K95 -> 8.867769342 | L96: =L94 / L95 -> 9.739275527 | M96: 11.36339289 | N96: 14.96908486 | O96: 12.3941956 | P96: 0
E98: =InpActive!E$44 -> Performance related pay recovery mechanism adjustment - WR - Nominal (Neg) | F98: =InpActive!F$44 -> 0 | G98: =InpActive!G$44 -> £m | H98: =InpActive!H$44 -> 0 | I98: =InpActive!I$44 -> 0 | J98: =InpActive!J$44 -> 0 | K98: =InpActive!K$44 -> 0 | L98: =InpActive!L$44 -> 0 | M98: =InpActive!M$44 -> 0 | N98: =InpActive!N$44 -> 0 | O98: =InpActive!O$44 -> 0 | P98: =InpActive!P$44 -> 0
E99: =Index!E$43 -> CPI(H): Fin year average - inflate from base year 2017-18 average - CALC | F99: =Index!F$43 -> 0 | G99: =Index!G$43 -> % | H99: =Index!H$43 -> 0 | I99: =Index!I$43 -> 0 | J99: =Index!J$43 -> 1.038621462 | K99: =Index!K$43 -> 1.04693747 | L99: =Index!L$43 -> 1.085399008 | M99: =Index!M$43 -> 1.180633296 | N99: =Index!N$43 -> 1.24795125 | O99: =Index!O$43 -> 1.280060979 | P99: =Index!P$43 -> 1.305662199
E100: Performance related pay recovery mechanism adjustment - WR - real | G100: £m | H100: =SUM(K100:O100) -> 0 | J100: =J98 / J99 -> 0 | K100: =K98 / K99 -> 0 | L100: =L98 / L99 -> 0 | M100: 0 | N100: 0 | O100: 0 | P100: 0
E101: Total Performance related pay recovery mechanism adjustment - WR - real | F101: =H100 -> 0 | G101: £m
E103: =E$96 -> Actual net totex for cost sharing reconciliation - WR - Real | F103: =F$96 -> 0 | G103: £m | H103: 0 | I103: 0 | J103: 0 | K103: 8.867769342 | L103: 9.739275527 | M103: 11.36339289 | N103: 14.96908486 | O103: 12.3941956 | P103: 0
E104: =E100 -> Performance related pay recovery mechanism adjustment - WR - real | F104: =F100 -> 0 | G104: £m | H104: 0 | I104: 0 | J104: 0 | K104: 0 | L104: 0 | M104: 0 | N104: 0 | O104: 0 | P104: 0
E105: =Time!E$54 -> Forecast Period Flag | F105: =Time!F$54 -> 0 | G105: =Time!G$54 -> flag | H105: =Time!H$54 -> 5 | I105: =Time!I$54 -> 0 | J105: =Time!J$54 -> 0 | K105: =Time!K$54 -> 1 | L105: =Time!L$54 -> 1 | M105: =Time!M$54 -> 1 | N105: =Time!N$54 -> 1 | O105: =Time!O$54 -> 1 | P105: =Time!P$54 -> 0
E106: Actual net totex for cost sharing reconciliation - WR - Real | G106: £m | H106: =SUM(J106:P106) -> 57.33371822 | J106: =(J103 + J104)* J105 -> 0 | K106: =(K103 + K104)* K105 -> 8.867769342 | L106: =(L103 + L104)* L105 -> 9.739275527 | M106: 11.36339289 | N106: 14.96908486 | O106: 12.3941956 | P106: 0
D108: Profile for net totex for cost sharing
E110: =InpActive!E$35 -> Opex split profile - Cost sharing - WR | F110: =InpActive!F$35 -> 0 | G110: =InpActive!G$35 -> % | H110: =InpActive!H$35 -> 0 | I110: =InpActive!I$35 -> 0 | J110: =InpActive!J$35 -> 0 | K110: =InpActive!K$35 -> 0.1153862807 | L110: =InpActive!L$35 -> 0.1176454824 | M110: =InpActive!M$35 -> 0.1300671968 | N110: =InpActive!N$35 -> 0.1177064301 | O110: =InpActive!O$35 -> 0.1186490793 | P110: =InpActive!P$35 -> 0
E111: =InpActive!E$36 -> Capex split profile - Cost sharing - WR | F111: =InpActive!F$36 -> 0 | G111: =InpActive!G$36 -> % | H111: =InpActive!H$36 -> 0 | I111: =InpActive!I$36 -> 0 | J111: =InpActive!J$36 -> 0 | K111: =InpActive!K$36 -> 0.1541936957 | L111: =InpActive!L$36 -> 0.0832972197 | M111: =InpActive!M$36 -> 0.07591050322 | N111: =InpActive!N$36 -> 0.04860254653 | O111: =InpActive!O$36 -> 0.03854156545 | P111: =InpActive!P$36 -> 0
E112: Totex profile - Cost Sharing - WR | G112: % | H112: =SUM(J112:P112) -> 1 | J112: =SUM(J110:J111) -> 0 | K112: =SUM(K110:K111) -> 0.2695799765 | L112: 0.2009427021 | M112: 0.2059777 | N112: 0.1663089766 | O112: 0.1571906448 | P112: 0
E113: Totex profile - Cost Sharing - 5 year percentage - WR | F113: =H$59 -> 1 | G113: %
E115: =E$60 -> Totex profile - Base costs - 5 year percentage - WR | F115: =F$60 -> 1 | G115: =G$60 -> %
E116: WR Totex profile - Cost sharing 100% check | F116: =IF(OR($F$115 = 1, F115 = 0), 0, 1) -> 0 | G116: Check
E118: =InpActive!E$43 -> Net totex available for cost sharing - WR - Real | F118: =InpActive!F$43 -> 66.4 | G118: =InpActive!G$43 -> £m
E119: =E$112 -> Totex profile - Cost Sharing - WR | F119: =F$112 -> 0 | G119: % | H119: 1 | I119: 0 | J119: 0 | K119: 0.2695799765 | L119: 0.2009427021 | M119: 0.2059777 | N119: 0.1663089766 | O119: 0.1571906448 | P119: 0
E120: Net totex available for cost sharing profiled - WR - Real | G120: £m | H120: =SUM(J120:P120) -> 66.4 | J120: =J119 * $F118 -> 0 | K120: =K119 * $F118 -> 17.90011044 | L120: 13.34259542 | M120: 13.67691928 | N120: 11.04291605 | O120: 10.43745881 | P120: 0
E123: =E$120 -> Net totex available for cost sharing profiled - WR - Real | F123: 0 | G123: £m | H123: 66.4 | I123: 0 | J123: 0 | K123: 17.90011044 | L123: 13.34259542 | M123: 13.67691928 | N123: 11.04291605 | O123: 10.43745881 | P123: 0
E124: =E$84 -> Variance to forecast totex for wage adjustment - WR | F124: 0 | G124: £m | H124: -0.9539683911 | I124: 0 | J124: 0 | K124: 0.03968896873 | L124: 0.03021029693 | M124: -0.240083873 | N124: -0.3342529324 | O124: -0.4495308513 | P124: 0
E125: =InpActive!E$46 -> Total final WINEP reconciliation - WR - real | F125: =InpActive!F$46 -> 0 | G125: =InpActive!G$46 -> £m | H125: =InpActive!H$46 -> 0 | I125: =InpActive!I$46 -> 0 | J125: =InpActive!J$46 -> 0 | K125: =InpActive!K$46 -> 0 | L125: =InpActive!L$46 -> 0 | M125: =InpActive!M$46 -> 0 | N125: =InpActive!N$46 -> 0 | O125: =InpActive!O$46 -> 0 | P125: =InpActive!P$46 -> 0
E126: =E100 -> Performance related pay recovery mechanism adjustment - WR - real | F126: =F100 -> 0 | G126: £m | H126: 0 | I126: 0 | J126: 0 | K126: 0 | L126: 0 | M126: 0 | N126: 0 | O126: 0 | P126: 0
E127: Net totex available for cost sharing after adjustments profiled - WR - Real | G127: £m | H127: =SUM(J127:P127) -> 65.44603161 | J127: =SUM(J123:J126) -> 0 | K127: =SUM(K123:K126) -> 17.93979941 | L127: =SUM(L123:L126) -> 13.37280572 | M127: 13.43683541 | N127: 10.70866311 | O127: 9.98792796 | P127: 0
D129: Variance to forecast net totex for cost sharing
E130: =E$106 -> Actual net totex for cost sharing reconciliation - WR - Real | F130: 0 | G130: £m | H130: 57.33371822 | I130: 0 | J130: 0 | K130: 8.867769342 | L130: 9.739275527 | M130: 11.36339289 | N130: 14.96908486 | O130: 12.3941956 | P130: 0
E131: =E$127 -> Net totex available for cost sharing after adjustments profiled - WR - Real | F131: 0 | G131: £m | H131: 65.44603161 | I131: 0 | J131: 0 | K131: 17.93979941 | L131: 13.37280572 | M131: 13.43683541 | N131: 10.70866311 | O131: 9.98792796 | P131: 0
E132: Variance to forecast net totex for cost sharing - WR | G132: £m | H132: =SUM(J132:P132) -> -8.112313391 | J132: =J130 - J131 -> 0 | K132: -9.072030064 | L132: -3.63353019 | M132: -2.073442521 | N132: 4.260421748 | O132: 2.406267637 | P132: 0
D134: Variance to forecast net totex for cost sharing - Time adjusted
E135: =InpActive!E$288 -> Financing cost index | F135: =InpActive!F$288 -> 0 | G135: =InpActive!G$288 -> Index | H135: =InpActive!H$288 -> 0 | I135: =InpActive!I$288 -> 0 | J135: =InpActive!J$288 -> 0 | K135: =InpActive!K$288 -> 4 | L135: =InpActive!L$288 -> 3 | M135: =InpActive!M$288 -> 2 | N135: =InpActive!N$288 -> 1 | O135: =InpActive!O$288 -> 0 | P135: =InpActive!P$288 -> 0
E136: =InpActive!E$290 -> Real WACC CPIH Deflated - WR | F136: =InpActive!F$290 -> 0.0292 | G136: =InpActive!G$290 -> %
E137: Time value of money factor - WR | G137: Factor | J137: =(1+$F136) ^ J135 -> 1 | K137: 1.122016155 | L137: 1.090182817 | M137: 1.05925264 | N137: 1.0292 | O137: 1 | P137: 1
E139: =E$132 -> Variance to forecast net totex for cost sharing - WR | F139: 0 | G139: £m | H139: -8.112313391 | I139: 0 | J139: 0 | K139: -9.072030064 | L139: -3.63353019 | M139: -2.073442521 | N139: 4.260421748 | O139: 2.406267637 | P139: 0
E140: =E$137 -> Time value of money factor - WR | F140: 0 | G140: Factor | H140: 0 | I140: 0 | J140: 1 | K140: 1.122016155 | L140: 1.090182817 | M140: 1.05925264 | N140: 1.0292 | O140: 1 | P140: 1
E141: Time adjusted variance to forecast net totex for cost sharing - WR | G141: £m | H141: =SUM(J141:P141) -> -9.545382237 | J141: =J139 * J140 -> 0 | K141: -10.17896429 | L141: -3.961212179 | M141: -2.196299465 | N141: 4.384826063 | O141: 2.406267637 | P141: 0
E142: Total variance to forecast net totex for cost sharing - WR | F142: =$H141 -> -9.545382237 | G142: £m
D144: Under / Overperformance on net totex for cost sharing
E145: =E$142 -> Total variance to forecast net totex for cost sharing - WR | F145: =F$142 -> -9.545382237 | G145: =G$142 -> £m
E146: =E$39 -> Active Sharing Rate - Underperformance Rate - WR | F146: =F$39 -> 0.5613646332 | G146: =G$39 -> %
E147: Active adjustment for cost sharing - Net totex for cost sharing - WR - Real | F147: =F145 * (1-F146) -> -4.186942239 | G147: £m
E149: =InpActive!E$57 -> Ex ante allowance above Ofwat forecast - Water Resources - Real | F149: =InpActive!F$57 -> 0 | G149: =InpActive!G$57 -> £m
E150: =E$112 -> Totex profile - Cost Sharing - WR | F150: =F$112 -> 0 | G150: % | H150: 1 | I150: 0 | J150: 0 | K150: 0.2695799765 | L150: 0.2009427021 | M150: 0.2059777 | N150: 0.1663089766 | O150: 0.1571906448 | P150: 0
E151: Ex ante allowance profiled - WR - Real | G151: £m | H151: =SUM(J151:P151) -> 0 | J151: =J150 * $F149 -> 0 | K151: 0 | L151: 0 | M151: 0 | N151: 0 | O151: 0 | P151: 0
E153: =E$151 -> Ex ante allowance profiled - WR - Real | F153: 0 | G153: £m | H153: 0 | I153: 0 | J153: 0 | K153: 0 | L153: 0 | M153: 0 | N153: 0 | O153: 0 | P153: 0
E154: =E$137 -> Time value of money factor - WR | F154: 0 | G154: Factor | H154: 0 | I154: 0 | J154: 1 | K154: 1.122016155 | L154: 1.090182817 | M154: 1.05925264 | N154: 1.0292 | O154: 1 | P154: 1
E155: Ex ante allowance profiled - WR - Real - NPV adjusted | G155: £m | H155: =SUM(J155:P155) -> 0 | J155: =J153 * J154 -> 0 | K155: 0 | L155: 0 | M155: 0 | N155: 0 | O155: 0 | P155: 0
E156: NPV adjusted ex ante allowance - WR - Real | F156: =H155 -> 0 | G156: £m
E158: =InpActive!E$64 -> Actuals for CMA excluded items - WR - nominal | F158: =InpActive!F$64 -> 0 | G158: =InpActive!G$64 -> £m | H158: =InpActive!H$64 -> 0 | I158: =InpActive!I$64 -> 0 | J158: =InpActive!J$64 -> 0 | K158: =InpActive!K$64 -> 0 | L158: =InpActive!L$64 -> 0 | M158: =InpActive!M$64 -> 0 | N158: =InpActive!N$64 -> 0 | O158: =InpActive!O$64 -> 0 | P158: =InpActive!P$64 -> 0
E159: =Index!E$43 -> CPI(H): Fin year average - inflate from base year 2017-18 average - CALC | F159: =Index!F$43 -> 0 | G159: =Index!G$43 -> % | H159: =Index!H$43 -> 0 | I159: =Index!I$43 -> 0 | J159: =Index!J$43 -> 1.038621462 | K159: =Index!K$43 -> 1.04693747 | L159: =Index!L$43 -> 1.085399008 | M159: =Index!M$43 -> 1.180633296 | N159: =Index!N$43 -> 1.24795125 | O159: =Index!O$43 -> 1.280060979 | P159: =Index!P$43 -> 1.305662199
E160: Actuals for CMA excluded items - WR - real | G160: £m | J160: =J158 / J159 -> 0 | K160: =K158 / K159 -> 0 | L160: =L158 / L159 -> 0 | M160: 0 | N160: 0 | O160: 0 | P160: 0
E162: =InpActive!E$65 -> Allowance for CMA excluded items - WR - real | F162: =InpActive!F$65 -> 0 | G162: =InpActive!G$65 -> £m | H162: =InpActive!H$65 -> 0 | I162: =InpActive!I$65 -> 0 | J162: =InpActive!J$65 -> 0 | K162: =InpActive!K$65 -> 0 | L162: =InpActive!L$65 -> 0 | M162: =InpActive!M$65 -> 0 | N162: =InpActive!N$65 -> 0 | O162: =InpActive!O$65 -> 0 | P162: =InpActive!P$65 -> 0
E163: =E160 -> Actuals for CMA excluded items - WR - real | F163: =F160 -> 0 | G163: £m | H163: 0 | I163: 0 | J163: 0 | K163: =K160 -> 0 | L163: 0 | M163: 0 | N163: 0 | O163: 0 | P163: 0
E164: Variance to allowances for CMA excluded items - WR | G164: £m | H164: =SUM(J164:P164) -> 0 | J164: =J163-J162 -> 0 | K164: 0 | L164: =L163-L162 -> 0 | M164: 0 | N164: 0 | O164: 0 | P164: 0
E166: =E$164 -> Variance to allowances for CMA excluded items - WR | F166: =F$164 -> 0 | G166: £m | H166: 0 | I166: 0 | J166: 0 | K166: 0 | L166: 0 | M166: 0 | N166: 0 | O166: 0 | P166: 0
E167: =E$137 -> Time value of money factor - WR | F167: 0 | G167: Factor | H167: 0 | I167: 0 | J167: 1 | K167: 1.122016155 | L167: 1.090182817 | M167: 1.05925264 | N167: 1.0292 | O167: 1 | P167: 1
E168: Time value adjusted variance to allowances for CMA excluded items - WR - real | G168: £m | H168: =SUM(J168:P168) -> 0 | J168: =J166 * J167 -> 0 | K168: =K166 * K167 -> 0 | L168: 0 | M168: 0 | N168: 0 | O168: 0 | P168: 0
E169: Total variance to allowances for CMA excluded items - WR | F169: =$H168 -> 0 | G169: £m
E171: =E169 -> Total variance to allowances for CMA excluded items - WR | F171: =F169 -> 0 | G171: £m
E172: =InpActive!E66 -> CMA excluded items sharing rate - WR - real | F172: =InpActive!F66 -> 0 | G172: =InpActive!G66 -> %
E173: Allowable adjustment for CMA excluded items - WR - Real | F173: =(F171* F172) * -1 -> 0 | G173: £m
E175: =E147 -> Active adjustment for cost sharing - Net totex for cost sharing - WR - Real | F175: =F147 -> -4.186942239 | G175: =G147 -> £m
E176: =E$156 -> NPV adjusted ex ante allowance - WR - Real | F176: =F$156 -> 0 | G176: =G$156 -> £m
E177: =E90 -> (Under)/Overfunded wage related totex at PR19 - WR | F177: =F90 -> 0.9703870349 | G177: =G90 -> £m
E178: =E$173 -> Allowable adjustment for CMA excluded items - WR - Real | F178: =F$173 -> 0 | G178: £m
E179: =E101 -> Total Performance related pay recovery mechanism adjustment - WR - real | F179: =F101 -> 0 | G179: £m
E180: Total adjustment for cost sharing after ex ante allowance & wage adjustment - WR - Real | F180: =F175 - SUM(F176:F178) +F179 -> -5.157329274 | G180: £m
C182: Wholesaler bad debt sharing adjustment
E184: =InpActive!E$60 -> Business retail bad debt liability due to covid liquidity measures - WR - real | F184: =InpActive!F$60 -> 0 | G184: =InpActive!G$60 -> £m
E185: =E$39 -> Active Sharing Rate - Underperformance Rate - WR | F185: =F$39 -> 0.5613646332 | G185: =G$39 -> %
E186: Embedded customer share - WR | F186: =F184 * (1-F185) -> 0 | G186: £m
E188: =InpActive!E$61 -> Total Wholesaler Liability - WR - real | F188: =InpActive!F$61 -> 0 | G188: =InpActive!G$61 -> £m
E189: =E$39 -> Active Sharing Rate - Underperformance Rate - WR | F189: =F$39 -> 0.5613646332 | G189: =G$39 -> %
E190: Wholesaler liability - WR | F190: =F188 * (F189) -> 0 | G190: £m
E192: =InpActive!E$60 -> Business retail bad debt liability due to covid liquidity measures - WR - real | F192: =InpActive!F$60 -> 0 | G192: =InpActive!G$60 -> £m
E193: =E$190 -> Wholesaler liability - WR | F193: =F$190 -> 0 | G193: £m
E194: Customer Liability | F194: =F192 - F193 -> 0 | G194: £m
E196: =E194 -> Customer Liability | F196: =F194 -> 0 | G196: £m
E197: =E186 -> Embedded customer share - WR | F197: =F186 -> 0 | G197: £m
E198: Wholesaler bad debt adjustment - WR | F198: =IF(F196 > F197, F196 - F197, 0) -> 0 | G198: £m
C200: Cost sharing adjustment RCV/Revenue Split
E202: =E$180 -> Total adjustment for cost sharing after ex ante allowance & wage adjustment - WR - Real | F202: =F$180 -> -5.157329274 | G202: =G$180 -> £m
E203: =InpActive!E$55 -> Weighted average PAYG rate - WR | F203: =InpActive!F$55 -> 0.641 | G203: =InpActive!G$55 -> %
E204: Cost sharing revenue exc bad debt adjustment- WR - Real | F204: =F202 * ( $F$203) -> -3.305848065 | G204: £m
E206: =E$204 -> Cost sharing revenue exc bad debt adjustment- WR - Real | F206: =F$204 -> -3.305848065 | G206: £m
E207: =E198 -> Wholesaler bad debt adjustment - WR | F207: =F198 -> 0 | G207: =G198 -> £m
E208: Cost sharing revenue adjustment - WR - Real | F208: =SUM(F206:F207) -> -3.305848065 | G208: £m
E210: =E$180 -> Total adjustment for cost sharing after ex ante allowance & wage adjustment - WR - Real | F210: =F$180 -> -5.157329274 | G210: £m
E211: =InpActive!E$55 -> Weighted average PAYG rate - WR | F211: =InpActive!F$55 -> 0.641 | G211: =InpActive!G$55 -> %
E212: Cost sharing RCV adjustment - WR - Real | F212: =F210 * (1 - $F$211) -> -1.851481209 | G212: £m
A214: WATER NETWORK
C216: Adjustment For Wage Growth
D218: Totex for wage adjustment
E219: =InpActive!E$70 -> Base Costs - WN - Real | F219: =InpActive!F$70 -> 486.2 | G219: =InpActive!G$70 -> £m
E220: =InpActive!E$71 -> Metering (excluding new connections) for meters requested by optants, customers and businesses - WN - Real | F220: =InpActive!F$71 -> 10.92401635 | G220: =InpActive!G$71 -> £m
E221: Totex available for wage indexation adjustment - WN - Real | F221: =SUM(F219:F220) -> 497.1240164 | G221: £m
D223: Profile for totex for wage adjustment
E224: =InpActive!E$73 -> Opex Split Profile - Base costs - WN | F224: =InpActive!F$73 -> 0 | G224: =InpActive!G$73 -> % | H224: =InpActive!H$73 -> 0 | I224: =InpActive!I$73 -> 0 | J224: =InpActive!J$73 -> 0 | K224: =InpActive!K$73 -> 0.13 | L224: =InpActive!L$73 -> 0.13 | M224: =InpActive!M$73 -> 0.13 | N224: =InpActive!N$73 -> 0.13 | O224: =InpActive!O$73 -> 0.13 | P224: =InpActive!P$73 -> 0
E225: =InpActive!E$74 -> Capex Split Profile - Base costs - WN | F225: =InpActive!F$74 -> 0 | G225: =InpActive!G$74 -> % | H225: =InpActive!H$74 -> 0 | I225: =InpActive!I$74 -> 0 | J225: =InpActive!J$74 -> 0 | K225: =InpActive!K$74 -> 0.069 | L225: =InpActive!L$74 -> 0.06 | M225: =InpActive!M$74 -> 0.097 | N225: =InpActive!N$74 -> 0.067 | O225: =InpActive!O$74 -> 0.057 | P225: =InpActive!P$74 -> 0
E226: Totex profile - Base costs - WN | G226: % | H226: =SUM(J226:P226) -> 1 | J226: =SUM(J224:J225) -> 0 | K226: 0.199 | L226: 0.19 | M226: 0.227 | N226: 0.197 | O226: 0.187 | P226: 0
E227: Totex profile - Base costs - 5 year percentage - WN | F227: =H$226 -> 1 | G227: %
E229: =E$227 -> Totex profile - Base costs - 5 year percentage - WN | F229: =F$227 -> 1 | G229: =G$227 -> %
E230: WN Totex profile - Base costs 100% check | F230: =IF(OR($F$229 = 1, F229 = 0), 0, 1) -> 0 | G230: Check
E232: =E$221 -> Totex available for wage indexation adjustment - WN - Real | F232: =F$221 -> 497.1240164 | G232: =G$221 -> £m
E233: =Time!E$54 -> Forecast Period Flag | F233: =Time!F$54 -> 0 | G233: =Time!G$54 -> flag | H233: =Time!H$54 -> 5 | I233: =Time!I$54 -> 0 | J233: =Time!J$54 -> 0 | K233: =Time!K$54 -> 1 | L233: =Time!L$54 -> 1 | M233: =Time!M$54 -> 1 | N233: =Time!N$54 -> 1 | O233: =Time!O$54 -> 1 | P233: =Time!P$54 -> 0
E234: =E$226 -> Totex profile - Base costs - WN | F234: 0 | G234: % | H234: 1 | I234: 0 | J234: 0 | K234: 0.199 | L234: 0.19 | M234: 0.227 | N234: 0.197 | O234: 0.187 | P234: 0
E235: Profiled Totex available for wage indexation adjustment - WN - Real | G235: £m | H235: =SUM(J235:P235) -> 497.1240164 | J235: =IF(J233 = 1, J234 * $F232, 0) -> 0 | K235: 98.92767925 | L235: 94.45356311 | M235: 112.8471517 | N235: 97.93343122 | O235: 92.96219106 | P235: 0
D237: Totex applicable for wage adjustment by year
E238: =InpActive!E$255 -> Percentage totex linked to wage growth - WN | F238: =InpActive!F$255 -> 0.386 | G238: =InpActive!G$255 -> %
E239: =E235 -> Profiled Totex available for wage indexation adjustment - WN - Real | F239: 0 | G239: £m | H239: 497.1240164 | I239: 0 | J239: 0 | K239: 98.92767925 | L239: 94.45356311 | M239: 112.8471517 | N239: 97.93343122 | O239: 92.96219106 | P239: 0
E240: Profiled Net totex available for wage adj - WN - Real | G240: £m | H240: =SUM(J240:P240) -> 191.8898703 | J240: =J239 * $F238 -> 0 | K240: 38.18608419 | L240: 36.45907536 | M240: 43.55900056 | N240: 37.80230445 | O240: 35.88340575 | P240: 0
D242: Adjustment factor for wage linked totex
E243: =Time!E$54 -> Forecast Period Flag | F243: =Time!F$54 -> 0 | G243: =Time!G$54 -> flag | H243: =Time!H$54 -> 5 | I243: =Time!I$54 -> 0 | J243: =Time!J$54 -> 0 | K243: =Time!K$54 -> 1 | L243: =Time!L$54 -> 1 | M243: =Time!M$54 -> 1 | N243: =Time!N$54 -> 1 | O243: =Time!O$54 -> 1 | P243: =Time!P$54 -> 0
E244: =E$240 -> Profiled Net totex available for wage adj - WN - Real | F244: 0 | G244: £m | H244: 191.8898703 | I244: 0 | J244: 0 | K244: 38.18608419 | L244: 36.45907536 | M244: 43.55900056 | N244: 37.80230445 | O244: 35.88340575 | P244: 0
E245: =E$26 -> Real adjustment factor for wages | F245: 0 | G245: % | H245: 0 | I245: 0 | J245: 0 | K245: 1.008871737 | L245: 1.005886545 | M245: 0.9538173244 | N245: 0.9226273204 | O245: 0.8965277273 | P245: 0
E246: Profiled adjustment wage related totex - WN - Real | G246: £m | H246: =SUM(J246:P246) -> 183.7937909 | J246: =IF(J243 = 1, J244 * J245, 0) -> 0 | K246: 38.52486107 | L246: 36.67369334 | M246: 41.54732937 | N246: 34.87743886 | O246: 32.1704682 | P246: 0
D248: Variance to forecast wage linked totex
E249: =E$246 -> Profiled adjustment wage related totex - WN - Real | F249: 0 | G249: £m | H249: 183.7937909 | I249: 0 | J249: 0 | K249: 38.52486107 | L249: 36.67369334 | M249: 41.54732937 | N249: 34.87743886 | O249: 32.1704682 | P249: 0
E250: =E$240 -> Profiled Net totex available for wage adj - WN - Real | F250: 0 | G250: £m | H250: 191.8898703 | I250: 0 | J250: 0 | K250: 38.18608419 | L250: 36.45907536 | M250: 43.55900056 | N250: 37.80230445 | O250: 35.88340575 | P250: 0
E251: Variance to forecast totex for wage adjustment - WN | G251: £m | H251: =SUM(J251:P251) -> -8.09607946 | J251: =J249 - J250 -> 0 | K251: 0.3387768829 | L251: 0.2146179829 | M251: -2.011671192 | N251: -2.924865589 | O251: -3.712937545 | P251: 0
D253: Wage totex overfunded/unfunded at PR19
E254: =E$251 -> Variance to forecast totex for wage adjustment - WN | F254: =F$251 -> 0 | G254: £m | H254: -8.09607946 | I254: 0 | J254: 0 | K254: 0.3387768829 | L254: 0.2146179829 | M254: -2.011671192 | N254: -2.924865589 | O254: -3.712937545 | P254: 0
E255: =E303 -> Time value of money factor - WN | F255: 0 | G255: Factor | H255: 0 | I255: 0 | J255: 1 | K255: =K303 -> 1.122016155 | L255: 1.090182817 | M255: 1.05925264 | N255: 1.0292 | O255: 1 | P255: 1
E256: Variance to forecast totex for wage adjustment - NPV adjusted - WN | G256: £m | H256: =SUM(J256:P256) -> -8.239991257 | J256: =J254*J255 -> 0 | K256: =K254*K255 -> 0.3801131357 | L256: =L254*L255 -> 0.2339728372 | M256: -2.130868021 | N256: -3.010271664 | O256: -3.712937545 | P256: 0
E257: (Under)/Overfunded wage related totex at PR19 - WN | F257: =H256 * -1 -> 8.239991257 | G257: £m
C260: Cost sharing on net totex available for reconciliation
E262: =InpActive!E$83 -> Net totex for cost sharing reconciliation - WN - Nominal | F262: =InpActive!F$83 -> 0 | G262: =InpActive!G$83 -> £m | H262: =InpActive!H$83 -> 0 | I262: =InpActive!I$83 -> 0 | J262: =InpActive!J$83 -> 0 | K262: =InpActive!K$83 -> 119.906 | L262: =InpActive!L$83 -> 118.23 | M262: =InpActive!M$83 -> 131.114 | N262: =InpActive!N$83 -> 141.2916645 | O262: =InpActive!O$83 -> 118.7974979 | P262: =InpActive!P$83 -> 0
E263: =Index!E$43 -> CPI(H): Fin year average - inflate from base year 2017-18 average - CALC | F263: =Index!F$43 -> 0 | G263: =Index!G$43 -> % | H263: =Index!H$43 -> 0 | I263: =Index!I$43 -> 0 | J263: =Index!J$43 -> 1.038621462 | K263: =Index!K$43 -> 1.04693747 | L263: =Index!L$43 -> 1.085399008 | M263: =Index!M$43 -> 1.180633296 | N263: =Index!N$43 -> 1.24795125 | O263: =Index!O$43 -> 1.280060979 | P263: =Index!P$43 -> 1.305662199
E264: Actual net totex for cost sharing reconciliation - WN - Real | G264: £m | J264: =J262 / J263 -> 0 | K264: =K262 / K263 -> 114.5302403 | L264: =L262 / L263 -> 108.9276838 | M264: =M262 / M263 -> 111.0539576 | N264: =N262 / N263 -> 113.2188974 | O264: =O262 / O263 -> 92.80612394 | P264: =P262 / P263 -> 0
... 221 more rows

Sheet Abstraction & Rates
A1: =RIGHT(CELL("filename", $A$1), LEN(CELL("filename", $A$1)) - SEARCH("]", CELL("filename", $A$1)))&" Uncertainty Mechanism" -> Abstraction & Rates Uncertainty Mechanism
E2: =Time!E$22 -> Model Period BEG | J2: =Time!J$22 -> 2019-04-01 | K2: =Time!K$22 -> 2020-04-01 | L2: =Time!L$22 -> 2021-04-01 | M2: =Time!M$22 -> 2022-04-01 | N2: =Time!N$22 -> 2023-04-01 | O2: =Time!O$22 -> 2024-04-01 | P2: =Time!P$22 -> 2025-04-01
E3: =Time!E$23 -> Model Period END | F3: =Check!F$8 -> 0 | G3: Error chks | J3: =Time!J$23 -> 2020-03-31 | K3: =Time!K$23 -> 2021-03-31 | L3: =Time!L$23 -> 2022-03-31 | M3: =Time!M$23 -> 2023-03-31 | N3: =Time!N$23 -> 2024-03-31 | O3: =Time!O$23 -> 2025-03-31 | P3: =Time!P$23 -> 2026-03-31
E4: =Time!E$59 -> Pre Forecast vs Forecast | J4: =Time!J$59 -> Pre Fcst | K4: =Time!K$59 -> Forecast | L4: =Time!L$59 -> Forecast | M4: =Time!M$59 -> Forecast | N4: =Time!N$59 -> Forecast | O4: =Time!O$59 -> Forecast | P4: =Time!P$59 -> Post-Fcst
E5: =Time!E$101 -> Financial Year Ending | J5: =Time!J$101 -> 2020 | K5: =Time!K$101 -> 2021 | L5: =Time!L$101 -> 2022 | M5: =Time!M$101 -> 2023 | N5: =Time!N$101 -> 2024 | O5: =Time!O$101 -> 2025 | P5: =Time!P$101 -> 2026
E6: =Time!E$11 -> Model column counter | F6: Constant | G6: Unit | H6: Total | J6: =Time!J$11 -> 1 | K6: =Time!K$11 -> 2 | L6: =Time!L$11 -> 3 | M6: =Time!M$11 -> 4 | N6: =Time!N$11 -> 5 | O6: =Time!O$11 -> 6 | P6: =Time!P$11 -> 7
A8: WATER RESOURCES
C10: Uncertainty mechanism for business rates
D12: Profile total forecast business rates
E13: =InpActive!E$49 -> Business rates - Forecast - WR - Real | F13: =InpActive!F$49 -> 3.281014591 | G13: =InpActive!G$49 -> £m
E14: =InpActive!E$38 -> Business Rates forecast profile - WR | F14: =InpActive!F$38 -> 0 | G14: =InpActive!G$38 -> % | H14: =InpActive!H$38 -> 0 | I14: =InpActive!I$38 -> 0 | J14: =InpActive!J$38 -> 0 | K14: =InpActive!K$38 -> 0.2 | L14: =InpActive!L$38 -> 0.2 | M14: =InpActive!M$38 -> 0.2 | N14: =InpActive!N$38 -> 0.2 | O14: =InpActive!O$38 -> 0.2 | P14: =InpActive!P$38 -> 0
E15: Business rates - Forecast Profiled - WR - Real | G15: £m | H15: =SUM(J15:P15) -> 3.281014591 | J15: =J14 * $F13 -> 0 | K15: 0.6562029183 | L15: 0.6562029183 | M15: 0.6562029183 | N15: 0.6562029183 | O15: 0.6562029183 | P15: 0
E17: =InpActive!E$52 -> Business rates - Actual - WR - Nominal | F17: =InpActive!F$52 -> 0 | G17: =InpActive!G$52 -> £m | H17: =InpActive!H$52 -> 0 | I17: =InpActive!I$52 -> 0 | J17: =InpActive!J$52 -> 0 | K17: =InpActive!K$52 -> 0.9676407112 | L17: =InpActive!L$52 -> 0.961387745 | M17: =InpActive!M$52 -> 0.974 | N17: =InpActive!N$52 -> 0.7047567365 | O17: =InpActive!O$52 -> 0.6956154688 | P17: =InpActive!P$52 -> 0
E18: =Index!E$43 -> CPI(H): Fin year average - inflate from base year 2017-18 average - CALC | F18: =Index!F$43 -> 0 | G18: =Index!G$43 -> % | H18: =Index!H$43 -> 0 | I18: =Index!I$43 -> 0 | J18: =Index!J$43 -> 1.038621462 | K18: =Index!K$43 -> 1.04693747 | L18: =Index!L$43 -> 1.085399008 | M18: =Index!M$43 -> 1.180633296 | N18: =Index!N$43 -> 1.24795125 | O18: =Index!O$43 -> 1.280060979 | P18: =Index!P$43 -> 1.305662199
E19: Business rates - Outturn - WR - Real | G19: £m | J19: =J17 / J18 -> 0 | K19: =K17 / K18 -> 0.9242583621 | L19: =L17 / L18 -> 0.8857459216 | M19: 0.8249809685 | N19: 0.5647309833 | O19: 0.5434236963 | P19: 0
D21: Variance to forecast business rates
E22: =E$19 -> Business rates - Outturn - WR - Real | F22: =F$19 -> 0 | G22: £m | H22: 0 | I22: 0 | J22: 0 | K22: 0.9242583621 | L22: 0.8857459216 | M22: 0.8249809685 | N22: 0.5647309833 | O22: 0.5434236963 | P22: 0
E23: =E$15 -> Business rates - Forecast Profiled - WR - Real | F23: 0 | G23: £m | H23: 3.281014591 | I23: 0 | J23: 0 | K23: 0.6562029183 | L23: 0.6562029183 | M23: 0.6562029183 | N23: 0.6562029183 | O23: 0.6562029183 | P23: 0
E24: Variance between forecast and outturn business rates - WR - Real | G24: £m | H24: =SUM(J24:P24) -> 0.4621253403 | J24: =J22 - J23 -> 0 | K24: 0.2680554438 | L24: 0.2295430033 | M24: 0.1687780502 | N24: -0.09147193502 | O24: -0.112779222 | P24: 0
D26: Variance to forecast business rates – Time adjusted
E27: =E$24 -> Variance between forecast and outturn business rates - WR - Real | F27: 0 | G27: £m | H27: 0.4621253403 | I27: 0 | J27: 0 | K27: 0.2680554438 | L27: 0.2295430033 | M27: 0.1687780502 | N27: -0.09147193502 | O27: -0.112779222 | P27: 0
E28: ='Cost sharing calculations'!E$137 -> Time value of money factor - WR | F28: ='Cost sharing calculations'!F$137 -> 0 | G28: ='Cost sharing calculations'!G$137 -> Factor | H28: ='Cost sharing calculations'!H$137 -> 0 | I28: ='Cost sharing calculations'!I$137 -> 0 | J28: ='Cost sharing calculations'!J$137 -> 1 | K28: ='Cost sharing calculations'!K$137 -> 1.122016155 | L28: ='Cost sharing calculations'!L$137 -> 1.090182817 | M28: ='Cost sharing calculations'!M$137 -> 1.05925264 | N28: ='Cost sharing calculations'!N$137 -> 1.0292 | O28: ='Cost sharing calculations'!O$137 -> 1 | P28: ='Cost sharing calculations'!P$137 -> 1
E29: Variance on business rates time value adjusted- WR - Real | G29: £m | H29: =SUM(J29:P29) -> 0.5228628342 | J29: =J27 * J28 -> 0 | K29: 0.3007625384 | L29: 0.250243838 | M29: 0.1787785953 | N29: -0.09414291552 | O29: -0.112779222 | P29: 0
E30: Adjustment for business rates - WR - Real | F30: =H$29 -> 0.5228628342 | G30: £m
D32: Under / Overperformance business rates
E33: =InpActive!E$280 -> Cost sharing rates Business rates - Overperformance | F33: =InpActive!F$280 -> 0.25 | G33: =InpActive!G$280 -> %
E34: =E$30 -> Adjustment for business rates - WR - Real | F34: =F$30 -> 0.5228628342 | G34: =G$30 -> £m
E35: Business Rates Outperformance Adjustment - WR - Real | F35: =IF( F34 < 0, $F$34 * (1 - F33), 0) -> 0 | G35: £m
E37: =InpActive!E$281 -> Cost sharing rates Business rates - Underperformance | F37: =InpActive!F$281 -> 0.25 | G37: =InpActive!G$281 -> %
E38: =E$30 -> Adjustment for business rates - WR - Real | F38: =F$30 -> 0.5228628342 | G38: =G$30 -> £m
E39: Business Rates Underperformance Adjustment - WR - Real | F39: =IF( F38 > 0, $F$38 * (1 - F37), 0) -> 0.3921471256 | G39: £m
E41: =E$35 -> Business Rates Outperformance Adjustment - WR - Real | F41: =F$35 -> 0 | G41: =G$35 -> £m
E42: =E$39 -> Business Rates Underperformance Adjustment - WR - Real | F42: =F$39 -> 0.3921471256 | G42: =G$39 -> £m
E43: Active adjustment for business rates uncertainty mechanism - WR - Real | F43: =IF(F41 <> 0, F41, F42) -> 0.3921471256 | G43: £m
C45: Uncertainty mechanism for abstraction charges
D47: Profile total forecast abstraction charges
E48: =InpActive!E$50 -> Abstraction charges - Forecast - WR - Real | F48: =InpActive!F$50 -> 11.22251102 | G48: =InpActive!G$50 -> £m
E49: =InpActive!E$39 -> Abstraction Charges forecast profile - WR | F49: =InpActive!F$39 -> 0 | G49: =InpActive!G$39 -> % | H49: =InpActive!H$39 -> 0 | I49: =InpActive!I$39 -> 0 | J49: =InpActive!J$39 -> 0 | K49: =InpActive!K$39 -> 0.2 | L49: =InpActive!L$39 -> 0.2 | M49: =InpActive!M$39 -> 0.2 | N49: =InpActive!N$39 -> 0.2 | O49: =InpActive!O$39 -> 0.2 | P49: =InpActive!P$39 -> 0
E50: Abstraction charges - Forecast Profiled - WR - Real | G50: £m | H50: =SUM(J50:P50) -> 11.22251102 | J50: =J49 * $F48 -> 0 | K50: 2.244502205 | L50: 2.244502205 | M50: 2.244502205 | N50: 2.244502205 | O50: 2.244502205 | P50: 0
E52: =InpActive!E$53 -> Abstraction charges - Actual - WR - Nominal | F52: =InpActive!F$53 -> 0 | G52: =InpActive!G$53 -> £m | H52: =InpActive!H$53 -> 0 | I52: =InpActive!I$53 -> 0 | J52: =InpActive!J$53 -> 0 | K52: =InpActive!K$53 -> 2.479462638 | L52: =InpActive!L$53 -> 2.583545016 | M52: =InpActive!M$53 -> 2.732 | N52: =InpActive!N$53 -> 2.873910798 | O52: =InpActive!O$53 -> 2.873910785 | P52: =InpActive!P$53 -> 0
E53: =Index!E$43 -> CPI(H): Fin year average - inflate from base year 2017-18 average - CALC | F53: =Index!F$43 -> 0 | G53: =Index!G$43 -> % | H53: =Index!H$43 -> 0 | I53: =Index!I$43 -> 0 | J53: =Index!J$43 -> 1.038621462 | K53: =Index!K$43 -> 1.04693747 | L53: =Index!L$43 -> 1.085399008 | M53: =Index!M$43 -> 1.180633296 | N53: =Index!N$43 -> 1.24795125 | O53: =Index!O$43 -> 1.280060979 | P53: =Index!P$43 -> 1.305662199
E54: Abstraction charges - Outturn - WR - Real | G54: £m | J54: =J52 / J53 -> 0 | K54: =K52 / K53 -> 2.368300599 | L54: =L52 / L53 -> 2.380272135 | M54: 2.314012326 | N54: 2.302903097 | O54: 2.245135843 | P54: 0
D56: Variance to forecast abstraction charges
E57: =E$54 -> Abstraction charges - Outturn - WR - Real | F57: =F$54 -> 0 | G57: £m | H57: 0 | I57: 0 | J57: 0 | K57: 2.368300599 | L57: 2.380272135 | M57: 2.314012326 | N57: 2.302903097 | O57: 2.245135843 | P57: 0
E58: =E$50 -> Abstraction charges - Forecast Profiled - WR - Real | F58: =F$50 -> 0 | G58: £m | H58: 11.22251102 | I58: 0 | J58: 0 | K58: 2.244502205 | L58: 2.244502205 | M58: 2.244502205 | N58: 2.244502205 | O58: 2.244502205 | P58: 0
E59: Variance between forecast and outturn abstraction charges - WR - Real | G59: £m | H59: =SUM(J59:P59) -> 0.3881129771 | J59: =J57 - J58 -> 0 | K59: 0.1237983945 | L59: 0.1357699307 | M59: 0.06951012178 | N59: 0.05840089205 | O59: 0.0006336380992 | P59: 0
D61: Variance to forecast abstraction charges – Time adjusted
E62: =E$59 -> Variance between forecast and outturn abstraction charges - WR - Real | F62: =F$59 -> 0 | G62: £m | H62: 0.3881129771 | I62: 0 | J62: 0 | K62: 0.1237983945 | L62: 0.1357699307 | M62: 0.06951012178 | N62: 0.05840089205 | O62: 0.0006336380992 | P62: 0
E63: ='Cost sharing calculations'!E$137 -> Time value of money factor - WR | F63: ='Cost sharing calculations'!F$137 -> 0 | G63: ='Cost sharing calculations'!G$137 -> Factor | H63: ='Cost sharing calculations'!H$137 -> 0 | I63: ='Cost sharing calculations'!I$137 -> 0 | J63: ='Cost sharing calculations'!J$137 -> 1 | K63: ='Cost sharing calculations'!K$137 -> 1.122016155 | L63: ='Cost sharing calculations'!L$137 -> 1.090182817 | M63: ='Cost sharing calculations'!M$137 -> 1.05925264 | N63: ='Cost sharing calculations'!N$137 -> 1.0292 | O63: ='Cost sharing calculations'!O$137 -> 1 | P63: ='Cost sharing calculations'!P$137 -> 1
E64: Variance on abstraction charges time value adjusted- WR - Real | G64: £m | H64: =SUM(J64:P64) -> 0.4212864603 | J64: =J62 * J63 -> 0 | K64: 0.1389037986 | L64: 0.1480140455 | M64: 0.07362878 | N64: 0.0601061981 | O64: 0.0006336380992 | P64: 0
E65: Adjustment for abstraction charges - WR - Real | F65: =H$64 -> 0.4212864603 | G65: £m
D67: Under / Overperformance abstraction charges
E68: =InpActive!E$282 -> Cost sharing rates Abstraction - Overperformance | F68: =InpActive!F$282 -> 0.25 | G68: =InpActive!G$282 -> %
E69: =E$65 -> Adjustment for abstraction charges - WR - Real | F69: =F$65 -> 0.4212864603 | G69: £m
E70: Abstraction charges Outperformance Adjustment - WR - Real | F70: =IF( F69 < 0, F69 * (1 - F68), 0) -> 0 | G70: £m
E72: =InpActive!E$283 -> Cost sharing rates Abstraction - Underperformance | F72: =InpActive!F$283 -> 0.25 | G72: =InpActive!G$283 -> %
E73: =E$65 -> Adjustment for abstraction charges - WR - Real | F73: =F$65 -> 0.4212864603 | G73: £m
E74: Abstraction charges Underperformance Adjustment - WR - Real | F74: =IF( F73 > 0, F73 * (1 - F72), 0) -> 0.3159648452 | G74: £m
E76: =E$70 -> Abstraction charges Outperformance Adjustment - WR - Real | F76: =F$70 -> 0 | G76: £m
E77: =E$74 -> Abstraction charges Underperformance Adjustment - WR - Real | F77: =F$74 -> 0.3159648452 | G77: £m
E78: Active adjustment for abstraction charges uncertainty mechanism - WR - Real | F78: =IF(F76 <> 0, F76, F77) -> 0.3159648452 | G78: £m
E80: =E43 -> Active adjustment for business rates uncertainty mechanism - WR - Real | F80: =F43 -> 0.3921471256 | G80: £m
E81: =E78 -> Active adjustment for abstraction charges uncertainty mechanism - WR - Real | F81: =F78 -> 0.3159648452 | G81: £m
E82: Active adjustment for abstraction charges & business rates uncertainty mechanism - WR - Real | F82: =SUM(F80:F81) -> 0.7081119709 | G82: £m
E84: =E82 -> Active adjustment for abstraction charges & business rates uncertainty mechanism - WR - Real | F84: =F82 -> 0.7081119709 | G84: £m
E85: =InpActive!E$55 -> Weighted average PAYG rate - WR | F85: =InpActive!F$55 -> 0.641 | G85: =InpActive!G$55 -> %
E86: Revenue adjustment business rates and abstraction - WR - Real | F86: =F84 * $F$85 -> 0.4538997733 | G86: £m
E88: =E$82 -> Active adjustment for abstraction charges & business rates uncertainty mechanism - WR - Real | F88: =F$82 -> 0.7081119709 | G88: £m
E89: =InpActive!E$55 -> Weighted average PAYG rate - WR | F89: =InpActive!F$55 -> 0.641 | G89: =InpActive!G$55 -> %
E90: RCV adjustment business rates and abstraction - WR - Real | F90: =F88 * (1 - $F$89) -> 0.2542121975 | G90: £m
A92: WATER NETWORK
C94: Uncertainty mechanism for business rates
D96: Profile total forecast business rates
E97: =InpActive!E$90 -> Business rates - Forecast - WN - Real | F97: =InpActive!F$90 -> 68.60922797 | G97: =InpActive!G$90 -> £m
E98: =InpActive!E$79 -> Business Rates forecast profile - WN | F98: =InpActive!F$79 -> 0 | G98: =InpActive!G$79 -> % | H98: =InpActive!H$79 -> 0 | I98: =InpActive!I$79 -> 0 | J98: =InpActive!J$79 -> 0 | K98: =InpActive!K$79 -> 0.2 | L98: =InpActive!L$79 -> 0.2 | M98: =InpActive!M$79 -> 0.2 | N98: =InpActive!N$79 -> 0.2 | O98: =InpActive!O$79 -> 0.2 | P98: =InpActive!P$79 -> 0
E99: Business rates - Forecast Profiled - WN - Real | G99: £m | H99: =SUM(J99:P99) -> 68.60922797 | J99: =J98 * $F97 -> 0 | K99: 13.72184559 | L99: 13.72184559 | M99: 13.72184559 | N99: 13.72184559 | O99: 13.72184559 | P99: 0
E101: =InpActive!E$93 -> Business rates - Actual - WN - Nominal | F101: =InpActive!F$93 -> 0 | G101: =InpActive!G$93 -> £m | H101: =InpActive!H$93 -> 0 | I101: =InpActive!I$93 -> 0 | J101: =InpActive!J$93 -> 0 | K101: =InpActive!K$93 -> 15.05175258 | L101: =InpActive!L$93 -> 14.92980756 | M101: =InpActive!M$93 -> 14.994 | N101: =InpActive!N$93 -> 10.84339782 | O101: =InpActive!O$93 -> 10.70275014 | P101: =InpActive!P$93 -> 0
E102: =Index!E$43 -> CPI(H): Fin year average - inflate from base year 2017-18 average - CALC | F102: =Index!F$43 -> 0 | G102: =Index!G$43 -> % | H102: =Index!H$43 -> 0 | I102: =Index!I$43 -> 0 | J102: =Index!J$43 -> 1.038621462 | K102: =Index!K$43 -> 1.04693747 | L102: =Index!L$43 -> 1.085399008 | M102: =Index!M$43 -> 1.180633296 | N102: =Index!N$43 -> 1.24795125 | O102: =Index!O$43 -> 1.280060979 | P102: =Index!P$43 -> 1.305662199
E103: Business rates - Outturn - WN - Real | G103: £m | J103: =J101 / J102 -> 0 | K103: =K101 / K102 -> 14.3769356 | L103: =L101 / L102 -> 13.75513286 | M103: =M101 / M102 -> 12.6999637 | N103: =N101 / N102 -> 8.68895946 | O103: =O101 / O102 -> 8.36112522 | P103: =P101 / P102 -> 0
D105: Variance to forecast business rates
E106: =E$103 -> Business rates - Outturn - WN - Real | F106: =F$103 -> 0 | G106: £m | H106: 0 | I106: 0 | J106: 0 | K106: 14.3769356 | L106: 13.75513286 | M106: 12.6999637 | N106: 8.68895946 | O106: 8.36112522 | P106: 0
E107: =E$99 -> Business rates - Forecast Profiled - WN - Real | F107: 0 | G107: £m | H107: 68.60922797 | I107: 0 | J107: 0 | K107: 13.72184559 | L107: 13.72184559 | M107: 13.72184559 | N107: 13.72184559 | O107: 13.72184559 | P107: 0
E108: Variance between forecast and outturn business rates - WN - Real | G108: £m | H108: =SUM(J108:P108) -> -10.72711114 | J108: =J106 - J107 -> 0 | K108: 0.6550900011 | L108: 0.03328726142 | M108: -1.021881896 | N108: -5.032886134 | O108: -5.360720374 | P108: 0
D110: Variance to forecast business rates – Time adjusted
E111: =E$108 -> Variance between forecast and outturn business rates - WN - Real | F111: 0 | G111: £m | H111: -10.72711114 | I111: 0 | J111: 0 | K111: 0.6550900011 | L111: 0.03328726142 | M111: -1.021881896 | N111: -5.032886134 | O111: -5.360720374 | P111: 0
E112: ='Cost sharing calculations'!E$303 -> Time value of money factor - WN | F112: ='Cost sharing calculations'!F$303 -> 0 | G112: ='Cost sharing calculations'!G$303 -> Factor | H112: ='Cost sharing calculations'!H$303 -> 0 | I112: ='Cost sharing calculations'!I$303 -> 0 | J112: ='Cost sharing calculations'!J$303 -> 1 | K112: ='Cost sharing calculations'!K$303 -> 1.122016155 | L112: ='Cost sharing calculations'!L$303 -> 1.090182817 | M112: ='Cost sharing calculations'!M$303 -> 1.05925264 | N112: ='Cost sharing calculations'!N$303 -> 1.0292 | O112: ='Cost sharing calculations'!O$303 -> 1 | P112: ='Cost sharing calculations'!P$303 -> 1
E113: Variance on business rates time value adjusted- WN - Real | G113: £m | H113: =SUM(J113:P113) -> -10.85168711 | J113: =J111 * J112 -> 0 | K113: 0.7350215644 | L113: 0.03628920043 | M113: -1.082431096 | N113: -5.17984641 | O113: -5.360720374 | P113: 0
E114: Adjustment for business rates for cost sharing - WN - Real | F114: =H$113 -> -10.85168711 | G114: £m
D116: Under / Overperformance business rates
E117: =InpActive!E$280 -> Cost sharing rates Business rates - Overperformance | F117: =InpActive!F$280 -> 0.25 | G117: =InpActive!G$280 -> %
E118: =E$114 -> Adjustment for business rates for cost sharing - WN - Real | F118: =F$114 -> -10.85168711 | G118: =G$114 -> £m
E119: Business Rates Outperformance Adjustment - WN - Real | F119: =IF( F118 < 0, $F$118 * (1 - F117), 0) -> -8.138765336 | G119: £m
E121: =InpActive!E$281 -> Cost sharing rates Business rates - Underperformance | F121: =InpActive!F$281 -> 0.25 | G121: =InpActive!G$281 -> %
E122: =E$114 -> Adjustment for business rates for cost sharing - WN - Real | F122: =F$114 -> -10.85168711 | G122: =G$114 -> £m
E123: Business Rates Underperformance Adjustment - WN - Real | F123: =IF( F122 > 0, $F$122 * (1 -F121), 0) -> 0 | G123: £m
E125: =E$119 -> Business Rates Outperformance Adjustment - WN - Real | F125: =F$119 -> -8.138765336 | G125: =G$119 -> £m
E126: =E$123 -> Business Rates Underperformance Adjustment - WN - Real | F126: =F$123 -> 0 | G126: =G$123 -> £m
E127: Active adjustment for business rates uncertainty mechanism - WN - Real | F127: =IF(F125 <> 0, F125, F126) -> -8.138765336 | G127: £m
C129: Uncertainty mechanism for Abstraction charges
D131: Profile total forecast and abstraction charges
E132: =InpActive!E$91 -> Abstraction charges - Forecast - WN - Real | F132: =InpActive!F$91 -> 1.476162024 | G132: =InpActive!G$91 -> £m
E133: =InpActive!E$80 -> Abstraction Charges forecast profile - WN | F133: =InpActive!F$80 -> 0 | G133: =InpActive!G$80 -> % | H133: =InpActive!H$80 -> 0 | I133: =InpActive!I$80 -> 0 | J133: =InpActive!J$80 -> 0 | K133: =InpActive!K$80 -> 0.2 | L133: =InpActive!L$80 -> 0.2 | M133: =InpActive!M$80 -> 0.2 | N133: =InpActive!N$80 -> 0.2 | O133: =InpActive!O$80 -> 0.2 | P133: =InpActive!P$80 -> 0
E134: Abstraction charges - Forecast Profiled - WN - Real | G134: £m | H134: =SUM(J134:P134) -> 1.476162024 | J134: =J133 * $F132 -> 0 | K134: 0.2952324048 | L134: 0.2952324048 | M134: 0.2952324048 | N134: 0.2952324048 | O134: 0.2952324048 | P134: 0
E136: =InpActive!E94 -> Abstraction charges - Actual - WN - Nominal | F136: =InpActive!F94 -> 0 | G136: =InpActive!G94 -> £m | H136: =InpActive!H94 -> 0 | I136: =InpActive!I94 -> 0 | J136: =InpActive!J94 -> 0 | K136: =InpActive!K94 -> 0.1424992303 | L136: =InpActive!L94 -> 0.1429897438 | M136: =InpActive!M94 -> 0.152 | N136: =InpActive!N94 -> 0.1513800214 | O136: =InpActive!O94 -> 0.1513800207 | P136: =InpActive!P94 -> 0
E137: =Index!E$43 -> CPI(H): Fin year average - inflate from base year 2017-18 average - CALC | F137: =Index!F$43 -> 0 | G137: =Index!G$43 -> % | H137: =Index!H$43 -> 0 | I137: =Index!I$43 -> 0 | J137: =Index!J$43 -> 1.038621462 | K137: =Index!K$43 -> 1.04693747 | L137: =Index!L$43 -> 1.085399008 | M137: =Index!M$43 -> 1.180633296 | N137: =Index!N$43 -> 1.24795125 | O137: =Index!O$43 -> 1.280060979 | P137: =Index!P$43 -> 1.305662199
E138: Abstraction charges - Outturn - WN - Real | G138: £m | J138: =J136 / J137 -> 0 | K138: =K136 / K137 -> 0.1361105457 | L138: =L136 / L137 -> 0.1317393352 | M138: 0.1287444633 | N138: 0.1213028324 | O138: 0.1182600073 | P138: 0
D140: Variance to forecast abstraction charges
E141: =E$138 -> Abstraction charges - Outturn - WN - Real | F141: =F$138 -> 0 | G141: £m | H141: 0 | I141: 0 | J141: 0 | K141: 0.1361105457 | L141: 0.1317393352 | M141: 0.1287444633 | N141: 0.1213028324 | O141: 0.1182600073 | P141: 0
E142: =E$134 -> Abstraction charges - Forecast Profiled - WN - Real | F142: =F$134 -> 0 | G142: £m | H142: 1.476162024 | I142: 0 | J142: 0 | K142: 0.2952324048 | L142: 0.2952324048 | M142: 0.2952324048 | N142: 0.2952324048 | O142: 0.2952324048 | P142: 0
E143: Variance between forecast and outturn abstraction charges - WR - Real | G143: £m | H143: =SUM(J143:P143) -> -0.84000484 | J143: =J141 - J142 -> 0 | K143: -0.1591218591 | L143: -0.1634930696 | M143: -0.1664879415 | N143: -0.1739295723 | O143: -0.1769723975 | P143: 0
D145: Variance to forecast abstraction charges – Time adjusted
E146: =E$143 -> Variance between forecast and outturn abstraction charges - WR - Real | F146: =F$143 -> 0 | G146: £m | H146: -0.84000484 | I146: 0 | J146: 0 | K146: -0.1591218591 | L146: -0.1634930696 | M146: -0.1664879415 | N146: -0.1739295723 | O146: -0.1769723975 | P146: 0
E147: ='Cost sharing calculations'!E$303 -> Time value of money factor - WN | F147: ='Cost sharing calculations'!F$303 -> 0 | G147: ='Cost sharing calculations'!G$303 -> Factor | H147: ='Cost sharing calculations'!H$303 -> 0 | I147: ='Cost sharing calculations'!I$303 -> 0 | J147: ='Cost sharing calculations'!J$303 -> 1 | K147: ='Cost sharing calculations'!K$303 -> 1.122016155 | L147: ='Cost sharing calculations'!L$303 -> 1.090182817 | M147: ='Cost sharing calculations'!M$303 -> 1.05925264 | N147: ='Cost sharing calculations'!N$303 -> 1.0292 | O147: ='Cost sharing calculations'!O$303 -> 1 | P147: ='Cost sharing calculations'!P$303 -> 1
E148: Variance on abstraction charges time value adjusted- WN - Real | G148: £m | H148: =SUM(J148:P148) -> -0.8891081367 | J148: =J146 * J147 -> 0 | K148: -0.1785372966 | L148: -0.1782373352 | M148: -0.1763527916 | N148: -0.1790083158 | O148: -0.1769723975 | P148: 0
E149: Adjustment for abstraction charges - WN - Real | F149: =H$148 -> -0.8891081367 | G149: £m
D151: Under / Overperformance abstraction charges
E152: =InpActive!E$282 -> Cost sharing rates Abstraction - Overperformance | F152: =InpActive!F$282 -> 0.25 | G152: =InpActive!G$282 -> %
E153: =E$149 -> Adjustment for abstraction charges - WN - Real | F153: =F$149 -> -0.8891081367 | G153: £m
E154: Abstraction charges Outperformance Adjustment - WN - Real | F154: =IF( F153 < 0, $F$153 * (1 - F152), 0) -> -0.6668311025 | G154: £m
E156: =InpActive!E$283 -> Cost sharing rates Abstraction - Underperformance | F156: =InpActive!F$283 -> 0.25 | G156: =InpActive!G$283 -> %
E157: =E$149 -> Adjustment for abstraction charges - WN - Real | F157: =F$149 -> -0.8891081367 | G157: £m
E158: Abstraction charges Underperformance Adjustment - WN - Real | F158: =IF( F157 > 0, $F$157 * (1 - F156), 0) -> 0 | G158: £m
E160: =E$154 -> Abstraction charges Outperformance Adjustment - WN - Real | F160: =F$154 -> -0.6668311025 | G160: £m
E161: =E$158 -> Abstraction charges Underperformance Adjustment - WN - Real | F161: =F$158 -> 0 | G161: £m
E162: Active adjustment for abstraction charges uncertainty mechanism - WN - Real | F162: =IF(F160 <> 0, F160, F161) -> -0.6668311025 | G162: £m
E164: =E127 -> Active adjustment for business rates uncertainty mechanism - WN - Real | F164: =F127 -> -8.138765336 | G164: £m
E165: =E162 -> Active adjustment for abstraction charges uncertainty mechanism - WN - Real | F165: =F162 -> -0.6668311025 | G165: £m
E166: Active adjustment for abstraction charges & business rates uncertainty mechanism - WR - Real | F166: =SUM(F164:F165) -> -8.805596439 | G166: £m
E168: =E$166 -> Active adjustment for abstraction charges & business rates uncertainty mechanism - WR - Real | F168: =F$166 -> -8.805596439 | G168: £m
E169: =InpActive!E$96 -> Weighted average PAYG rate - WN | F169: =InpActive!F$96 -> 0.722 | G169: =InpActive!G$96 -> %
E170: Revenue adjustment business rates and abstraction - WN - Real | F170: =F168 * $F$169 -> -6.357640629 | G170: £m
E172: =E$166 -> Active adjustment for abstraction charges & business rates uncertainty mechanism - WR - Real | F172: =F$166 -> -8.805596439 | G172: £m
E173: =InpActive!E$96 -> Weighted average PAYG rate - WN | F173: =InpActive!F$96 -> 0.722 | G173: =InpActive!G$96 -> %
E174: RCV adjustment business rates and abstraction - WN - Real | F174: =F172 * (1 - $F$173) -> -2.44795581 | G174: £m
A176: WASTEWATER NETWORK
C178: Uncertainty mechanism for business rates
D180: Profile total forecast business rates
E181: =InpActive!E$131 -> Business rates - Forecast - WWN - Real | F181: =InpActive!F$131 -> 34.7934936 | G181: =InpActive!G$131 -> £m
E182: =InpActive!E$121 -> Business Rates forecast profile - WWN | F182: =InpActive!F$121 -> 0 | G182: =InpActive!G$121 -> % | H182: =InpActive!H$121 -> 0 | I182: =InpActive!I$121 -> 0 | J182: =InpActive!J$121 -> 0 | K182: =InpActive!K$121 -> 0.2 | L182: =InpActive!L$121 -> 0.2 | M182: =InpActive!M$121 -> 0.2 | N182: =InpActive!N$121 -> 0.2 | O182: =InpActive!O$121 -> 0.2 | P182: =InpActive!P$121 -> 0
E183: Business rates - Forecast Profiled - WWN - Real | G183: £m | H183: =SUM(J183:P183) -> 34.7934936 | J183: =J182 * $F181 -> 0 | K183: 6.958698719 | L183: 6.958698719 | M183: 6.958698719 | N183: 6.958698719 | O183: 6.958698719 | P183: 0
E185: =InpActive!E$133 -> Business rates - Actual - WWN - Nominal | F185: =InpActive!F$133 -> 0 | G185: =InpActive!G$133 -> £m | H185: =InpActive!H$133 -> 0 | I185: =InpActive!I$133 -> 0 | J185: =InpActive!J$133 -> 0 | K185: =InpActive!K$133 -> 7.150233251 | L185: =InpActive!L$133 -> 7.147619918 | M185: =InpActive!M$133 -> 7.148 | N185: =InpActive!N$133 -> 9.50633389 | O185: =InpActive!O$133 -> 9.383029012 | P185: =InpActive!P$133 -> 0
E186: =Index!E$43 -> CPI(H): Fin year average - inflate from base year 2017-18 average - CALC | F186: =Index!F$43 -> 0 | G186: =Index!G$43 -> % | H186: =Index!H$43 -> 0 | I186: =Index!I$43 -> 0 | J186: =Index!J$43 -> 1.038621462 | K186: =Index!K$43 -> 1.04693747 | L186: =Index!L$43 -> 1.085399008 | M186: =Index!M$43 -> 1.180633296 | N186: =Index!N$43 -> 1.24795125 | O186: =Index!O$43 -> 1.280060979 | P186: =Index!P$43 -> 1.305662199
E187: Business rates - Outturn - WWN - Real | G187: £m | J187: =J185 / J186 -> 0 | K187: =K185 / K186 -> 6.829666008 | L187: =L185 / L186 -> 6.585246405 | M187: =M185 / M186 -> 6.054377785 | N187: =N185 / N186 -> 7.61755228 | O187: =O185 / O186 -> 7.330142209 | P187: =P185 / P186 -> 0
D189: Variance to forecast business rates
E190: =E$187 -> Business rates - Outturn - WWN - Real | F190: =F$187 -> 0 | G190: £m | H190: 0 | I190: 0 | J190: 0 | K190: 6.829666008 | L190: 6.585246405 | M190: 6.054377785 | N190: 7.61755228 | O190: 7.330142209 | P190: 0
E191: =E$183 -> Business rates - Forecast Profiled - WWN - Real | F191: =F$183 -> 0 | G191: £m | H191: 34.7934936 | I191: 0 | J191: 0 | K191: 6.958698719 | L191: 6.958698719 | M191: 6.958698719 | N191: 6.958698719 | O191: 6.958698719 | P191: 0
E192: Variance between forecast and outturn business rates - WWN - Real | G192: £m | H192: =SUM(J192:P192) -> -0.3765089103 | J192: =J190 - J191 -> 0 | K192: -0.1290327117 | L192: -0.3734523146 | M192: -0.904320934 | N192: 0.6588535607 | O192: 0.3714434893 | P192: 0
D194: Variance to forecast business rates - Time adjusted
E195: =E$192 -> Variance between forecast and outturn business rates - WWN - Real | F195: 0 | G195: £m | H195: -0.3765089103 | I195: 0 | J195: 0 | K195: -0.1290327117 | L195: -0.3734523146 | M195: -0.904320934 | N195: 0.6588535607 | O195: 0.3714434893 | P195: 0
E196: ='Cost sharing calculations'!E$471 -> Time value of money factor - WWN | F196: ='Cost sharing calculations'!F$471 -> 0 | G196: ='Cost sharing calculations'!G$471 -> Factor | H196: ='Cost sharing calculations'!H$471 -> 0 | I196: ='Cost sharing calculations'!I$471 -> 0 | J196: ='Cost sharing calculations'!J$471 -> 1 | K196: ='Cost sharing calculations'!K$471 -> 1.122016155 | L196: ='Cost sharing calculations'!L$471 -> 1.090182817 | M196: ='Cost sharing calculations'!M$471 -> 1.05925264 | N196: ='Cost sharing calculations'!N$471 -> 1.0292 | O196: ='Cost sharing calculations'!O$471 -> 1 | P196: ='Cost sharing calculations'!P$471 -> 1
E197: Variance on business rates time value adjusted- WWN - Real | G197: £m | H197: =SUM(J197:P197) -> -0.4602768462 | J197: =J195 * J196 -> 0 | K197: -0.1447767871 | L197: -0.4071312963 | M197: -0.9579043368 | N197: 0.6780920846 | O197: 0.3714434893 | P197: 0
E198: Adjustment for business rates for cost sharing - WWN - Real | F198: =H$197 -> -0.4602768462 | G198: £m
D200: Under / Overperformance business rates
E201: =InpActive!E$280 -> Cost sharing rates Business rates - Overperformance | F201: =InpActive!F$280 -> 0.25 | G201: =InpActive!G$280 -> %
E202: =E$198 -> Adjustment for business rates for cost sharing - WWN - Real | F202: =F$198 -> -0.4602768462 | G202: =G$198 -> £m
E203: Business Rates Outperformance Adjustment - WWN - Real | F203: =IF( F202 < 0, $F$202 * (1 - F201), 0) -> -0.3452076347 | G203: £m
E205: =InpActive!E$281 -> Cost sharing rates Business rates - Underperformance | F205: =InpActive!F$281 -> 0.25 | G205: =InpActive!G$281 -> %
E206: =E$198 -> Adjustment for business rates for cost sharing - WWN - Real | F206: =F$198 -> -0.4602768462 | G206: =G$198 -> £m
E207: Business Rates Underperformance Adjustment - WWN - Real | F207: =IF( F206 > 0, $F$206 * (1 - F205), 0) -> 0 | G207: £m
E209: =E$203 -> Business Rates Outperformance Adjustment - WWN - Real | F209: =F$203 -> -0.3452076347 | G209: =G$203 -> £m
E210: =E$207 -> Business Rates Underperformance Adjustment - WWN - Real | F210: =F$207 -> 0 | G210: =G$207 -> £m
E211: Active adjustment for business rates uncertainty mechanism - WWN - Real | F211: =IF(F209 <> 0, F209, F210) -> -0.3452076347 | G211: £m
E213: =E$211 -> Active adjustment for business rates uncertainty mechanism - WWN - Real | F213: =F$211 -> -0.3452076347 | G213: £m
E214: =InpActive!E$135 -> Weighted average PAYG rate - WWN | F214: =InpActive!F$135 -> 0.403 | G214: =InpActive!G$135 -> %
E215: Revenue adjustment business rates - WWN - Real | F215: =F213 * $F$214 -> -0.1391186768 | G215: £m
E217: =E$211 -> Active adjustment for business rates uncertainty mechanism - WWN - Real | F217: =F$211 -> -0.3452076347 | G217: £m
E218: =InpActive!E$135 -> Weighted average PAYG rate - WWN | F218: =InpActive!F$135 -> 0.403 | G218: =InpActive!G$135 -> %
E219: RCV adjustment business rates - WWN - Real | F219: =F217 * (1 - $F$218) -> -0.2060889579 | G219: £m
A221: BIORESOURCES
C223: Uncertainty mechanism for business rates
D225: Profile total forecast business rates
E226: =InpActive!E$156 -> Business rates - Forecast - BIO - Real | F226: =InpActive!F$156 -> 8.16301332 | G226: =InpActive!G$156 -> £m
E227: =InpActive!E$160 -> Business Rates forecast profile - BIO | F227: =InpActive!F$160 -> 0 | G227: =InpActive!G$160 -> % | H227: =InpActive!H$160 -> 0 | I227: =InpActive!I$160 -> 0 | J227: =InpActive!J$160 -> 0 | K227: =InpActive!K$160 -> 0.2 | L227: =InpActive!L$160 -> 0.2 | M227: =InpActive!M$160 -> 0.2 | N227: =InpActive!N$160 -> 0.2 | O227: =InpActive!O$160 -> 0.2 | P227: =InpActive!P$160 -> 0
E228: Business rates - Forecast Profiled - BIO - Real | G228: £m | H228: =SUM(J228:P228) -> 8.16301332 | J228: =J227 * $F226 -> 0 | K228: 1.632602664 | L228: 1.632602664 | M228: 1.632602664 | N228: 1.632602664 | O228: 1.632602664 | P228: 0
E230: =InpActive!E$158 -> Business rates - Actual - BIO - Nominal | F230: =InpActive!F$158 -> 0 | G230: =InpActive!G$158 -> £m | H230: =InpActive!H$158 -> 0 | I230: =InpActive!I$158 -> 0 | J230: =InpActive!J$158 -> 0 | K230: =InpActive!K$158 -> 1.646032583 | L230: =InpActive!L$158 -> 1.618605869 | M230: =InpActive!M$158 -> 1.614 | N230: =InpActive!N$158 -> 1.987517493 | O230: =InpActive!O$158 -> 1.961737775 | P230: =InpActive!P$158 -> 0
E231: =Index!E$43 -> CPI(H): Fin year average - inflate from base year 2017-18 average - CALC | F231: =Index!F$43 -> 0 | G231: =Index!G$43 -> % | H231: =Index!H$43 -> 0 | I231: =Index!I$43 -> 0 | J231: =Index!J$43 -> 1.038621462 | K231: =Index!K$43 -> 1.04693747 | L231: =Index!L$43 -> 1.085399008 | M231: =Index!M$43 -> 1.180633296 | N231: =Index!N$43 -> 1.24795125 | O231: =Index!O$43 -> 1.280060979 | P231: =Index!P$43 -> 1.305662199
E232: Business rates - Outturn - BIO - Real | G232: £m | J232: =J230 / J231 -> 0 | K232: =K230 / K231 -> 1.572235812 | L232: =L230 / L231 -> 1.491254235 | M232: =M230 / M231 -> 1.367062919 | N232: =N230 / N231 -> 1.592624305 | O232: =O230 / O231 -> 1.532534627 | P232: =P230 / P231 -> 0
D234: Variance to forecast business rates
E235: =E$232 -> Business rates - Outturn - BIO - Real | F235: =F$232 -> 0 | G235: £m | H235: 0 | I235: 0 | J235: 0 | K235: 1.572235812 | L235: 1.491254235 | M235: 1.367062919 | N235: 1.592624305 | O235: 1.532534627 | P235: 0
E236: =E$228 -> Business rates - Forecast Profiled - BIO - Real | F236: =F$228 -> 0 | G236: £m | H236: 8.16301332 | I236: 0 | J236: 0 | K236: 1.632602664 | L236: 1.632602664 | M236: 1.632602664 | N236: 1.632602664 | O236: 1.632602664 | P236: 0
E237: Variance between forecast and outturn business rates - BIO - Real | G237: £m | H237: =SUM(J237:P237) -> -0.6073014211 | J237: =J235 - J236 -> 0 | K237: -0.06036685229 | L237: -0.1413484285 | M237: -0.2655397449 | N237: -0.03997835857 | O237: -0.1000680368 | P237: 0
D239: Variance to forecast business rates - Time adjusted
E240: =E$237 -> Variance between forecast and outturn business rates - BIO - Real | F240: 0 | G240: £m | H240: -0.6073014211 | I240: 0 | J240: 0 | K240: -0.06036685229 | L240: -0.1413484285 | M240: -0.2655397449 | N240: -0.03997835857 | O240: -0.1000680368 | P240: 0
E241: =Bioresources!E$49 -> Time value of money factor - BIO | F241: =Bioresources!F$49 -> 0 | G241: =Bioresources!G$49 -> Factor | H241: =Bioresources!H$49 -> 0 | I241: =Bioresources!I$49 -> 0 | J241: =Bioresources!J$49 -> 1 | K241: =Bioresources!K$49 -> 1.122016155 | L241: =Bioresources!L$49 -> 1.090182817 | M241: =Bioresources!M$49 -> 1.05925264 | N241: =Bioresources!N$49 -> 1.0292 | O241: =Bioresources!O$49 -> 1 | P241: =Bioresources!P$49 -> 1
E242: Variance on business rates time value adjusted- BIO - Real | G242: £m | H242: =SUM(J242:P242) -> -0.6443156508 | J242: =J240 * J241 -> 0 | K242: -0.06773258352 | L242: -0.154095628 | M242: -0.2812736758 | N242: -0.04114572664 | O242: -0.1000680368 | P242: 0
E243: Adjustment for business rates for cost sharing - BIO - Real | F243: =H$242 -> -0.6443156508 | G243: £m
D245: Under / Overperformance business rates
E246: =InpActive!E$280 -> Cost sharing rates Business rates - Overperformance | F246: =InpActive!F$280 -> 0.25 | G246: =InpActive!G$280 -> %
E247: =E$243 -> Adjustment for business rates for cost sharing - BIO - Real | F247: =F$243 -> -0.6443156508 | G247: =G$243 -> £m
E248: Business Rates Outperformance Adjustment - BIO - Real | F248: =IF( F247 < 0, $F$247 * (1 - F246), 0) -> -0.4832367381 | G248: £m
E250: =InpActive!E$281 -> Cost sharing rates Business rates - Underperformance | F250: =InpActive!F$281 -> 0.25 | G250: =InpActive!G$281 -> %
E251: =E$243 -> Adjustment for business rates for cost sharing - BIO - Real | F251: =F$243 -> -0.6443156508 | G251: =G$243 -> £m
E252: Business Rates Underperformance Adjustment - BIO - Real | F252: =IF( F251 > 0, $F$251 * (1 - F250), 0) -> 0 | G252: £m
E254: =E$248 -> Business Rates Outperformance Adjustment - BIO - Real | F254: =F$248 -> -0.4832367381 | G254: £m
E255: =E$252 -> Business Rates Underperformance Adjustment - BIO - Real | F255: =F$252 -> 0 | G255: £m
E256: Active adjustment for business rates uncertainty mechanism - BIO - Real | F256: =IF(F254 <> 0, F254, F255) -> -0.4832367381 | G256: £m
E258: =E$256 -> Active adjustment for business rates uncertainty mechanism - BIO - Real | F258: =F$256 -> -0.4832367381 | G258: £m
E259: =InpActive!E$162 -> Weighted average PAYG rate - BIO | F259: =InpActive!F$162 -> 0.73 | G259: =InpActive!G$162 -> %
E260: Revenue adjustment business rates - BIO - Real | F260: =F258 * $F$259 -> -0.3527628188 | G260: £m
E262: =E$256 -> Active adjustment for business rates uncertainty mechanism - BIO - Real | F262: =F$256 -> -0.4832367381 | G262: =G$256 -> £m
... 3 more rows

Sheet Bioresources
A1: =RIGHT(CELL("filename", $A$1), LEN(CELL("filename", $A$1)) - SEARCH("]", CELL("filename", $A$1))) -> Bioresources
E2: =Time!E$22 -> Model Period BEG | J2: =Time!J$22 -> 2019-04-01 | K2: =Time!K$22 -> 2020-04-01 | L2: =Time!L$22 -> 2021-04-01 | M2: =Time!M$22 -> 2022-04-01 | N2: =Time!N$22 -> 2023-04-01 | O2: =Time!O$22 -> 2024-04-01 | P2: =Time!P$22 -> 2025-04-01
E3: =Time!E$23 -> Model Period END | F3: =Check!F$8 -> 0 | G3: Error chks | J3: =Time!J$23 -> 2020-03-31 | K3: =Time!K$23 -> 2021-03-31 | L3: =Time!L$23 -> 2022-03-31 | M3: =Time!M$23 -> 2023-03-31 | N3: =Time!N$23 -> 2024-03-31 | O3: =Time!O$23 -> 2025-03-31 | P3: =Time!P$23 -> 2026-03-31
E4: =Time!E$59 -> Pre Forecast vs Forecast | J4: =Time!J$59 -> Pre Fcst | K4: =Time!K$59 -> Forecast | L4: =Time!L$59 -> Forecast | M4: =Time!M$59 -> Forecast | N4: =Time!N$59 -> Forecast | O4: =Time!O$59 -> Forecast | P4: =Time!P$59 -> Post-Fcst
E5: =Time!E$101 -> Financial Year Ending | J5: =Time!J$101 -> 2020 | K5: =Time!K$101 -> 2021 | L5: =Time!L$101 -> 2022 | M5: =Time!M$101 -> 2023 | N5: =Time!N$101 -> 2024 | O5: =Time!O$101 -> 2025 | P5: =Time!P$101 -> 2026
E6: =Time!E$11 -> Model column counter | F6: Constant | G6: Unit | H6: Total | J6: =Time!J$11 -> 1 | K6: =Time!K$11 -> 2 | L6: =Time!L$11 -> 3 | M6: =Time!M$11 -> 4 | N6: =Time!N$11 -> 5 | O6: =Time!O$11 -> 6 | P6: =Time!P$11 -> 7
A8: BIORESOURCES
C10: Adjustment For Wage Growth
D12: Totex for wage adjustment
E13: =InpActive!E$150 -> Base Costs - BIO - Real | F13: =InpActive!F$150 -> 114.7 | G13: =InpActive!G$150 -> £m
E14: =InpActive!E$151 -> WINEP / NEP ~ In-the-Round - BIO - Real | F14: =InpActive!F$151 -> 0 | G14: =InpActive!G$151 -> £m
E15: Totex available for wage indexation adjustment - BIO - Real | F15: =SUM(F13:F14) -> 114.7 | G15: £m
D17: Profile for totex for wage adjustment
E18: =InpActive!E$153 -> Opex Split Profile - Base costs - BIO | F18: =InpActive!F$153 -> 0 | G18: =InpActive!G$153 -> % | H18: =InpActive!H$153 -> 0 | I18: =InpActive!I$153 -> 0 | J18: =InpActive!J$153 -> 0 | K18: =InpActive!K$153 -> 0.1455744815 | L18: =InpActive!L$153 -> 0.146256727 | M18: =InpActive!M$153 -> 0.1469492123 | N18: =InpActive!N$153 -> 0.1476520928 | O18: =InpActive!O$153 -> 0.1479780122 | P18: =InpActive!P$153 -> 0
E19: =InpActive!E$154 -> Capex Split Profile - Base costs - BIO | F19: =InpActive!F$154 -> 0 | G19: =InpActive!G$154 -> % | H19: =InpActive!H$154 -> 0 | I19: =InpActive!I$154 -> 0 | J19: =InpActive!J$154 -> 0 | K19: =InpActive!K$154 -> 0.05259070868 | L19: =InpActive!L$154 -> 0.04583475159 | M19: =InpActive!M$154 -> 0.06355529478 | N19: =InpActive!N$154 -> 0.04437280677 | O19: =InpActive!O$154 -> 0.05923591238 | P19: =InpActive!P$154 -> 0
E20: Totex profile - BIO | G20: % | H20: =SUM(J20:P20) -> 1 | J20: =SUM(J18:J19) -> 0 | K20: 0.1981651902 | L20: 0.1920914786 | M20: 0.2105045071 | N20: 0.1920248996 | O20: 0.2072139245 | P20: 0
E21: Totex profile - 5 year percentage - BIO | F21: =H$20 -> 1 | G21: %
E23: =E$21 -> Totex profile - 5 year percentage - BIO | F23: =F$21 -> 1 | G23: =G$21 -> %
E24: WWN Totex profile 100% check | F24: =IF(OR($F$23 = 1, F23 = 0), 0, 1) -> 0 | G24: Check
E26: =E$15 -> Totex available for wage indexation adjustment - BIO - Real | F26: =F$15 -> 114.7 | G26: =G$15 -> £m
E27: =Time!E$54 -> Forecast Period Flag | F27: =Time!F$54 -> 0 | G27: =Time!G$54 -> flag | H27: =Time!H$54 -> 5 | I27: =Time!I$54 -> 0 | J27: =Time!J$54 -> 0 | K27: =Time!K$54 -> 1 | L27: =Time!L$54 -> 1 | M27: =Time!M$54 -> 1 | N27: =Time!N$54 -> 1 | O27: =Time!O$54 -> 1 | P27: =Time!P$54 -> 0
E28: =E$20 -> Totex profile - BIO | F28: 0 | G28: % | H28: 1 | I28: 0 | J28: 0 | K28: 0.1981651902 | L28: 0.1920914786 | M28: 0.2105045071 | N28: 0.1920248996 | O28: 0.2072139245 | P28: 0
E29: Profiled Totex available for wage indexation adjustment - BIO - Real | G29: £m | H29: =SUM(J29:P29) -> 114.7 | J29: =IF(J27 = 1, J28 * $F26, 0) -> 0 | K29: 22.72954731 | L29: 22.0328926 | M29: 24.14486696 | N29: 22.02525598 | O29: 23.76743714 | P29: 0
D31: Totex applicable for wage adjustment by year
E32: =InpActive!E$259 -> Percentage totex linked to wage growth - BIO | F32: =InpActive!F$259 -> 0.386 | G32: =InpActive!G$259 -> %
E33: =E29 -> Profiled Totex available for wage indexation adjustment - BIO - Real | F33: 0 | G33: £m | H33: 114.7 | I33: 0 | J33: 0 | K33: 22.72954731 | L33: 22.0328926 | M33: 24.14486696 | N33: 22.02525598 | O33: 23.76743714 | P33: 0
E34: Profiled Net totex available for wage adj - BIO - Real | G34: £m | H34: =SUM(J34:P34) -> 44.2742 | J34: =J33 * $F32 -> 0 | K34: 8.773605263 | L34: 8.504696543 | M34: 9.319918646 | N34: 8.50174881 | O34: 9.174230738 | P34: 0
D36: Adjustment factor for wage linked totex
E37: =Time!E$54 -> Forecast Period Flag | F37: =Time!F$54 -> 0 | G37: =Time!G$54 -> flag | H37: =Time!H$54 -> 5 | I37: =Time!I$54 -> 0 | J37: =Time!J$54 -> 0 | K37: =Time!K$54 -> 1 | L37: =Time!L$54 -> 1 | M37: =Time!M$54 -> 1 | N37: =Time!N$54 -> 1 | O37: =Time!O$54 -> 1 | P37: =Time!P$54 -> 0
E38: =E$34 -> Profiled Net totex available for wage adj - BIO - Real | F38: 0 | G38: £m | H38: 44.2742 | I38: 0 | J38: 0 | K38: 8.773605263 | L38: 8.504696543 | M38: 9.319918646 | N38: 8.50174881 | O38: 9.174230738 | P38: 0
E39: ='Cost sharing calculations'!E$26 -> Real adjustment factor for wages | F39: ='Cost sharing calculations'!F$26 -> 0 | G39: ='Cost sharing calculations'!G$26 -> % | H39: ='Cost sharing calculations'!H$26 -> 0 | I39: ='Cost sharing calculations'!I$26 -> 0 | J39: ='Cost sharing calculations'!J$26 -> 0 | K39: ='Cost sharing calculations'!K$26 -> 1.008871737 | L39: ='Cost sharing calculations'!L$26 -> 1.005886545 | M39: ='Cost sharing calculations'!M$26 -> 0.9538173244 | N39: ='Cost sharing calculations'!N$26 -> 0.9226273204 | O39: ='Cost sharing calculations'!O$26 -> 0.8965277273 | P39: ='Cost sharing calculations'!P$26 -> 0
E40: Profiled adjustment wage related totex - BIO - Real | G40: £m | H40: =SUM(J40:P40) -> 42.36460002 | J40: =IF(J37 = 1, J38 * J39, 0) -> 0 | K40: 8.851442378 | L40: 8.554759821 | M40: 8.889499867 | N40: 7.843945724 | O40: 8.224952233 | P40: 0
D42: Variance to forecast wage linked totex
E43: =E$40 -> Profiled adjustment wage related totex - BIO - Real | F43: 0 | G43: £m | H43: 42.36460002 | I43: 0 | J43: 0 | K43: 8.851442378 | L43: 8.554759821 | M43: 8.889499867 | N43: 7.843945724 | O43: 8.224952233 | P43: 0
E44: =E$34 -> Profiled Net totex available for wage adj - BIO - Real | F44: 0 | G44: £m | H44: 44.2742 | I44: 0 | J44: 0 | K44: 8.773605263 | L44: 8.504696543 | M44: 9.319918646 | N44: 8.50174881 | O44: 9.174230738 | P44: 0
E45: Variance to forecast totex for wage adjustment- BIO | G45: £m | H45: =SUM(J45:P45) -> -1.909599977 | J45: =J43 - J44 -> 0 | K45: 0.07783711542 | L45: 0.05006327778 | M45: -0.4304187793 | N45: -0.6578030864 | O45: -0.9492785047 | P45: 0
E47: =InpActive!E$288 -> Financing cost index | F47: =InpActive!F$288 -> 0 | G47: =InpActive!G$288 -> Index | H47: =InpActive!H$288 -> 0 | I47: =InpActive!I$288 -> 0 | J47: =InpActive!J$288 -> 0 | K47: =InpActive!K$288 -> 4 | L47: =InpActive!L$288 -> 3 | M47: =InpActive!M$288 -> 2 | N47: =InpActive!N$288 -> 1 | O47: =InpActive!O$288 -> 0 | P47: =InpActive!P$288 -> 0
E48: =InpActive!E$293 -> Real WACC CPIH Deflated - BIO | F48: =InpActive!F$293 -> 0.0292 | G48: =InpActive!G$293 -> %
E49: Time value of money factor - BIO | G49: Factor | J49: =(1+$F48) ^ J47 -> 1 | K49: 1.122016155 | L49: 1.090182817 | M49: 1.05925264 | N49: 1.0292 | O49: 1 | P49: 1
D51: Wage totex overfunded/unfunded at PR19
E52: =E$45 -> Variance to forecast totex for wage adjustment- BIO | F52: 0 | G52: £m | H52: -1.909599977 | I52: 0 | J52: 0 | K52: 0.07783711542 | L52: 0.05006327778 | M52: -0.4304187793 | N52: -0.6578030864 | O52: -0.9492785047 | P52: 0
E53: =E49 -> Time value of money factor - BIO | F53: 0 | G53: Factor | H53: 0 | I53: 0 | J53: 1 | K53: 1.122016155 | L53: 1.090182817 | M53: 1.05925264 | N53: 1.0292 | O53: 1 | P53: 1
E54: Variance to forecast totex for wage adjustment - NPV adjusted - BIO | G54: £m | H54: =SUM(J54:P54) -> -1.940299043 | J54: =J52*J53 -> 0 | K54: 0.08733450099 | L54: 0.0545781252 | M54: -0.4559222283 | N54: -0.6770109365 | O54: -0.9492785047 | P54: 0
E55: Total adjustment for wage related totex - BIO - Real | F55: =H54 -> -1.940299043 | G55: £m
C58: Performance related pay recovery mechanism adjustment
E60: =InpActive!E$170 -> Performance related pay recovery mechanism adjustment - BIO - Nominal (Neg) | F60: =InpActive!F$170 -> 0 | G60: =InpActive!G$170 -> £m | H60: =InpActive!H$170 -> 0 | I60: =InpActive!I$170 -> 0 | J60: =InpActive!J$170 -> 0 | K60: =InpActive!K$170 -> 0 | L60: =InpActive!L$170 -> 0 | M60: =InpActive!M$170 -> 0 | N60: =InpActive!N$170 -> 0 | O60: =InpActive!O$170 -> 0 | P60: =InpActive!P$170 -> 0
E61: =Index!E$43 -> CPI(H): Fin year average - inflate from base year 2017-18 average - CALC | F61: =Index!F$43 -> 0 | G61: =Index!G$43 -> % | H61: =Index!H$43 -> 0 | I61: =Index!I$43 -> 0 | J61: =Index!J$43 -> 1.038621462 | K61: =Index!K$43 -> 1.04693747 | L61: =Index!L$43 -> 1.085399008 | M61: =Index!M$43 -> 1.180633296 | N61: =Index!N$43 -> 1.24795125 | O61: =Index!O$43 -> 1.280060979 | P61: =Index!P$43 -> 1.305662199
E62: Performance related pay recovery mechanism adjustment - BIO - real | G62: £m | H62: =SUM(K62:O62) -> 0 | J62: =J60 / J61 -> 0 | K62: =K60 / K61 -> 0 | L62: =L60 / L61 -> 0 | M62: 0 | N62: 0 | O62: 0 | P62: 0
E63: Total Performance related pay recovery mechanism adjustment - BIO - real | F63: =H62 -> 0 | G63: £m
C65: CMA exclusions
E67: =InpActive!E$165 -> Actuals for CMA excluded items - BIO - nominal | F67: =InpActive!F$165 -> 0 | G67: =InpActive!G$165 -> £m | H67: =InpActive!H$165 -> 0 | I67: =InpActive!I$165 -> 0 | J67: =InpActive!J$165 -> 0 | K67: =InpActive!K$165 -> 0 | L67: =InpActive!L$165 -> 0 | M67: =InpActive!M$165 -> 0 | N67: =InpActive!N$165 -> 0 | O67: =InpActive!O$165 -> 0 | P67: =InpActive!P$165 -> 0
E68: =Index!E$43 -> CPI(H): Fin year average - inflate from base year 2017-18 average - CALC | F68: =Index!F$43 -> 0 | G68: =Index!G$43 -> % | H68: =Index!H$43 -> 0 | I68: =Index!I$43 -> 0 | J68: =Index!J$43 -> 1.038621462 | K68: =Index!K$43 -> 1.04693747 | L68: =Index!L$43 -> 1.085399008 | M68: =Index!M$43 -> 1.180633296 | N68: =Index!N$43 -> 1.24795125 | O68: =Index!O$43 -> 1.280060979 | P68: =Index!P$43 -> 1.305662199
E69: Actuals for CMA excluded items - BIO - real | G69: £m | J69: =J67 / J68 -> 0 | K69: =K67 / K68 -> 0 | L69: =L67 / L68 -> 0 | M69: 0 | N69: 0 | O69: 0 | P69: 0
E71: =InpActive!E$166 -> Allowance for CMA excluded items - BIO - real | F71: =InpActive!F$166 -> 0 | G71: =InpActive!G$166 -> £m | H71: =InpActive!H$166 -> 0 | I71: =InpActive!I$166 -> 0 | J71: =InpActive!J$166 -> 0 | K71: =InpActive!K$166 -> 0 | L71: =InpActive!L$166 -> 0 | M71: =InpActive!M$166 -> 0 | N71: =InpActive!N$166 -> 0 | O71: =InpActive!O$166 -> 0 | P71: =InpActive!P$166 -> 0
E72: =E69 -> Actuals for CMA excluded items - BIO - real | F72: =F69 -> 0 | G72: £m | H72: 0 | I72: 0 | J72: 0 | K72: =K69 -> 0 | L72: =L69 -> 0 | M72: 0 | N72: 0 | O72: 0 | P72: 0
E73: Variance to allowances for CMA excluded items - BIO | G73: £m | H73: =SUM(J73:P73) -> 0 | J73: =J72-J71 -> 0 | K73: =K72-K71 -> 0 | L73: =L72-L71 -> 0 | M73: 0 | N73: 0 | O73: 0 | P73: 0
E75: =E$73 -> Variance to allowances for CMA excluded items - BIO | F75: =F$73 -> 0 | G75: £m | H75: 0 | I75: 0 | J75: 0 | K75: =K$73 -> 0 | L75: 0 | M75: 0 | N75: 0 | O75: 0 | P75: 0
E76: =E$49 -> Time value of money factor - BIO | F76: =F$49 -> 0 | G76: Factor | H76: 0 | I76: 0 | J76: 1 | K76: 1.122016155 | L76: 1.090182817 | M76: 1.05925264 | N76: 1.0292 | O76: 1 | P76: 1
E77: Time value adjusted variance to allowances for CMA excluded items - BIO - real | G77: £m | H77: =SUM(J77:P77) -> 0 | J77: =J75 * J76 -> 0 | K77: =K75 * K76 -> 0 | L77: 0 | M77: 0 | N77: 0 | O77: 0 | P77: 0
E78: Total variance to allowances for CMA excluded items - BIO - real | F78: =$H77 -> 0 | G78: £m
E80: =E78 -> Total variance to allowances for CMA excluded items - BIO - real | F80: =F78 -> 0 | G80: =G78 -> £m
E81: =InpActive!E167 -> CMA excluded items sharing rate - BIO - real | F81: =InpActive!F167 -> 0 | G81: =InpActive!G167 -> %
E82: Allowable adjustment for CMA excluded items - BIO - Real | F82: =(F80* F81) -> 0 | G82: £m
E84: =E55 -> Total adjustment for wage related totex - BIO - Real | F84: =F55 -> -1.940299043 | G84: =G55 -> £m
E85: =E82 -> Allowable adjustment for CMA excluded items - BIO - Real | F85: =F82 -> 0 | G85: £m
E86: =E63 -> Total Performance related pay recovery mechanism adjustment - BIO - real | F86: 0 | G86: £m
E87: Total adjustment for cost sharing - BIO - Real | F87: =SUM(F84:F85) + F86 -> -1.940299043 | G87: £m
E89: =E87 -> Total adjustment for cost sharing - BIO - Real | F89: =F87 -> -1.940299043 | G89: £m
E90: =InpActive!E162 -> Weighted average PAYG rate - BIO | F90: =InpActive!F162 -> 0.73 | G90: =InpActive!G162 -> %
E91: Cost sharing Revenue adjustment - BIO - Real | F91: =F90 * F89 -> -1.416418302 | G91: £m
E93: =E87 -> Total adjustment for cost sharing - BIO - Real | F93: =F87 -> -1.940299043 | G93: =G87 -> £m
E94: =InpActive!E162 -> Weighted average PAYG rate - BIO | F94: =InpActive!F162 -> 0.73 | G94: =InpActive!G162 -> %
E95: Cost sharing RCV adjustment - BIO - Real | F95: =F93 * (1 - F94) -> -0.5238807417 | G95: £m
A100: END OF SHEET

Sheet Thames Tideway Tunnel
A1: =RIGHT(CELL("filename", $A$1), LEN(CELL("filename", $A$1)) - SEARCH("]", CELL("filename", $A$1))) -> Thames Tideway Tunnel
E2: =Time!E$22 -> Model Period BEG | J2: =Time!J$22 -> 2019-04-01 | K2: =Time!K$22 -> 2020-04-01 | L2: =Time!L$22 -> 2021-04-01 | M2: =Time!M$22 -> 2022-04-01 | N2: =Time!N$22 -> 2023-04-01 | O2: =Time!O$22 -> 2024-04-01 | P2: =Time!P$22 -> 2025-04-01
E3: =Time!E$23 -> Model Period END | F3: =Check!F$8 -> 0 | G3: Error chks | J3: =Time!J$23 -> 2020-03-31 | K3: =Time!K$23 -> 2021-03-31 | L3: =Time!L$23 -> 2022-03-31 | M3: =Time!M$23 -> 2023-03-31 | N3: =Time!N$23 -> 2024-03-31 | O3: =Time!O$23 -> 2025-03-31 | P3: =Time!P$23 -> 2026-03-31
E4: =Time!E$59 -> Pre Forecast vs Forecast | J4: =Time!J$59 -> Pre Fcst | K4: =Time!K$59 -> Forecast | L4: =Time!L$59 -> Forecast | M4: =Time!M$59 -> Forecast | N4: =Time!N$59 -> Forecast | O4: =Time!O$59 -> Forecast | P4: =Time!P$59 -> Post-Fcst
E5: =Time!E$101 -> Financial Year Ending | J5: =Time!J$101 -> 2020 | K5: =Time!K$101 -> 2021 | L5: =Time!L$101 -> 2022 | M5: =Time!M$101 -> 2023 | N5: =Time!N$101 -> 2024 | O5: =Time!O$101 -> 2025 | P5: =Time!P$101 -> 2026
E6: =Time!E$11 -> Model column counter | F6: Constant | G6: Unit | H6: Total | J6: =Time!J$11 -> 1 | K6: =Time!K$11 -> 2 | L6: =Time!L$11 -> 3 | M6: =Time!M$11 -> 4 | N6: =Time!N$11 -> 5 | O6: =Time!O$11 -> 6 | P6: =Time!P$11 -> 7
A8: THAMES TIDEWAY TUNNEL
C10: Adjustment For Wage Growth
D12: Profile for totex for wage adjustment
E13: =InpActive!E$177 -> Opex Split Profile - Base costs - TTT | F13: =InpActive!F$177 -> 0 | G13: =InpActive!G$177 -> % | H13: =InpActive!H$177 -> 0 | I13: =InpActive!I$177 -> 0 | J13: =InpActive!J$177 -> 0 | K13: =InpActive!K$177 -> 0 | L13: =InpActive!L$177 -> 0 | M13: =InpActive!M$177 -> 0 | N13: =InpActive!N$177 -> 0 | O13: =InpActive!O$177 -> 0 | P13: =InpActive!P$177 -> 0
E14: =InpActive!E$178 -> Capex Split Profile - Base costs - TTT | F14: =InpActive!F$178 -> 0 | G14: =InpActive!G$178 -> % | H14: =InpActive!H$178 -> 0 | I14: =InpActive!I$178 -> 0 | J14: =InpActive!J$178 -> 0 | K14: =InpActive!K$178 -> 0 | L14: =InpActive!L$178 -> 0 | M14: =InpActive!M$178 -> 0 | N14: =InpActive!N$178 -> 0 | O14: =InpActive!O$178 -> 0 | P14: =InpActive!P$178 -> 0
E15: Totex profile - TTT | G15: % | H15: =SUM(J15:P15) -> 0 | J15: =SUM(J13:J14) -> 0 | K15: 0 | L15: 0 | M15: 0 | N15: 0 | O15: 0 | P15: 0
E16: Totex profile - 5 year percentage - TTT | F16: =H15 -> 0 | G16: %
E18: =E$16 -> Totex profile - 5 year percentage - TTT | F18: =F$16 -> 0 | G18: =G$16 -> %
E19: TTT Totex profile 100% check | F19: =IF(OR($F$18 = 1, F18 = 0), 0, 1) -> 0 | G19: Check
E21: =InpActive!E$175 -> Base Costs - TTT - Real | F21: =InpActive!F$175 -> 0 | G21: =InpActive!G$175 -> £m
E22: =Time!E$54 -> Forecast Period Flag | F22: =Time!F$54 -> 0 | G22: =Time!G$54 -> flag | H22: =Time!H$54 -> 5 | I22: =Time!I$54 -> 0 | J22: =Time!J$54 -> 0 | K22: =Time!K$54 -> 1 | L22: =Time!L$54 -> 1 | M22: =Time!M$54 -> 1 | N22: =Time!N$54 -> 1 | O22: =Time!O$54 -> 1 | P22: =Time!P$54 -> 0
E23: =E$15 -> Totex profile - TTT | F23: 0 | G23: % | H23: 0 | I23: 0 | J23: 0 | K23: 0 | L23: 0 | M23: 0 | N23: 0 | O23: 0 | P23: 0
E24: Profiled Totex available for wage indexation adjustment - TTT - Real | G24: £m | H24: =SUM(J24:P24) -> 0 | J24: =IF(J22 = 1, J23 * $F21, 0) -> 0 | K24: 0 | L24: 0 | M24: 0 | N24: 0 | O24: 0 | P24: 0
D26: Totex applicable for wage adjustment by year
E27: =InpActive!E261 -> Percentage totex linked to wage growth - TTT | F27: =InpActive!F261 -> 0.386 | G27: =InpActive!G261 -> %
E28: =E24 -> Profiled Totex available for wage indexation adjustment - TTT - Real | F28: 0 | G28: £m | H28: 0 | I28: 0 | J28: 0 | K28: 0 | L28: 0 | M28: 0 | N28: 0 | O28: 0 | P28: 0
E29: Profiled Net totex available for wage adj - TTT - Real | G29: £m | H29: =SUM(J29:P29) -> 0 | J29: =J28 * $F27 -> 0 | K29: 0 | L29: 0 | M29: 0 | N29: 0 | O29: 0 | P29: 0
D31: Adjustment factor for wage linked totex
E32: =Time!E$54 -> Forecast Period Flag | F32: =Time!F$54 -> 0 | G32: =Time!G$54 -> flag | H32: =Time!H$54 -> 5 | I32: =Time!I$54 -> 0 | J32: =Time!J$54 -> 0 | K32: =Time!K$54 -> 1 | L32: =Time!L$54 -> 1 | M32: =Time!M$54 -> 1 | N32: =Time!N$54 -> 1 | O32: =Time!O$54 -> 1 | P32: =Time!P$54 -> 0
E33: =E$29 -> Profiled Net totex available for wage adj - TTT - Real | F33: 0 | G33: £m | H33: 0 | I33: 0 | J33: 0 | K33: 0 | L33: 0 | M33: 0 | N33: 0 | O33: 0 | P33: 0
E34: ='Cost sharing calculations'!E26 -> Real adjustment factor for wages | F34: ='Cost sharing calculations'!F26 -> 0 | G34: ='Cost sharing calculations'!G26 -> % | H34: ='Cost sharing calculations'!H26 -> 0 | I34: ='Cost sharing calculations'!I26 -> 0 | J34: ='Cost sharing calculations'!J26 -> 0 | K34: ='Cost sharing calculations'!K26 -> 1.008871737 | L34: ='Cost sharing calculations'!L26 -> 1.005886545 | M34: ='Cost sharing calculations'!M26 -> 0.9538173244 | N34: ='Cost sharing calculations'!N26 -> 0.9226273204 | O34: ='Cost sharing calculations'!O26 -> 0.8965277273 | P34: ='Cost sharing calculations'!P26 -> 0
E35: Profiled adjustment wage related totex - TTT - Real | G35: £m | H35: =SUM(J35:P35) -> 0 | J35: =IF(J32 = 1, J33 * J34, 0) -> 0 | K35: 0 | L35: 0 | M35: 0 | N35: 0 | O35: 0 | P35: 0
D37: Variance to forecast wage linked totex
E38: =E$35 -> Profiled adjustment wage related totex - TTT - Real | F38: 0 | G38: £m | H38: 0 | I38: 0 | J38: 0 | K38: 0 | L38: 0 | M38: 0 | N38: 0 | O38: 0 | P38: 0
E39: =E$29 -> Profiled Net totex available for wage adj - TTT - Real | F39: 0 | G39: £m | H39: 0 | I39: 0 | J39: 0 | K39: 0 | L39: 0 | M39: 0 | N39: 0 | O39: 0 | P39: 0
E40: Variance to forecast totex for wage adjustment - TTT | G40: £m | H40: =SUM(J40:P40) -> 0 | J40: =J38 - J39 -> 0 | K40: 0 | L40: 0 | M40: 0 | N40: 0 | O40: 0 | P40: 0
D42: Wage totex overfunded/unfunded at PR19
E44: =InpActive!E288 -> Financing cost index | F44: =InpActive!F288 -> 0 | G44: =InpActive!G288 -> Index | H44: =InpActive!H288 -> 0 | I44: =InpActive!I288 -> 0 | J44: =InpActive!J288 -> 0 | K44: =InpActive!K288 -> 4 | L44: =InpActive!L288 -> 3 | M44: =InpActive!M288 -> 2 | N44: =InpActive!N288 -> 1 | O44: =InpActive!O288 -> 0 | P44: =InpActive!P288 -> 0
E45: =InpActive!E294 -> Real WACC CPIH Deflated - TTT | F45: =InpActive!F294 -> 0 | G45: =InpActive!G294 -> %
E46: Time value of money factor - TTT | G46: Factor | J46: =(1+$F45) ^ J44 -> 1 | K46: 1 | L46: 1 | M46: 1 | N46: 1 | O46: 1 | P46: 1
E48: =E$40 -> Variance to forecast totex for wage adjustment - TTT | F48: 0 | G48: £m | H48: 0 | I48: 0 | J48: 0 | K48: 0 | L48: 0 | M48: 0 | N48: 0 | O48: 0 | P48: 0
E49: =E46 -> Time value of money factor - TTT | F49: 0 | G49: Factor | H49: 0 | I49: 0 | J49: 1 | K49: 1 | L49: 1 | M49: 1 | N49: 1 | O49: 1 | P49: 1
E50: Variance to forecast totex for wage adjustment - NPV adjusted - WWN | G50: £m | H50: =SUM(J50:P50) -> 0 | J50: =J48*J49 -> 0 | K50: 0 | L50: 0 | M50: 0 | N50: 0 | O50: 0 | P50: 0
E51: (Under)/Overfunded wage related totex at PR19 - TTT | F51: =H50 * -1 -> 0 | G51: £m
C53: Cost sharing on net totex available for reconciliation
E55: =InpActive!E$184 -> Net totex for cost sharing reconciliation - TTT - nominal | F55: =InpActive!F$184 -> 0 | G55: =InpActive!G$184 -> £m | H55: =InpActive!H$184 -> 0 | I55: =InpActive!I$184 -> 0 | J55: =InpActive!J$184 -> 0 | K55: =InpActive!K$184 -> 0 | L55: =InpActive!L$184 -> 0 | M55: =InpActive!M$184 -> 0 | N55: =InpActive!N$184 -> 0 | O55: =InpActive!O$184 -> 0 | P55: =InpActive!P$184 -> 0
E56: =Index!E$43 -> CPI(H): Fin year average - inflate from base year 2017-18 average - CALC | F56: =Index!F$43 -> 0 | G56: =Index!G$43 -> % | H56: =Index!H$43 -> 0 | I56: =Index!I$43 -> 0 | J56: =Index!J$43 -> 1.038621462 | K56: =Index!K$43 -> 1.04693747 | L56: =Index!L$43 -> 1.085399008 | M56: =Index!M$43 -> 1.180633296 | N56: =Index!N$43 -> 1.24795125 | O56: =Index!O$43 -> 1.280060979 | P56: =Index!P$43 -> 1.305662199
E57: Actual net totex for cost sharing reconciliation - TTT - Real | G57: £m | J57: =J55 / J56 -> 0 | K57: 0 | L57: 0 | M57: 0 | N57: 0 | O57: 0 | P57: 0
E59: =InpActive!E$186 -> Performance related pay recovery mechanism adjustment - TTT - Nominal (Neg) | F59: =InpActive!F$186 -> 0 | G59: =InpActive!G$186 -> £m | H59: =InpActive!H$186 -> 0 | I59: =InpActive!I$186 -> 0 | J59: =InpActive!J$186 -> 0 | K59: =InpActive!K$186 -> 0 | L59: =InpActive!L$186 -> 0 | M59: =InpActive!M$186 -> 0 | N59: =InpActive!N$186 -> 0 | O59: =InpActive!O$186 -> 0 | P59: =InpActive!P$186 -> 0
E60: =Index!E$43 -> CPI(H): Fin year average - inflate from base year 2017-18 average - CALC | F60: =Index!F$43 -> 0 | G60: =Index!G$43 -> % | H60: =Index!H$43 -> 0 | I60: =Index!I$43 -> 0 | J60: =Index!J$43 -> 1.038621462 | K60: =Index!K$43 -> 1.04693747 | L60: =Index!L$43 -> 1.085399008 | M60: =Index!M$43 -> 1.180633296 | N60: =Index!N$43 -> 1.24795125 | O60: =Index!O$43 -> 1.280060979 | P60: =Index!P$43 -> 1.305662199
E61: Performance related pay recovery mechanism adjustment - TTT - real | G61: £m | H61: =SUM(K61:O61) -> 0 | J61: =J59 / J60 -> 0 | K61: =K59 / K60 -> 0 | L61: =L59 / L60 -> 0 | M61: 0 | N61: 0 | O61: 0 | P61: 0
E62: Total Performance related pay recovery mechanism adjustment - TTT - real | F62: =H61 -> 0 | G62: £m
E64: =E$57 -> Actual net totex for cost sharing reconciliation - TTT - Real | F64: 0 | G64: £m | H64: 0 | I64: 0 | J64: 0 | K64: 0 | L64: 0 | M64: 0 | N64: 0 | O64: 0 | P64: 0
E65: =E61 -> Performance related pay recovery mechanism adjustment - TTT - real | F65: 0 | G65: £m | H65: 0 | I65: 0 | J65: 0 | K65: 0 | L65: 0 | M65: 0 | N65: 0 | O65: 0 | P65: 0
E66: =Time!E$54 -> Forecast Period Flag | F66: =Time!F$54 -> 0 | G66: =Time!G$54 -> flag | H66: =Time!H$54 -> 5 | I66: =Time!I$54 -> 0 | J66: =Time!J$54 -> 0 | K66: =Time!K$54 -> 1 | L66: =Time!L$54 -> 1 | M66: =Time!M$54 -> 1 | N66: =Time!N$54 -> 1 | O66: =Time!O$54 -> 1 | P66: =Time!P$54 -> 0
E67: Actual net totex for cost sharing reconciliation - TTT - Real | G67: £m | H67: =SUM(J67:P67) -> 0 | J67: =(J64 + J65) * J66 -> 0 | K67: =(K64 + K65) * K66 -> 0 | L67: 0 | M67: 0 | N67: 0 | O67: 0 | P67: 0
D69: Profile for net totex for cost sharing
E70: =InpActive!E180 -> Opex split profile - Cost sharing - TTT | F70: =InpActive!F180 -> 0 | G70: =InpActive!G180 -> % | H70: =InpActive!H180 -> 0 | I70: =InpActive!I180 -> 0 | J70: =InpActive!J180 -> 0 | K70: =InpActive!K180 -> 0 | L70: =InpActive!L180 -> 0 | M70: =InpActive!M180 -> 0 | N70: =InpActive!N180 -> 0 | O70: =InpActive!O180 -> 0 | P70: =InpActive!P180 -> 0
E71: =InpActive!E181 -> Capex split profile - Cost sharing - TTT | F71: =InpActive!F181 -> 0 | G71: =InpActive!G181 -> % | H71: =InpActive!H181 -> 0 | I71: =InpActive!I181 -> 0 | J71: =InpActive!J181 -> 0 | K71: =InpActive!K181 -> 0 | L71: =InpActive!L181 -> 0 | M71: =InpActive!M181 -> 0 | N71: =InpActive!N181 -> 0 | O71: =InpActive!O181 -> 0 | P71: =InpActive!P181 -> 0
E72: Totex profile - Cost Sharing - TTT | G72: % | H72: =SUM(J72:P72) -> 0 | J72: =SUM(J70:J71) -> 0 | K72: 0 | L72: 0 | M72: 0 | N72: 0 | O72: 0 | P72: 0
E73: Totex profile - Cost Sharing - 5 year percentage - TTT | F73: =$H$72 -> 0 | G73: %
E75: =E$73 -> Totex profile - Cost Sharing - 5 year percentage - TTT | F75: =F$73 -> 0 | G75: =G$73 -> %
E76: TTT Totex profile - Cost Sharing 100% check | F76: =IF(OR(F75 = 1, F75 = 0), 0, 1) -> 0 | G76: Check
E78: =InpActive!E185 -> Net totex available for cost sharing - TTT - Real | F78: =InpActive!F185 -> 0 | G78: =InpActive!G185 -> £m
E79: =E$72 -> Totex profile - Cost Sharing - TTT | F79: 0 | G79: % | H79: 0 | I79: 0 | J79: 0 | K79: 0 | L79: 0 | M79: 0 | N79: 0 | O79: 0 | P79: 0
E80: Net totex available for cost sharing profiled - TTT - Real | G80: £m | H80: =SUM(J80:P80) -> 0 | J80: =J79 * $F78 -> 0 | K80: 0 | L80: 0 | M80: 0 | N80: 0 | O80: 0 | P80: 0
E82: =E$80 -> Net totex available for cost sharing profiled - TTT - Real | F82: 0 | G82: £m | H82: 0 | I82: 0 | J82: 0 | K82: 0 | L82: 0 | M82: 0 | N82: 0 | O82: 0 | P82: 0
E83: =E$40 -> Variance to forecast totex for wage adjustment - TTT | F83: 0 | G83: £m | H83: 0 | I83: 0 | J83: 0 | K83: 0 | L83: 0 | M83: 0 | N83: 0 | O83: 0 | P83: 0
E84: =InpActive!E188 -> Total final WINEP reconciliation - TTT - real | F84: =InpActive!F188 -> 0 | G84: =InpActive!G188 -> £m | H84: =InpActive!H188 -> 0 | I84: =InpActive!I188 -> 0 | J84: =InpActive!J188 -> 0 | K84: =InpActive!K188 -> 0 | L84: =InpActive!L188 -> 0 | M84: =InpActive!M188 -> 0 | N84: =InpActive!N188 -> 0 | O84: =InpActive!O188 -> 0 | P84: =InpActive!P188 -> 0
E85: =E61 -> Performance related pay recovery mechanism adjustment - TTT - real | F85: 0 | G85: £m | H85: 0 | I85: 0 | J85: 0 | K85: 0 | L85: 0 | M85: 0 | N85: 0 | O85: 0 | P85: 0
E86: Net totex available for cost sharing after adjustments profiled - TTT - Real | G86: £m | H86: =SUM(J86:P86) -> 0 | J86: =SUM(J82:J85) -> 0 | K86: =SUM(K82:K85) -> 0 | L86: =SUM(L82:L85) -> 0 | M86: 0 | N86: 0 | O86: 0 | P86: 0
D88: Variance to forecast net totex for cost sharing
E89: =E$67 -> Actual net totex for cost sharing reconciliation - TTT - Real | F89: 0 | G89: £m | H89: 0 | I89: 0 | J89: 0 | K89: 0 | L89: 0 | M89: 0 | N89: 0 | O89: 0 | P89: 0
E90: =E$86 -> Net totex available for cost sharing after adjustments profiled - TTT - Real | F90: 0 | G90: £m | H90: 0 | I90: 0 | J90: 0 | K90: 0 | L90: 0 | M90: 0 | N90: 0 | O90: 0 | P90: 0
E91: Variance to forecast net totex for cost sharing - TTT - Real | G91: £m | H91: =SUM(J91:P91) -> 0 | J91: =J89 - J90 -> 0 | K91: 0 | L91: 0 | M91: 0 | N91: 0 | O91: 0 | P91: 0
D93: Variance to forecast net totex for cost sharing - Time adjusted
E95: =E$91 -> Variance to forecast net totex for cost sharing - TTT - Real | F95: 0 | G95: £m | H95: 0 | I95: 0 | J95: 0 | K95: 0 | L95: 0 | M95: 0 | N95: 0 | O95: 0 | P95: 0
E96: =E$46 -> Time value of money factor - TTT | F96: 0 | G96: Factor | H96: 0 | I96: 0 | J96: 1 | K96: 1 | L96: 1 | M96: 1 | N96: 1 | O96: 1 | P96: 1
E97: Time adjusted variance to forecast net totex for cost sharing - TTT | G97: £m | H97: =SUM(J97:P97) -> 0 | J97: =J95 * J96 -> 0 | K97: 0 | L97: 0 | M97: 0 | N97: 0 | O97: 0 | P97: 0
E98: Total variance to forecast net totex for cost sharing - TTT | F98: =$H97 -> 0 | G98: £m
D100: Under / Overperformance on net totex for cost sharing
E102: =E$98 -> Total variance to forecast net totex for cost sharing - TTT | F102: =F$98 -> 0 | G102: =G$98 -> £m
E103: =InpActive!E$276 -> Outperformance Rate - TTT | F103: =InpActive!F$276 -> 0 | G103: =InpActive!G$276 -> %
E104: =InpActive!E$277 -> Underperformance Rate - TTT | F104: =InpActive!F$277 -> 0 | G104: =InpActive!G$277 -> %
E105: ="Active Sharing Rate - "& INDEX(E103:E104,MATCH(F105,F103:F104,0)) -> Active Sharing Rate - Outperformance Rate - TTT | F105: =IF(F102<0,F103,F104) -> 0 | G105: %
E107: =E$98 -> Total variance to forecast net totex for cost sharing - TTT | F107: =F$98 -> 0 | G107: =G$98 -> £m
E108: =E$105 -> Active Sharing Rate - Outperformance Rate - TTT | F108: =F$105 -> 0 | G108: =G$105 -> %
E109: Active adjustment for cost sharing - Net totex for cost sharing - TTT - Real | F109: =F107 * (1-F108) -> 0 | G109: £m
E111: =E109 -> Active adjustment for cost sharing - Net totex for cost sharing - TTT - Real | F111: =F109 -> 0 | G111: =G109 -> £m
E112: =E51 -> (Under)/Overfunded wage related totex at PR19 - TTT | F112: =F51 -> 0 | G112: =G51 -> £m
E113: =E62 -> Total Performance related pay recovery mechanism adjustment - TTT - real | F113: =F62 -> 0 | G113: £m
E114: Total adjustment for cost sharing after ex ante allowance - TTT - Real | F114: =F111 - F112 + F113 -> 0 | G114: £m
C116: Cost sharing adjustment RCV/Revenue Split
E118: =E$114 -> Total adjustment for cost sharing after ex ante allowance - TTT - Real | F118: =F$114 -> 0 | G118: =G$114 -> £m
E119: =InpActive!E$190 -> Weighted average PAYG rate - TTT | F119: =InpActive!F$190 -> 0 | G119: =InpActive!G$190 -> %
E120: Cost sharing revenue adjustment - TTT - Real | F120: =F118 * $F$119 -> 0 | G120: £m
E122: =E$114 -> Total adjustment for cost sharing after ex ante allowance - TTT - Real | F122: =F$114 -> 0 | G122: =G$114 -> £m
E123: =InpActive!E$190 -> Weighted average PAYG rate - TTT | F123: =InpActive!F$190 -> 0 | G123: =InpActive!G$190 -> %
E124: Cost sharing RCV adjustment - TTT - Real | F124: =F122 * (1 - $F$123) -> 0 | G124: £m
A127: END OF SHEET

Sheet Green Recovery
A1: =RIGHT(CELL("filename", $A$1), LEN(CELL("filename", $A$1)) - SEARCH("]", CELL("filename", $A$1))) -> Green Recovery
E2: =Time!E$22 -> Model Period BEG | J2: =Time!J$22 -> 2019-04-01 | K2: =Time!K$22 -> 2020-04-01 | L2: =Time!L$22 -> 2021-04-01 | M2: =Time!M$22 -> 2022-04-01 | N2: =Time!N$22 -> 2023-04-01 | O2: =Time!O$22 -> 2024-04-01 | P2: =Time!P$22 -> 2025-04-01
E3: =Time!E$23 -> Model Period END | F3: =Check!F$8 -> 0 | G3: Error chks | J3: =Time!J$23 -> 2020-03-31 | K3: =Time!K$23 -> 2021-03-31 | L3: =Time!L$23 -> 2022-03-31 | M3: =Time!M$23 -> 2023-03-31 | N3: =Time!N$23 -> 2024-03-31 | O3: =Time!O$23 -> 2025-03-31 | P3: =Time!P$23 -> 2026-03-31
E4: =Time!E$59 -> Pre Forecast vs Forecast | J4: =Time!J$59 -> Pre Fcst | K4: =Time!K$59 -> Forecast | L4: =Time!L$59 -> Forecast | M4: =Time!M$59 -> Forecast | N4: =Time!N$59 -> Forecast | O4: =Time!O$59 -> Forecast | P4: =Time!P$59 -> Post-Fcst
E5: =Time!E$101 -> Financial Year Ending | J5: =Time!J$101 -> 2020 | K5: =Time!K$101 -> 2021 | L5: =Time!L$101 -> 2022 | M5: =Time!M$101 -> 2023 | N5: =Time!N$101 -> 2024 | O5: =Time!O$101 -> 2025 | P5: =Time!P$101 -> 2026
E6: =Time!E$11 -> Model column counter | F6: Constant | G6: Unit | H6: Total | J6: =Time!J$11 -> 1 | K6: =Time!K$11 -> 2 | L6: =Time!L$11 -> 3 | M6: =Time!M$11 -> 4 | N6: =Time!N$11 -> 5 | O6: =Time!O$11 -> 6 | P6: =Time!P$11 -> 7
A9: ACTIVE GREEN RECOVERY COST SHARING RATE
C11: Active Sharing Rates -WR/WN
E13: =E37 -> Variance to green recovery expenditure - WR - real | F13: =F37 -> 0 | G13: =G37 -> £m
E14: =E73 -> Variance to green recovery expenditure - WN - real | F14: =F73 -> 0 | G14: =G73 -> £m
E15: =E108 -> Variance to green recovery expenditure - WWN - real | F15: 0 | G15: £m
E16: Total Variance to green recovery expenditure - real | F16: =SUM(F13:F15) -> 0 | G16: £m
E18: =E$16 -> Total Variance to green recovery expenditure - real | F18: =F$16 -> 0 | G18: £m
E19: =InpActive!E$212 -> Green Recovery Outperformance Rate | F19: =InpActive!F$212 -> 0.1 | G19: =InpActive!G$212 -> %
E20: =InpActive!E$213 -> Green Recovery Underperformance Rate | F20: =InpActive!F$213 -> 0.5 | G20: =InpActive!G$213 -> %
E21: ="Active Sharing Rate - "& INDEX(E19:E20,MATCH(F21,F19:F20,0)) -> Active Sharing Rate - Green Recovery Underperformance Rate | F21: =IF(F18<0,F19,F20) -> 0.5 | G21: %
A24: WATER RESOURCES
E26: =InpActive!E$197 -> Actual Green Recovery Expenditure - WR - nominal | F26: =InpActive!F$197 -> 0 | G26: =InpActive!G$197 -> £m | H26: =InpActive!H$197 -> 0 | I26: =InpActive!I$197 -> 0 | J26: =InpActive!J$197 -> 0 | K26: =InpActive!K$197 -> 0 | L26: =InpActive!L$197 -> 0 | M26: =InpActive!M$197 -> 0 | N26: =InpActive!N$197 -> 0 | O26: =InpActive!O$197 -> 0 | P26: =InpActive!P$197 -> 0
E27: =Index!E$43 -> CPI(H): Fin year average - inflate from base year 2017-18 average - CALC | F27: =Index!F$43 -> 0 | G27: =Index!G$43 -> % | H27: =Index!H$43 -> 0 | I27: =Index!I$43 -> 0 | J27: =Index!J$43 -> 1.038621462 | K27: =Index!K$43 -> 1.04693747 | L27: =Index!L$43 -> 1.085399008 | M27: =Index!M$43 -> 1.180633296 | N27: =Index!N$43 -> 1.24795125 | O27: =Index!O$43 -> 1.280060979 | P27: =Index!P$43 -> 1.305662199
E28: Actual Green Recovery Expenditure - WR - real | G28: £m | H28: =SUM(J28:P28) -> 0 | J28: =J26 / J27 -> 0 | K28: =K26 / K27 -> 0 | L28: =L26 / L27 -> 0 | M28: 0 | N28: 0 | O28: 0 | P28: 0
E30: =E28 -> Actual Green Recovery Expenditure - WR - real | F30: =F28 -> 0 | G30: £m | H30: 0 | I30: 0 | J30: 0 | K30: =K28 -> 0 | L30: 0 | M30: 0 | N30: 0 | O30: 0 | P30: 0
E31: =Time!E$54 -> Forecast Period Flag | F31: =Time!F$54 -> 0 | G31: =Time!G$54 -> flag | H31: =Time!H$54 -> 5 | I31: =Time!I$54 -> 0 | J31: =Time!J$54 -> 0 | K31: =Time!K$54 -> 1 | L31: =Time!L$54 -> 1 | M31: =Time!M$54 -> 1 | N31: =Time!N$54 -> 1 | O31: =Time!O$54 -> 1 | P31: =Time!P$54 -> 0
E32: Actual Green Recovery Expenditure for cost sharing - WR - real | G32: £m | H32: =SUM(J32:P32) -> 0 | J32: =J30 * J31 -> 0 | K32: =K30 * K31 -> 0 | L32: 0 | M32: 0 | N32: 0 | O32: 0 | P32: 0
D34: Variance to forecast totex for green recovery expenditure
E35: =E$32 -> Actual Green Recovery Expenditure for cost sharing - WR - real | F35: 0 | G35: £m | H35: 0 | I35: 0 | J35: 0 | K35: 0 | L35: =L$32 -> 0 | M35: 0 | N35: 0 | O35: 0 | P35: 0
E36: =InpActive!E$198 -> Total adjusted cost allowance - WR - real | F36: =InpActive!F$198 -> 0 | G36: =InpActive!G$198 -> £m | H36: =InpActive!H$198 -> 0 | I36: =InpActive!I$198 -> 0 | J36: =InpActive!J$198 -> 0 | K36: =InpActive!K$198 -> 0 | L36: =InpActive!L$198 -> 0 | M36: =InpActive!M$198 -> 0 | N36: =InpActive!N$198 -> 0 | O36: =InpActive!O$198 -> 0 | P36: =InpActive!P$198 -> 0
E37: Variance to green recovery expenditure - WR - real | F37: =H35 - H36 -> 0 | G37: £m | H37: =SUM(J37:P37) -> 0
E39: =E$32 -> Actual Green Recovery Expenditure for cost sharing - WR - real | F39: 0 | G39: £m | H39: 0 | I39: 0 | J39: 0 | K39: 0 | L39: 0 | M39: 0 | N39: 0 | O39: 0 | P39: 0
E40: =E37 -> Variance to green recovery expenditure - WR - real | F40: =F37 -> 0 | G40: =G37 -> £m
E41: Apportioned variance to GRE - WR - real | G41: £m | H41: =SUM(J41:O41) -> 0 | J41: =IF($F$40=0,0, $F$40 * (J39/SUM($K$39:$O$39))) -> 0 | K41: =IF($F$40=0,0, $F$40 * (K39/SUM($K$39:$O$39))) -> 0 | L41: =IF($F$40=0,0, $F$40 * (L39/SUM($K$39:$O$39))) -> 0 | M41: 0 | N41: 0 | O41: 0 | P41: 0
D43: Variance to forecast totex for green recovery expenditure - Time adjusted
E44: =InpActive!E$288 -> Financing cost index | F44: =InpActive!F$288 -> 0 | G44: =InpActive!G$288 -> Index | H44: =InpActive!H$288 -> 0 | I44: =InpActive!I$288 -> 0 | J44: =InpActive!J$288 -> 0 | K44: =InpActive!K$288 -> 4 | L44: =InpActive!L$288 -> 3 | M44: =InpActive!M$288 -> 2 | N44: =InpActive!N$288 -> 1 | O44: =InpActive!O$288 -> 0 | P44: =InpActive!P$288 -> 0
E45: =InpActive!E$290 -> Real WACC CPIH Deflated - WR | F45: =InpActive!F$290 -> 0.0292 | G45: =InpActive!G$290 -> %
E46: Time value of money factor - WR | G46: Factor | J46: =(1+$F45) ^ J44 -> 1 | K46: =(1+$F45) ^ K44 -> 1.122016155 | L46: 1.090182817 | M46: 1.05925264 | N46: 1.0292 | O46: 1 | P46: 1
E48: =E$41 -> Apportioned variance to GRE - WR - real | F48: 0 | G48: £m | H48: 0 | I48: 0 | J48: 0 | K48: 0 | L48: 0 | M48: 0 | N48: 0 | O48: 0 | P48: 0
E49: =E$46 -> Time value of money factor - WR | F49: 0 | G49: Factor | H49: 0 | I49: 0 | J49: 1 | K49: 1.122016155 | L49: 1.090182817 | M49: 1.05925264 | N49: 1.0292 | O49: 1 | P49: 1
E50: Time adjusted variance to green recovery expenditure - WR - real | G50: £m | H50: =SUM(J50:P50) -> 0 | J50: =J48 * J49 -> 0 | K50: =K48 * K49 -> 0 | L50: =L48 * L49 -> 0 | M50: 0 | N50: 0 | O50: 0 | P50: 0
E51: Total variance to green recovery expenditure - WR - real | F51: =$H50 -> 0 | G51: £m
D53: Under / Overperformance on green recovery expenditure
E55: =E$51 -> Total variance to green recovery expenditure - WR - real | F55: =F$51 -> 0 | G55: =G$51 -> £m
E56: =E$21 -> Active Sharing Rate - Green Recovery Underperformance Rate | F56: =F$21 -> 0.5 | G56: %
E57: Active RCV adjustment for cost sharing - Green Recovery Expenditure - WR - Real | F57: =F55 * (1-F56) -> 0 | G57: £m
A60: WATER NETWORK
E62: =InpActive!E$202 -> Actual Green Recovery Expenditure - WN - nominal | F62: =InpActive!F$202 -> 0 | G62: =InpActive!G$202 -> £m | H62: =InpActive!H$202 -> 0 | I62: =InpActive!I$202 -> 0 | J62: =InpActive!J$202 -> 0 | K62: =InpActive!K$202 -> 0 | L62: =InpActive!L$202 -> 0 | M62: =InpActive!M$202 -> 0 | N62: =InpActive!N$202 -> 0 | O62: =InpActive!O$202 -> 0 | P62: =InpActive!P$202 -> 0
E63: =Index!E$43 -> CPI(H): Fin year average - inflate from base year 2017-18 average - CALC | F63: =Index!F$43 -> 0 | G63: =Index!G$43 -> % | H63: =Index!H$43 -> 0 | I63: =Index!I$43 -> 0 | J63: =Index!J$43 -> 1.038621462 | K63: =Index!K$43 -> 1.04693747 | L63: =Index!L$43 -> 1.085399008 | M63: =Index!M$43 -> 1.180633296 | N63: =Index!N$43 -> 1.24795125 | O63: =Index!O$43 -> 1.280060979 | P63: =Index!P$43 -> 1.305662199
E64: Actual Green Recovery Expenditure - WN - real | G64: £m | H64: =SUM(J64:P64) -> 0 | J64: =J62 / J63 -> 0 | K64: =K62 / K63 -> 0 | L64: =L62 / L63 -> 0 | M64: 0 | N64: 0 | O64: 0 | P64: 0
E66: =E64 -> Actual Green Recovery Expenditure - WN - real | F66: =F64 -> 0 | G66: £m | H66: 0 | I66: 0 | J66: 0 | K66: =K64 -> 0 | L66: 0 | M66: 0 | N66: 0 | O66: 0 | P66: 0
E67: =Time!E$54 -> Forecast Period Flag | F67: =Time!F$54 -> 0 | G67: =Time!G$54 -> flag | H67: =Time!H$54 -> 5 | I67: =Time!I$54 -> 0 | J67: =Time!J$54 -> 0 | K67: =Time!K$54 -> 1 | L67: =Time!L$54 -> 1 | M67: =Time!M$54 -> 1 | N67: =Time!N$54 -> 1 | O67: =Time!O$54 -> 1 | P67: =Time!P$54 -> 0
E68: Actual Green Recovery Expenditure for cost sharing - WN - real | G68: £m | H68: =SUM(J68:P68) -> 0 | J68: =J66 * J67 -> 0 | K68: =K66 * K67 -> 0 | L68: 0 | M68: 0 | N68: 0 | O68: 0 | P68: 0
D70: Variance to forecast totex for green recovery expenditure
E71: =E$68 -> Actual Green Recovery Expenditure for cost sharing - WN - real | F71: 0 | G71: £m | H71: 0 | I71: 0 | J71: 0 | K71: 0 | L71: 0 | M71: 0 | N71: 0 | O71: 0 | P71: 0
E72: =InpActive!E$203 -> Total adjusted cost allowance - WN - real | F72: =InpActive!F$203 -> 0 | G72: =InpActive!G$203 -> £m | H72: =InpActive!H$203 -> 0 | I72: =InpActive!I$203 -> 0 | J72: =InpActive!J$203 -> 0 | K72: =InpActive!K$203 -> 0 | L72: =InpActive!L$203 -> 0 | M72: =InpActive!M$203 -> 0 | N72: =InpActive!N$203 -> 0 | O72: =InpActive!O$203 -> 0 | P72: =InpActive!P$203 -> 0
E73: Variance to green recovery expenditure - WN - real | F73: =H71 - H72 -> 0 | G73: £m | H73: =SUM(J73:O73) -> 0
E75: =E$68 -> Actual Green Recovery Expenditure for cost sharing - WN - real | F75: 0 | G75: £m | H75: 0 | I75: 0 | J75: 0 | K75: 0 | L75: 0 | M75: 0 | N75: 0 | O75: 0 | P75: 0
E76: =E73 -> Variance to green recovery expenditure - WN - real | F76: =F73 -> 0 | G76: £m
E77: Apportioned variance to GRE - WN - real | G77: £m | H77: =SUM(J77:O77) -> 0 | J77: =IF($F$76 = 0, 0, $F$76*(J75/SUM($K$75:$O$75))) -> 0 | K77: 0 | L77: 0 | M77: 0 | N77: 0 | O77: 0 | P77: 0
D79: Variance to forecast totex for green recovery expenditure - Time adjusted
E80: =InpActive!E$288 -> Financing cost index | F80: =InpActive!F$288 -> 0 | G80: =InpActive!G$288 -> Index | H80: =InpActive!H$288 -> 0 | I80: =InpActive!I$288 -> 0 | J80: =InpActive!J$288 -> 0 | K80: =InpActive!K$288 -> 4 | L80: =InpActive!L$288 -> 3 | M80: =InpActive!M$288 -> 2 | N80: =InpActive!N$288 -> 1 | O80: =InpActive!O$288 -> 0 | P80: =InpActive!P$288 -> 0
E81: =InpActive!E$291 -> Real WACC CPIH Deflated - WN | F81: =InpActive!F$291 -> 0.0292 | G81: =InpActive!G$291 -> %
E82: Time value of money factor - WN | G82: Factor | J82: =(1+$F81) ^ J80 -> 1 | K82: =(1+$F81) ^ K80 -> 1.122016155 | L82: 1.090182817 | M82: 1.05925264 | N82: 1.0292 | O82: 1 | P82: 1
E84: =E$77 -> Apportioned variance to GRE - WN - real | F84: 0 | G84: £m | H84: 0 | I84: 0 | J84: 0 | K84: 0 | L84: 0 | M84: 0 | N84: 0 | O84: 0 | P84: 0
E85: =E$82 -> Time value of money factor - WN | F85: 0 | G85: Factor | H85: 0 | I85: 0 | J85: 1 | K85: 1.122016155 | L85: 1.090182817 | M85: 1.05925264 | N85: 1.0292 | O85: 1 | P85: 1
E86: Time adjusted variance to green recovery expenditure - WN - real | G86: £m | H86: =SUM(J86:P86) -> 0 | J86: =J84 * J85 -> 0 | K86: =K84 * K85 -> 0 | L86: 0 | M86: =M84 * M85 -> 0 | N86: 0 | O86: 0 | P86: 0
E87: Total variance to green recovery expenditure - WN - real | F87: =$H86 -> 0 | G87: £m
D89: Under / Overperformance on green recovery expenditure
E91: =E$87 -> Total variance to green recovery expenditure - WN - real | F91: =F$87 -> 0 | G91: £m
E92: =E$21 -> Active Sharing Rate - Green Recovery Underperformance Rate | F92: =F$21 -> 0.5 | G92: %
E93: Active RCV adjustment for cost sharing - Green Recovery Expenditure - WN - Real | F93: =F91 * (1-F92) -> 0 | G93: £m
A95: WASTEWATER NETWORK
E97: =InpActive!E$207 -> Actual Green Recovery Expenditure - WWN - nominal | F97: =InpActive!F$207 -> 0 | G97: =InpActive!G$207 -> £m | H97: =InpActive!H$207 -> 0 | I97: =InpActive!I$207 -> 0 | J97: =InpActive!J$207 -> 0 | K97: =InpActive!K$207 -> 0 | L97: =InpActive!L$207 -> 0 | M97: =InpActive!M$207 -> 0 | N97: =InpActive!N$207 -> 0 | O97: =InpActive!O$207 -> 0 | P97: =InpActive!P$207 -> 0
E98: =Index!E$43 -> CPI(H): Fin year average - inflate from base year 2017-18 average - CALC | F98: =Index!F$43 -> 0 | G98: =Index!G$43 -> % | H98: =Index!H$43 -> 0 | I98: =Index!I$43 -> 0 | J98: =Index!J$43 -> 1.038621462 | K98: =Index!K$43 -> 1.04693747 | L98: =Index!L$43 -> 1.085399008 | M98: =Index!M$43 -> 1.180633296 | N98: =Index!N$43 -> 1.24795125 | O98: =Index!O$43 -> 1.280060979 | P98: =Index!P$43 -> 1.305662199
E99: Actual Green Recovery Expenditure - WWN - real | G99: £m | H99: =SUM(J99:P99) -> 0 | J99: =J97 / J98 -> 0 | K99: =K97 / K98 -> 0 | L99: =L97 / L98 -> 0 | M99: 0 | N99: 0 | O99: 0 | P99: 0
E101: =E99 -> Actual Green Recovery Expenditure - WWN - real | F101: =F99 -> 0 | G101: £m | H101: 0 | I101: 0 | J101: 0 | K101: =K99 -> 0 | L101: 0 | M101: 0 | N101: 0 | O101: 0 | P101: 0
E102: =Time!E$54 -> Forecast Period Flag | F102: =Time!F$54 -> 0 | G102: =Time!G$54 -> flag | H102: =Time!H$54 -> 5 | I102: =Time!I$54 -> 0 | J102: =Time!J$54 -> 0 | K102: =Time!K$54 -> 1 | L102: =Time!L$54 -> 1 | M102: =Time!M$54 -> 1 | N102: =Time!N$54 -> 1 | O102: =Time!O$54 -> 1 | P102: =Time!P$54 -> 0
E103: Actual Green Recovery Expenditure for cost sharing - WWN - real | G103: £m | H103: =SUM(J103:P103) -> 0 | J103: =J101 * J102 -> 0 | K103: =K101 * K102 -> 0 | L103: 0 | M103: 0 | N103: 0 | O103: 0 | P103: 0
D105: Variance to forecast totex for green recovery expenditure
E106: =E$103 -> Actual Green Recovery Expenditure for cost sharing - WWN - real | F106: 0 | G106: £m | H106: 0 | I106: 0 | J106: 0 | K106: 0 | L106: 0 | M106: 0 | N106: 0 | O106: 0 | P106: 0
E107: =InpActive!E$208 -> Total adjusted cost allowance - WWN - real | F107: =InpActive!F$208 -> 0 | G107: =InpActive!G$208 -> £m | H107: =InpActive!H$208 -> 0 | I107: =InpActive!I$208 -> 0 | J107: =InpActive!J$208 -> 0 | K107: =InpActive!K$208 -> 0 | L107: =InpActive!L$208 -> 0 | M107: =InpActive!M$208 -> 0 | N107: =InpActive!N$208 -> 0 | O107: =InpActive!O$208 -> 0 | P107: =InpActive!P$208 -> 0
E108: Variance to green recovery expenditure - WWN - real | F108: =H106 - H107 -> 0 | G108: £m
E110: =E$106 -> Actual Green Recovery Expenditure for cost sharing - WWN - real | F110: 0 | G110: £m | H110: 0 | I110: 0 | J110: 0 | K110: 0 | L110: 0 | M110: 0 | N110: 0 | O110: 0 | P110: 0
E111: =E108 -> Variance to green recovery expenditure - WWN - real | F111: =F108 -> 0 | G111: £m
E112: Apportioned variance to GRE - WWN - real | G112: £m | H112: =SUM(J112:O112) -> 0 | J112: =IF($F$111 = 0, 0, $F$111*(J110/SUM($K$110:$O$110))) -> 0 | K112: 0 | L112: 0 | M112: 0 | N112: 0 | O112: 0 | P112: 0
D115: Variance to forecast totex for green recovery expenditure - Time adjusted
E116: =InpActive!E$288 -> Financing cost index | F116: =InpActive!F$288 -> 0 | G116: =InpActive!G$288 -> Index | H116: =InpActive!H$288 -> 0 | I116: =InpActive!I$288 -> 0 | J116: =InpActive!J$288 -> 0 | K116: =InpActive!K$288 -> 4 | L116: =InpActive!L$288 -> 3 | M116: =InpActive!M$288 -> 2 | N116: =InpActive!N$288 -> 1 | O116: =InpActive!O$288 -> 0 | P116: =InpActive!P$288 -> 0
E117: =InpActive!E$292 -> Real WACC CPIH Deflated - WWN | F117: =InpActive!F$292 -> 0.0292 | G117: =InpActive!G$292 -> %
E118: Time value of money factor - WWN | G118: Factor | J118: =(1+$F117) ^ J116 -> 1 | K118: =(1+$F117) ^ K116 -> 1.122016155 | L118: =(1+$F117) ^ L116 -> 1.090182817 | M118: 1.05925264 | N118: 1.0292 | O118: 1 | P118: 1
E120: =E112 -> Apportioned variance to GRE - WWN - real | F120: =F112 -> 0 | G120: £m | H120: 0 | I120: 0 | J120: 0 | K120: =K112 -> 0 | L120: 0 | M120: 0 | N120: 0 | O120: 0 | P120: 0
E121: =E$118 -> Time value of money factor - WWN | F121: 0 | G121: Factor | H121: 0 | I121: 0 | J121: 1 | K121: 1.122016155 | L121: 1.090182817 | M121: 1.05925264 | N121: 1.0292 | O121: 1 | P121: 1
E122: Time adjusted variance to green recovery expenditure - WWN - real | G122: £m | H122: =SUM(J122:P122) -> 0 | J122: =J120 * J121 -> 0 | K122: =K120 * K121 -> 0 | L122: 0 | M122: 0 | N122: 0 | O122: 0 | P122: 0
E123: Total variance to green recovery expenditure - WWN - real | F123: =$H122 -> 0 | G123: £m
D125: Under / Overperformance on green recovery expenditure
E127: =E$123 -> Total variance to green recovery expenditure - WWN - real | F127: =F$123 -> 0 | G127: £m
E128: =E$21 -> Active Sharing Rate - Green Recovery Underperformance Rate | F128: =F$21 -> 0.5 | G128: %
E129: Active RCV adjustment for cost sharing - Green Recovery Expenditure - WWN - Real | F129: =F127 * (1-F128) -> 0 | G129: £m
A131: END OF SHEET

Sheet Outputs-->

Sheet Outputs
A1: =RIGHT(CELL("filename", $A$1), LEN(CELL("filename", $A$1)) - SEARCH("]", CELL("filename", $A$1))) -> Outputs
E2: =Time!E$22 -> Model Period BEG | J2: =Time!J$22 -> 2019-04-01 | K2: =Time!K$22 -> 2020-04-01 | L2: =Time!L$22 -> 2021-04-01 | M2: =Time!M$22 -> 2022-04-01 | N2: =Time!N$22 -> 2023-04-01 | O2: =Time!O$22 -> 2024-04-01 | P2: =Time!P$22 -> 2025-04-01
E3: =Time!E$23 -> Model Period END | F3: =Check!F$8 -> 0 | G3: Error chks | J3: =Time!J$23 -> 2020-03-31 | K3: =Time!K$23 -> 2021-03-31 | L3: =Time!L$23 -> 2022-03-31 | M3: =Time!M$23 -> 2023-03-31 | N3: =Time!N$23 -> 2024-03-31 | O3: =Time!O$23 -> 2025-03-31 | P3: =Time!P$23 -> 2026-03-31
E4: =Time!E$59 -> Pre Forecast vs Forecast | J4: =Time!J$59 -> Pre Fcst | K4: =Time!K$59 -> Forecast | L4: =Time!L$59 -> Forecast | M4: =Time!M$59 -> Forecast | N4: =Time!N$59 -> Forecast | O4: =Time!O$59 -> Forecast | P4: =Time!P$59 -> Post-Fcst
E5: =Time!E$101 -> Financial Year Ending | J5: =Time!J$101 -> 2020 | K5: =Time!K$101 -> 2021 | L5: =Time!L$101 -> 2022 | M5: =Time!M$101 -> 2023 | N5: =Time!N$101 -> 2024 | O5: =Time!O$101 -> 2025 | P5: =Time!P$101 -> 2026
E6: =Time!E$11 -> Model column counter | F6: Constant | G6: Unit | H6: Total | J6: =Time!J$11 -> 1 | K6: =Time!K$11 -> 2 | L6: =Time!L$11 -> 3 | M6: =Time!M$11 -> 4 | N6: =Time!N$11 -> 5 | O6: =Time!O$11 -> 6 | P6: =Time!P$11 -> 7
A8: WATER RESOURCES
B10: Cost sharing
E11: ='Cost sharing calculations'!E$180 -> Total adjustment for cost sharing after ex ante allowance & wage adjustment - WR - Real | F11: ='Cost sharing calculations'!F$180 -> -5.157329274 | G11: ='Cost sharing calculations'!G$180 -> £m
E12: ='Cost sharing calculations'!E$198 -> Wholesaler bad debt adjustment - WR | F12: ='Cost sharing calculations'!F$198 -> 0 | G12: ='Cost sharing calculations'!G$198 -> £m
E13: ='Cost sharing calculations'!E$208 -> Cost sharing revenue adjustment - WR - Real | F13: ='Cost sharing calculations'!F$208 -> -3.305848065 | G13: ='Cost sharing calculations'!G$208 -> £m
E14: ='Cost sharing calculations'!E$212 -> Cost sharing RCV adjustment - WR - Real | F14: ='Cost sharing calculations'!F$212 -> -1.851481209 | G14: ='Cost sharing calculations'!G$212 -> £m
E15: Water Resources cost sharing 100% check | F15: =IF(SUM(F11:F12) <> SUM(F13:F14), 1, 0) -> 0 | G15: Check
B17: Abstraction & Business Rates uncertainty mechanism
E18: ='Abstraction & Rates'!E82 -> Active adjustment for abstraction charges & business rates uncertainty mechanism - WR - Real | F18: ='Abstraction & Rates'!F82 -> 0.7081119709 | G18: ='Abstraction & Rates'!G82 -> £m
E19: ='Abstraction & Rates'!E86 -> Revenue adjustment business rates and abstraction - WR - Real | F19: ='Abstraction & Rates'!F86 -> 0.4538997733 | G19: ='Abstraction & Rates'!G86 -> £m
E20: ='Abstraction & Rates'!E90 -> RCV adjustment business rates and abstraction - WR - Real | F20: ='Abstraction & Rates'!F90 -> 0.2542121975 | G20: ='Abstraction & Rates'!G90 -> £m
B22: Revenue adjustment
E23: ='Cost sharing calculations'!E$208 -> Cost sharing revenue adjustment - WR - Real | F23: ='Cost sharing calculations'!F$208 -> -3.305848065 | G23: ='Cost sharing calculations'!G$208 -> £m
E24: ='Abstraction & Rates'!E86 -> Revenue adjustment business rates and abstraction - WR - Real | F24: ='Abstraction & Rates'!F86 -> 0.4538997733 | G24: ='Abstraction & Rates'!G86 -> £m
E25: Total Revenue adjustment for cost sharing - WR - Real | F25: =SUM(F23:F24) -> -2.851948291 | G25: £m
B27: RCV adjustment
E28: ='Cost sharing calculations'!E$212 -> Cost sharing RCV adjustment - WR - Real | F28: ='Cost sharing calculations'!F$212 -> -1.851481209 | G28: ='Cost sharing calculations'!G$212 -> £m
E29: ='Abstraction & Rates'!E90 -> RCV adjustment business rates and abstraction - WR - Real | F29: ='Abstraction & Rates'!F90 -> 0.2542121975 | G29: ='Abstraction & Rates'!G90 -> £m
E30: ='Green Recovery'!E$57 -> Active RCV adjustment for cost sharing - Green Recovery Expenditure - WR - Real | F30: ='Green Recovery'!F$57 -> 0 | G30: ='Green Recovery'!G$57 -> £m
E31: Total RCV adjustment for cost sharing - WR - Real | F31: =SUM(F28:F30) -> -1.597269012 | G31: £m
A34: WATER NETWORK
B36: Cost sharing
E37: ='Cost sharing calculations'!E$347 -> Total adjustment for cost sharing after ex ante allowance - WN - Real | F37: ='Cost sharing calculations'!F$347 -> 43.34470034 | G37: ='Cost sharing calculations'!G$347 -> £m
E38: ='Cost sharing calculations'!E$365 -> Wholesaler bad debt adjustment - WN | F38: ='Cost sharing calculations'!F$365 -> 0 | G38: ='Cost sharing calculations'!G$365 -> £m
E39: ='Cost sharing calculations'!E$375 -> Cost sharing revenue adjustment - WN - Real | F39: ='Cost sharing calculations'!F$375 -> 31.29487364 | G39: ='Cost sharing calculations'!G$375 -> £m
E40: ='Cost sharing calculations'!E$379 -> Cost sharing RCV adjustment - WN - Real | F40: ='Cost sharing calculations'!F$379 -> 12.04982669 | G40: ='Cost sharing calculations'!G$379 -> £m
E41: Water Network cost sharing 100% check | F41: =IF(SUM(F37:F38) <> SUM(F39:F40), 1, 0) -> 0 | G41: Check
B43: Abstraction & Business Rates uncertainty mechanism
E44: ='Abstraction & Rates'!E$166 -> Active adjustment for abstraction charges & business rates uncertainty mechanism - WR - Real | F44: ='Abstraction & Rates'!F$166 -> -8.805596439 | G44: ='Abstraction & Rates'!G$166 -> £m
E45: ='Abstraction & Rates'!E$170 -> Revenue adjustment business rates and abstraction - WN - Real | F45: ='Abstraction & Rates'!F$170 -> -6.357640629 | G45: ='Abstraction & Rates'!G$170 -> £m
E46: ='Abstraction & Rates'!E$174 -> RCV adjustment business rates and abstraction - WN - Real | F46: ='Abstraction & Rates'!F$174 -> -2.44795581 | G46: ='Abstraction & Rates'!G$174 -> £m
B48: Revenue adjustment
E49: ='Cost sharing calculations'!E$375 -> Cost sharing revenue adjustment - WN - Real | F49: ='Cost sharing calculations'!F$375 -> 31.29487364 | G49: ='Cost sharing calculations'!G$375 -> £m
E50: ='Abstraction & Rates'!E170 -> Revenue adjustment business rates and abstraction - WN - Real | F50: ='Abstraction & Rates'!F170 -> -6.357640629 | G50: ='Abstraction & Rates'!G170 -> £m
E51: Total Revenue adjustment for cost sharing - WN - Real | F51: =SUM(F49:F50) -> 24.93723302 | G51: £m
B53: RCV adjustment
E54: ='Cost sharing calculations'!E$379 -> Cost sharing RCV adjustment - WN - Real | F54: ='Cost sharing calculations'!F$379 -> 12.04982669 | G54: ='Cost sharing calculations'!G$379 -> £m
E55: ='Abstraction & Rates'!E174 -> RCV adjustment business rates and abstraction - WN - Real | F55: ='Abstraction & Rates'!F174 -> -2.44795581 | G55: ='Abstraction & Rates'!G174 -> £m
E56: ='Green Recovery'!E93 -> Active RCV adjustment for cost sharing - Green Recovery Expenditure - WN - Real | F56: ='Green Recovery'!F93 -> 0 | G56: ='Green Recovery'!G93 -> £m
E57: Total RCV adjustment for cost sharing - WN - Real | F57: =SUM(F54:F56) -> 9.601870884 | G57: £m
A60: WASTEWATER NETWORK
B62: Cost sharing
E63: ='Cost sharing calculations'!E$520 -> Total adjustment for cost sharing after ex ante allowance - WWN - Real | F63: ='Cost sharing calculations'!F$520 -> -27.89024668 | G63: ='Cost sharing calculations'!G$520 -> £m
E64: ='Cost sharing calculations'!E$538 -> Wholesaler bad debt adjustment - WWN | F64: ='Cost sharing calculations'!F$538 -> 0 | G64: ='Cost sharing calculations'!G$538 -> £m
E65: ='Cost sharing calculations'!E$548 -> Cost sharing revenue adjustment - WWN - Real | F65: ='Cost sharing calculations'!F$548 -> -11.23976941 | G65: ='Cost sharing calculations'!G$548 -> £m
E66: ='Cost sharing calculations'!E$552 -> Cost sharing RCV adjustment - WWN - Real | F66: ='Cost sharing calculations'!F$552 -> -16.65047727 | G66: ='Cost sharing calculations'!G$552 -> £m
E67: Wastewater Network cost sharing 100% check | F67: =IF(SUM(F63:F64) <> SUM(F65:F66), 1, 0) -> 0 | G67: Check
B69: Abstraction & Business Rates uncertainty mechanism
E70: ='Abstraction & Rates'!E$211 -> Active adjustment for business rates uncertainty mechanism - WWN - Real | F70: ='Abstraction & Rates'!F$211 -> -0.3452076347 | G70: ='Abstraction & Rates'!G$211 -> £m
E71: ='Abstraction & Rates'!E$215 -> Revenue adjustment business rates - WWN - Real | F71: ='Abstraction & Rates'!F$215 -> -0.1391186768 | G71: ='Abstraction & Rates'!G$215 -> £m
E72: ='Abstraction & Rates'!E$219 -> RCV adjustment business rates - WWN - Real | F72: ='Abstraction & Rates'!F$219 -> -0.2060889579 | G72: ='Abstraction & Rates'!G$219 -> £m
B74: Revenue adjustment
E75: ='Cost sharing calculations'!E$548 -> Cost sharing revenue adjustment - WWN - Real | F75: ='Cost sharing calculations'!F$548 -> -11.23976941 | G75: ='Cost sharing calculations'!G$548 -> £m
E76: ='Abstraction & Rates'!E215 -> Revenue adjustment business rates - WWN - Real | F76: ='Abstraction & Rates'!F215 -> -0.1391186768 | G76: ='Abstraction & Rates'!G215 -> £m
E77: Total Revenue adjustment for cost sharing - WWN - Real | F77: =SUM(F75:F76) -> -11.37888809 | G77: £m
B79: RCV adjustment
E80: ='Cost sharing calculations'!E$552 -> Cost sharing RCV adjustment - WWN - Real | F80: ='Cost sharing calculations'!F$552 -> -16.65047727 | G80: ='Cost sharing calculations'!G$552 -> £m
E81: ='Abstraction & Rates'!E219 -> RCV adjustment business rates - WWN - Real | F81: ='Abstraction & Rates'!F219 -> -0.2060889579 | G81: ='Abstraction & Rates'!G219 -> £m
E82: ='Green Recovery'!E$129 -> Active RCV adjustment for cost sharing - Green Recovery Expenditure - WWN - Real | F82: ='Green Recovery'!F$129 -> 0 | G82: ='Green Recovery'!G$129 -> £m
E83: Total RCV adjustment for cost sharing - WWN - Real | F83: =SUM(F80:F82) -> -16.85656622 | G83: £m
A85: BIORESOURCES
B87: Wage growth adjustment
E88: =Bioresources!E$55 -> Total adjustment for wage related totex - BIO - Real | F88: =Bioresources!F$55 -> -1.940299043 | G88: =Bioresources!G$55 -> £m
B90: Abstraction & Business Rates uncertainty mechanism
E91: ='Abstraction & Rates'!E$256 -> Active adjustment for business rates uncertainty mechanism - BIO - Real | F91: ='Abstraction & Rates'!F$256 -> -0.4832367381 | G91: ='Abstraction & Rates'!G$256 -> £m
E92: ='Abstraction & Rates'!E$260 -> Revenue adjustment business rates - BIO - Real | F92: ='Abstraction & Rates'!F$260 -> -0.3527628188 | G92: ='Abstraction & Rates'!G$260 -> £m
E93: ='Abstraction & Rates'!E$264 -> RCV adjustment business rates - BIO - Real | F93: ='Abstraction & Rates'!F$264 -> -0.1304739193 | G93: ='Abstraction & Rates'!G$264 -> £m
B95: Revenue adjustment
E96: =Bioresources!E91 -> Cost sharing Revenue adjustment - BIO - Real | F96: =Bioresources!F91 -> -1.416418302 | G96: =Bioresources!G91 -> £m
E97: ='Abstraction & Rates'!E260 -> Revenue adjustment business rates - BIO - Real | F97: ='Abstraction & Rates'!F260 -> -0.3527628188 | G97: ='Abstraction & Rates'!G260 -> £m
E98: Total Revenue adjustment for cost sharing - BIO - Real | F98: =SUM(F96:F97) -> -1.76918112 | G98: £m
B100: RCV adjustment
E101: =Bioresources!E95 -> Cost sharing RCV adjustment - BIO - Real | F101: =Bioresources!F95 -> -0.5238807417 | G101: =Bioresources!G95 -> £m
E102: ='Abstraction & Rates'!E264 -> RCV adjustment business rates - BIO - Real | F102: ='Abstraction & Rates'!F264 -> -0.1304739193 | G102: ='Abstraction & Rates'!G264 -> £m
E103: Total RCV adjustment for cost sharing - BIO - Real | F103: =SUM(F101:F102) -> -0.654354661 | G103: £m
A106: TIDEWAY
B108: Revenue adjustment
E109: ='Thames Tideway Tunnel'!E120 -> Cost sharing revenue adjustment - TTT - Real | F109: ='Thames Tideway Tunnel'!F120 -> 0 | G109: ='Thames Tideway Tunnel'!G120 -> £m
B111: RCV adjustment
E112: ='Thames Tideway Tunnel'!E124 -> Cost sharing RCV adjustment - TTT - Real | F112: ='Thames Tideway Tunnel'!F124 -> 0 | G112: ='Thames Tideway Tunnel'!G124 -> £m
A115: END OF SHEET

Sheet Integrity checks-->

Sheet Check
A1: =RIGHT(CELL("filename", $A$1), LEN(CELL("filename", $A$1)) - SEARCH("]", CELL("filename", $A$1))) -> Check
E2: =Time!E$22 -> Model Period BEG | J2: =Time!J$22 -> 2019-04-01 | K2: =Time!K$22 -> 2020-04-01 | L2: =Time!L$22 -> 2021-04-01 | M2: =Time!M$22 -> 2022-04-01 | N2: =Time!N$22 -> 2023-04-01 | O2: =Time!O$22 -> 2024-04-01 | P2: =Time!P$22 -> 2025-04-01
E3: =Time!E$23 -> Model Period END | F3: =Check!F$8 -> 0 | G3: Error chks | J3: =Time!J$23 -> 2020-03-31 | K3: =Time!K$23 -> 2021-03-31 | L3: =Time!L$23 -> 2022-03-31 | M3: =Time!M$23 -> 2023-03-31 | N3: =Time!N$23 -> 2024-03-31 | O3: =Time!O$23 -> 2025-03-31 | P3: =Time!P$23 -> 2026-03-31
E4: =Time!E$59 -> Pre Forecast vs Forecast | J4: =Time!J$59 -> Pre Fcst | K4: =Time!K$59 -> Forecast | L4: =Time!L$59 -> Forecast | M4: =Time!M$59 -> Forecast | N4: =Time!N$59 -> Forecast | O4: =Time!O$59 -> Forecast | P4: =Time!P$59 -> Post-Fcst
E5: =Time!E$101 -> Financial Year Ending | J5: =Time!J$101 -> 2020 | K5: =Time!K$101 -> 2021 | L5: =Time!L$101 -> 2022 | M5: =Time!M$101 -> 2023 | N5: =Time!N$101 -> 2024 | O5: =Time!O$101 -> 2025 | P5: =Time!P$101 -> 2026
E6: =Time!E$11 -> Model column counter | F6: Constant | G6: Unit | H6: Total | J6: =Time!J$11 -> 1 | K6: =Time!K$11 -> 2 | L6: =Time!L$11 -> 3 | M6: =Time!M$11 -> 4 | N6: =Time!N$11 -> 5 | O6: =Time!O$11 -> 6 | P6: =Time!P$11 -> 7
E8: Total error checks | F8: =SUM(F10:F23) -> 0 | G8: check
A10: [Do not delete]
E12: ='Cost sharing calculations'!E63 -> WR Totex profile 100% check | F12: ='Cost sharing calculations'!F63 -> 0 | G12: ='Cost sharing calculations'!G63 -> Check
E13: ='Cost sharing calculations'!E116 -> WR Totex profile - Cost sharing 100% check | F13: ='Cost sharing calculations'!F116 -> 0 | G13: ='Cost sharing calculations'!G116 -> Check
E14: ='Cost sharing calculations'!E230 -> WN Totex profile - Base costs 100% check | F14: ='Cost sharing calculations'!F230 -> 0 | G14: ='Cost sharing calculations'!G230 -> Check
E15: ='Cost sharing calculations'!E283 -> WN Totex profile - Cost Sharing 100% check | F15: ='Cost sharing calculations'!F283 -> 0 | G15: ='Cost sharing calculations'!G283 -> Check
E16: ='Cost sharing calculations'!E398 -> WWN Totex profile 100% check | F16: ='Cost sharing calculations'!F398 -> 0 | G16: ='Cost sharing calculations'!G398 -> Check
E17: ='Cost sharing calculations'!E451 -> WWN Totex profile - Cost Sharing 100% check | F17: ='Cost sharing calculations'!F451 -> 0 | G17: ='Cost sharing calculations'!G451 -> Check
E18: =Bioresources!E24 -> WWN Totex profile 100% check | F18: =Bioresources!F24 -> 0 | G18: =Bioresources!G24 -> Check
E19: =Outputs!E15 -> Water Resources cost sharing 100% check | F19: =Outputs!F15 -> 0 | G19: =Outputs!G15 -> Check
E20: =Outputs!E41 -> Water Network cost sharing 100% check | F20: =Outputs!F41 -> 0 | G20: =Outputs!G41 -> Check
E21: =Outputs!E67 -> Wastewater Network cost sharing 100% check | F21: =Outputs!F67 -> 0 | G21: =Outputs!G67 -> Check
A23: [Do not delete]
A25: END OF SHEET
